Workbook

Sheet Wnioski
A1: Nr | B1: Przedmiot | C1: Osoba | D1: Kwota netto | E1: Kwota Euro | F1: Czy EUR OK | G1: Kwota brutto | H1: Czy brutto OK | I1: Kryterium 1 | J1: Waga 1 | K1: R/M 1 | L1: Kryterium 2 | M1: Waga 2 | N1: R/M 2 | O1: Kryterium 3 | P1: Waga 3 | Q1: R/M 3 | R1: Kryterium 4 | S1: Waga 4 | T1: R/M 4 | U1: Suma kryteriów
A2: 1 | B2: warsztaty kompetencji miekkich | C2: E.Frelichowska | D2: 32,520.33 zł | E2: € 7,789.49 | F2: =IF(ROUND(D2/4.1749,2)=E2, "OK",ROUND(D2/4.1749,2)) -> OK | G2: 40,000.00 zł | H2: =IF(G2>ROUND(D2*1.23,2),"OK",IF(G2=ROUND(D2*1.23,2),"OK",ROUND(D2*1.23,2))) -> 40,000.01 zł | I2: Cena - | J2: 50 | K2: M | L2: Doświadczenie trenera w realizacji szkolen/warsztetów interpersonalnych ( w godzinach) | M2: 40 | N2: R | O2: Termin przeprowadzenia I Warsztatu (w dniach) | P2: 10 | Q2: M | U2: =IF(J2+M2+P2+S2=100,"OK",IF(J2+M2+P2+S2>100,J2+M2+P2+S2-100&" za dużo",100-(J2+M2+P2+S2)&" za mało")) -> OK
A3: 2 | F3: =IF(ROUND(D3/4.1749,2)=E3, "OK",ROUND(D3/4.1749,2)) -> OK | H3: =IF(G3>ROUND(D3*1.23,2),"OK",IF(G3=ROUND(D3*1.23,2),"OK",ROUND(D3*1.23,2))) -> OK | I3: Cena - | J3: 60 | K3: M | U3: 40 za mało
A4: 3 | F4: OK | H4: OK | I4: Cena - | J4: 60 | K4: M | U4: 40 za mało
A5: 4 | F5: OK | H5: OK | I5: Cena - | J5: 60 | K5: M | U5: 40 za mało
A6: 5 | F6: OK | H6: OK | I6: Cena - | J6: 60 | K6: M | U6: 40 za mało
A7: 6 | F7: OK | H7: OK | I7: Cena - | J7: 60 | K7: M | U7: 40 za mało
A8: 7 | F8: OK | H8: OK | I8: Cena - | J8: 60 | K8: M | U8: 40 za mało
A9: 8 | F9: OK | H9: OK | I9: Cena - | J9: 60 | K9: M | U9: 40 za mało
A10: 9 | F10: OK | H10: OK | I10: Cena - | J10: 60 | K10: M | L10: Okres gwarancji (w miesiącach) - | O10: Termin płatności (w dniach) - | U10: 40 za mało
C12: SUMA | D12: =SUM(D2:D10) -> 32,520.33 zł | E12: =SUM(E2:E10) -> € 7,789.49 | G12: =SUM(G2:G10) -> 40,000.00 zł

Sheet Dane
O1: =AVERAGE(H3:H24) -> 24,602.09 zł | R1: Zadanie 2 | Y1: =AVERAGE(R3:R24) ->  | AB1: Zadanie 3 | AI1: =AVERAGE(AB3:AB24) ->  | AL1: Zadanie 4 | AS1: =AVERAGE(AL3:AL24) ->  | AV1: Zadanie 5 | BC1: =AVERAGE(AV3:AV24) ->  | BF1: Zadanie 6 | BM1: =AVERAGE(BF3:BF24) ->  | BP1: Zadanie 7 | BW1: =AVERAGE(BP3:BP24) ->  | BZ1: Zadanie 8 | CG1: =AVERAGE(BZ3:BZ24) ->  | CJ1: Zadanie 9 | CQ1: =AVERAGE(CJ3:CJ24) -> 
A2: Nr oferty | B2: Wykonawca | D2: Nazwa | E2: Ulica | F2: Miasto | G2: Netto | H2: Brutto | I2: =Wnioski!$I2&" "&Wnioski!$J2&"%" -> Cena - 50% | J2: =Wnioski!$L2&" "&Wnioski!$M2&"%" -> Doświadczenie trenera w realizacji szkolen/warsztetów interpersonalnych ( w godzinach) 40% | K2: =Wnioski!$O2&" "&Wnioski!$P2&"%" -> Termin przeprowadzenia I Warsztatu (w dniach) 10% | L2: =Wnioski!$R2&" "&Wnioski!$S2&"%" -> % | M2: Netto = brutto | N2: Szacunek 30% | O2: Średnia 30% | Q2: Netto | R2: Brutto | S2: =Wnioski!$I3&" "&Wnioski!$J3&"%" -> Cena - 60% | T2: =Wnioski!$L3&" "&Wnioski!$M3&"%" -> % | U2: =Wnioski!$O3&" "&Wnioski!$P3&"%" -> % | V2: =Wnioski!$R3&" "&Wnioski!$S3&"%" -> % | W2: Netto = brutto | X2: Szacunek 30% | Y2: Średnia 30% | AA2: Netto | AB2: Brutto | AC2: =Wnioski!$I4&" "&Wnioski!$J4&"%" -> Cena - 60% | AD2: =Wnioski!$L4&" "&Wnioski!$M4&"%" -> % | AE2: =Wnioski!$O4&" "&Wnioski!$P4&"%" -> % | AF2: =Wnioski!$R4&" "&Wnioski!$S4&"%" -> % | AG2: Netto = brutto | AH2: Szacunek 30% | AI2: Średnia 30% | AK2: Netto | AL2: Brutto | AM2: =Wnioski!$I5&" "&Wnioski!$J5&"%" -> Cena - 60% | AN2: =Wnioski!$L5&" "&Wnioski!$M5&"%" -> % | AO2: =Wnioski!$O5&" "&Wnioski!$P5&"%" -> % | AP2: =Wnioski!$R5&" "&Wnioski!$S5&"%" -> % | AQ2: Netto = brutto | AR2: Szacunek 30% | AS2: Średnia 30% | AU2: Netto | AV2: Brutto | AW2: =Wnioski!$I6&" "&Wnioski!$J6&"%" -> Cena - 60% | AX2: =Wnioski!$L6&" "&Wnioski!$M6&"%" -> % | AY2: =Wnioski!$O6&" "&Wnioski!$P6&"%" -> % | AZ2: =Wnioski!$R6&" "&Wnioski!$S6&"%" -> % | BA2: Netto = brutto | BB2: Szacunek 30% | BC2: Średnia 30% | BE2: Netto | BF2: Brutto | BG2: =Wnioski!$I7&" "&Wnioski!$J7&"%" -> Cena - 60% | BH2: =Wnioski!$L7&" "&Wnioski!$M7&"%" -> % | BI2: =Wnioski!$O7&" "&Wnioski!$P7&"%" -> % | BJ2: =Wnioski!$R7&" "&Wnioski!$S7&"%" -> % | BK2: Netto = brutto | BL2: Szacunek 30% | BM2: Średnia 30% | BO2: Netto | BP2: Brutto | BQ2: =Wnioski!$I8&" "&Wnioski!$J8&"%" -> Cena - 60% | BR2: =Wnioski!$L8&" "&Wnioski!$M8&"%" -> % | BS2: =Wnioski!$O8&" "&Wnioski!$P8&"%" -> % | BT2: =Wnioski!$R8&" "&Wnioski!$S8&"%" -> % | BU2: Netto = brutto | BV2: Szacunek 30% | BW2: Średnia 30% | BY2: Netto | BZ2: Brutto | CA2: =Wnioski!$I9&" "&Wnioski!$J9&"%" -> Cena - 60% | CB2: =Wnioski!$L9&" "&Wnioski!$M9&"%" -> % | CC2: =Wnioski!$O9&" "&Wnioski!$P9&"%" -> % | CD2: =Wnioski!$R9&" "&Wnioski!$S9&"%" -> % | CE2: Netto = brutto | CF2: Szacunek 30% | CG2: Średnia 30% | CI2: Netto | CJ2: Brutto | CK2: =Wnioski!$I10&" "&Wnioski!$J10&"%" -> Cena - 60% | CL2: =Wnioski!$L10&" "&Wnioski!$M10&"%" -> Okres gwarancji (w miesiącach) - % | CM2: =Wnioski!$O10&" "&Wnioski!$P10&"%" -> Termin płatności (w dniach) - % | CN2: =Wnioski!$R10&" "&Wnioski!$S10&"%" -> % | CO2: Netto = brutto | CP2: Szacunek 30% | CQ2: Średnia 30%
A3: 1 | C3: 8 | D3: =VLOOKUP($C3,Wykonawcy!$A$2:$D$31,2) -> Nowoczesny Osrodek Edukacji Anna Ratuszniak | E3: =VLOOKUP($C3,Wykonawcy!$A$2:$D$31,3) -> ul. Zaułek Szkolny 24 | F3: =VLOOKUP($C3,Wykonawcy!$A$2:$D$31,4) -> 55-002 Kamieniec Wrocławski | H3: 30,000.00 zł | I3: =H3 -> 30,000.00 zł | J3: 4256 | K3: 1 | M3: =IF(H3=ROUND(G3*1.23,2), "", IF(G3=0,"","Błąd")) ->  | N3: =IF(H3>Wnioski!$D$2*1.23*0.7,"","Rażąca") ->  | O3: =IF(H3<O$1*0.7,"Rażąca","") ->  | S3: =R3 -> 0 | W3: =IF(R3=ROUND(Q3*1.23,2), "", IF(Q3=0,"","Błąd")) ->  | X3: =IF(R3>Wnioski!$D$3*1.23*0.7,"","Rażąca") -> Rażąca | Y3: =IF(R3<Y$1*0.7,"Rażąca","") ->  | AC3: =AB3 -> 0 | AG3: =IF(AB3=ROUND(AA3*1.23,2), "", IF(AA3=0,"","Błąd")) ->  | AH3: =IF(AB3>Wnioski!$D$4*1.23*0.7,"","Rażąca") -> Rażąca | AI3: =IF(AB3<AI$1*0.7,"Rażąca","") ->  | AM3: =AL3 -> 0 | AQ3: =IF(AL3=ROUND(AK3*1.23,2), "", IF(AK3=0,"","Błąd")) ->  | AR3: =IF(AL3>Wnioski!$D$5*1.23*0.7,"","Rażąca") -> Rażąca | AS3: =IF(AL3<AS$1*0.7,"Rażąca","") ->  | AW3: =AV3 -> 0 | BA3: =IF(AV3=ROUND(AU3*1.23,2), "", IF(AU3=0,"","Błąd")) ->  | BB3: =IF(AV3>Wnioski!$D$6*1.23*0.7,"","Rażąca") -> Rażąca | BC3: =IF(AV3<BC$1*0.7,"Rażąca","") ->  | BG3: =BF3 -> 0 | BK3: =IF(BF3=ROUND(BE3*1.23,2), "", IF(BE3=0,"","Błąd")) ->  | BL3: =IF(BF3>Wnioski!$D$7*1.23*0.7,"","Rażąca") -> Rażąca | BM3: =IF(BF3<BM$1*0.7,"Rażąca","") ->  | BQ3: =BP3 -> 0 | BU3: =IF(BP3=ROUND(BO3*1.23,2), "", IF(BO3=0,"","Błąd")) ->  | BV3: =IF(BP3>Wnioski!$D$8*1.23*0.7,"","Rażąca") -> Rażąca | BW3: =IF(BP3<BW$1*0.7,"Rażąca","") ->  | CA3: =BZ3 -> 0 | CE3: =IF(BZ3=ROUND(BY3*1.23,2), "", IF(BY3=0,"","Błąd")) ->  | CF3: =IF(BZ3>Wnioski!$D$9*1.23*0.7,"","Rażąca") -> Rażąca | CG3: =IF(BZ3<CG$1*0.7,"Rażąca","") ->  | CK3: =CJ3 -> 0 | CO3: =IF(CJ3=ROUND(CI3*1.23,2), "", IF(CI3=0,"","Błąd")) ->  | CP3: =IF(CJ3>Wnioski!$D$10*1.23*0.7,"","Rażąca") -> Rażąca | CQ3: =IF(CJ3<CQ$1*0.7,"Rażąca","") -> 
A4: 2 | C4: 1 | D4: =VLOOKUP($C4,Wykonawcy!$A$2:$D$31,2) -> Agencja Analiz i Doradztwa Personalnego Remigiusz Koc | E4: =VLOOKUP($C4,Wykonawcy!$A$2:$D$31,3) -> ul. Gdańska 105/4 | F4: =VLOOKUP($C4,Wykonawcy!$A$2:$D$31,4) -> 85-022 Bydgoszcz | H4: 16,728.00 zł | I4: =H4 -> 16,728.00 zł | J4: 1471 | K4: 1 | M4: =IF(H4=ROUND(G4*1.23,2), "", IF(G4=0,"","Błąd")) ->  | N4: =IF(H4>Wnioski!$D$2*1.23*0.7,"","Rażąca") -> Rażąca | O4: =IF(H4<O$1*0.7,"Rażąca","") -> Rażąca | S4: =R4 -> 0 | W4: =IF(R4=ROUND(Q4*1.23,2), "", IF(Q4=0,"","Błąd")) ->  | X4: =IF(R4>Wnioski!$D$3*1.23*0.7,"","Rażąca") -> Rażąca | Y4: =IF(R4<Y$1*0.7,"Rażąca","") ->  | AC4: 0 | AG4: =IF(AB4=ROUND(AA4*1.23,2), "", IF(AA4=0,"","Błąd")) ->  | AH4: =IF(AB4>Wnioski!$D$4*1.23*0.7,"","Rażąca") -> Rażąca | AI4: =IF(AB4<AI$1*0.7,"Rażąca","") ->  | AM4: 0 | AQ4: =IF(AL4=ROUND(AK4*1.23,2), "", IF(AK4=0,"","Błąd")) ->  | AR4: =IF(AL4>Wnioski!$D$5*1.23*0.7,"","Rażąca") -> Rażąca | AS4: =IF(AL4<AS$1*0.7,"Rażąca","") ->  | AW4: 0 | BA4: =IF(AV4=ROUND(AU4*1.23,2), "", IF(AU4=0,"","Błąd")) ->  | BB4: =IF(AV4>Wnioski!$D$6*1.23*0.7,"","Rażąca") -> Rażąca | BC4: =IF(AV4<BC$1*0.7,"Rażąca","") ->  | BG4: 0 | BK4: =IF(BF4=ROUND(BE4*1.23,2), "", IF(BE4=0,"","Błąd")) ->  | BL4: =IF(BF4>Wnioski!$D$7*1.23*0.7,"","Rażąca") -> Rażąca | BM4: =IF(BF4<BM$1*0.7,"Rażąca","") ->  | BQ4: 0 | BU4: =IF(BP4=ROUND(BO4*1.23,2), "", IF(BO4=0,"","Błąd")) ->  | BV4: =IF(BP4>Wnioski!$D$8*1.23*0.7,"","Rażąca") -> Rażąca | BW4: =IF(BP4<BW$1*0.7,"Rażąca","") ->  | CA4: 0 | CE4: =IF(BZ4=ROUND(BY4*1.23,2), "", IF(BY4=0,"","Błąd")) ->  | CF4: =IF(BZ4>Wnioski!$D$9*1.23*0.7,"","Rażąca") -> Rażąca | CG4: =IF(BZ4<CG$1*0.7,"Rażąca","") ->  | CK4: 0 | CO4: =IF(CJ4=ROUND(CI4*1.23,2), "", IF(CI4=0,"","Błąd")) ->  | CP4: =IF(CJ4>Wnioski!$D$10*1.23*0.7,"","Rażąca") -> Rażąca
A5: 3 | C5: 5 | D5: =VLOOKUP($C5,Wykonawcy!$A$2:$D$31,2) -> IMMOQEE Sp. z o.o. | E5: =VLOOKUP($C5,Wykonawcy!$A$2:$D$31,3) -> ul. Karola Chodkiewicza 3 lok. U 10 | F5: =VLOOKUP($C5,Wykonawcy!$A$2:$D$31,4) -> 02-593 Warszawa | H5: 19,500.00 zł | I5: =H5 -> 19,500.00 zł | J5: 600 | K5: 3 | N5: =IF(H5>Wnioski!$D$2*1.23*0.7,"","Rażąca") -> Rażąca | S5: 0 | X5: =IF(R5>Wnioski!$D$3*1.23*0.7,"","Rażąca") -> Rażąca | AC5: 0 | AH5: =IF(AB5>Wnioski!$D$4*1.23*0.7,"","Rażąca") -> Rażąca | AM5: 0 | AR5: =IF(AL5>Wnioski!$D$5*1.23*0.7,"","Rażąca") -> Rażąca | AW5: 0 | BB5: =IF(AV5>Wnioski!$D$6*1.23*0.7,"","Rażąca") -> Rażąca | BG5: 0 | BL5: =IF(BF5>Wnioski!$D$7*1.23*0.7,"","Rażąca") -> Rażąca | BQ5: 0 | BV5: =IF(BP5>Wnioski!$D$8*1.23*0.7,"","Rażąca") -> Rażąca | CA5: 0 | CF5: =IF(BZ5>Wnioski!$D$9*1.23*0.7,"","Rażąca") -> Rażąca | CK5: 0 | CP5: =IF(CJ5>Wnioski!$D$10*1.23*0.7,"","Rażąca") -> Rażąca
A6: 4 | C6: 2 | D6: =VLOOKUP($C6,Wykonawcy!$A$2:$D$31,2) -> Brainstorm Group Sp. z o.o. | E6: =VLOOKUP($C6,Wykonawcy!$A$2:$D$31,3) -> ul. Perła 10 | F6: =VLOOKUP($C6,Wykonawcy!$A$2:$D$31,4) -> 41-300 Dabrowa Górnicza | H6: 73,800.00 zł | I6: 73,800.00 zł | J6: 1916 | K6: 1 | N6: =IF(H6>Wnioski!$D$2*1.23*0.7,"","Rażąca") ->  | S6: 0 | X6: =IF(R6>Wnioski!$D$3*1.23*0.7,"","Rażąca") -> Rażąca | AC6: 0 | AH6: =IF(AB6>Wnioski!$D$4*1.23*0.7,"","Rażąca") -> Rażąca | AM6: 0 | AR6: =IF(AL6>Wnioski!$D$5*1.23*0.7,"","Rażąca") -> Rażąca | AW6: 0 | BB6: =IF(AV6>Wnioski!$D$6*1.23*0.7,"","Rażąca") -> Rażąca | BG6: 0 | BL6: =IF(BF6>Wnioski!$D$7*1.23*0.7,"","Rażąca") -> Rażąca | BQ6: 0 | BV6: =IF(BP6>Wnioski!$D$8*1.23*0.7,"","Rażąca") -> Rażąca | CA6: 0 | CF6: =IF(BZ6>Wnioski!$D$9*1.23*0.7,"","Rażąca") -> Rażąca | CK6: 0 | CP6: =IF(CJ6>Wnioski!$D$10*1.23*0.7,"","Rażąca") -> Rażąca
A7: 5 | C7: 12 | D7: =VLOOKUP($C7,Wykonawcy!$A$2:$D$31,2) -> Slow Life&Business | E7: =VLOOKUP($C7,Wykonawcy!$A$2:$D$31,3) -> ul. Szafirowa 78 | F7: =VLOOKUP($C7,Wykonawcy!$A$2:$D$31,4) -> 63-460 Nowe Skalmierzyce | H7: warsztat jednodniowy 1000,00zł netto, warsztat dwudniowy 1800,00zł | I7: warsztat jednodniowy 1000,00zł netto, warsztat dwudniowy 1800,00zł | J7: 570 | K7: między 10 a 16 lipca br. | N7: =IF(H7>Wnioski!$D$2*1.23*0.7,"","Rażąca") ->  | S7: 0 | X7: =IF(R7>Wnioski!$D$3*1.23*0.7,"","Rażąca") -> Rażąca | AC7: =AB7 -> 0 | AH7: =IF(AB7>Wnioski!$D$4*1.23*0.7,"","Rażąca") -> Rażąca | AM7: =AL7 -> 0 | AR7: =IF(AL7>Wnioski!$D$5*1.23*0.7,"","Rażąca") -> Rażąca | AW7: =AV7 -> 0 | BB7: =IF(AV7>Wnioski!$D$6*1.23*0.7,"","Rażąca") -> Rażąca | BG7: =BF7 -> 0 | BL7: =IF(BF7>Wnioski!$D$7*1.23*0.7,"","Rażąca") -> Rażąca | BQ7: =BP7 -> 0 | BV7: =IF(BP7>Wnioski!$D$8*1.23*0.7,"","Rażąca") -> Rażąca | CA7: =BZ7 -> 0 | CF7: =IF(BZ7>Wnioski!$D$9*1.23*0.7,"","Rażąca") -> Rażąca | CK7: 0 | CP7: =IF(CJ7>Wnioski!$D$10*1.23*0.7,"","Rażąca") -> Rażąca
A8: 6 | C8: 10 | D8: =VLOOKUP($C8,Wykonawcy!$A$2:$D$31,2) -> RAJOS COSULTING Rafał Stelmasik | E8: =VLOOKUP($C8,Wykonawcy!$A$2:$D$31,3) -> ul. C.K.Norwida 1 | F8: =VLOOKUP($C8,Wykonawcy!$A$2:$D$31,4) -> 37-550 Radymno | H8: 10,880.00 zł | I8: 10,880.00 zł | J8: 300 | K8: 3 | N8: =IF(H8>Wnioski!$D$2*1.23*0.7,"","Rażąca") -> Rażąca | O8: Rażąca | S8: =R8 -> 0 | X8: =IF(R8>Wnioski!$D$3*1.23*0.7,"","Rażąca") -> Rażąca | AC8: 0 | AH8: =IF(AB8>Wnioski!$D$4*1.23*0.7,"","Rażąca") -> Rażąca | AM8: 0 | AR8: =IF(AL8>Wnioski!$D$5*1.23*0.7,"","Rażąca") -> Rażąca | AW8: 0 | BB8: =IF(AV8>Wnioski!$D$6*1.23*0.7,"","Rażąca") -> Rażąca | BG8: 0 | BL8: =IF(BF8>Wnioski!$D$7*1.23*0.7,"","Rażąca") -> Rażąca | BQ8: 0 | BV8: =IF(BP8>Wnioski!$D$8*1.23*0.7,"","Rażąca") -> Rażąca | CA8: 0 | CF8: =IF(BZ8>Wnioski!$D$9*1.23*0.7,"","Rażąca") -> Rażąca | CK8: 0 | CP8: =IF(CJ8>Wnioski!$D$10*1.23*0.7,"","Rażąca") -> Rażąca
A9: 7 | C9: 3 | D9: =VLOOKUP($C9,Wykonawcy!$A$2:$D$31,2) -> Centrum Szkoleń Wielozawodowych DELTA | E9: =VLOOKUP($C9,Wykonawcy!$A$2:$D$31,3) -> ul. Sandomierska 26a pokój nr 9 | F9: =VLOOKUP($C9,Wykonawcy!$A$2:$D$31,4) -> 27-400 Ostrowiec w. | H9: 10,055.00 zł | I9: 10,055.00 zł | J9: 300 | K9: 2 | N9: =IF(H9>Wnioski!$D$2*1.23*0.7,"","Rażąca") -> Rażąca | O9: Rażąca | S9: 0 | X9: =IF(R9>Wnioski!$D$3*1.23*0.7,"","Rażąca") -> Rażąca | AC9: 0 | AH9: =IF(AB9>Wnioski!$D$4*1.23*0.7,"","Rażąca") -> Rażąca | AM9: 0 | AR9: =IF(AL9>Wnioski!$D$5*1.23*0.7,"","Rażąca") -> Rażąca | AW9: 0 | BB9: =IF(AV9>Wnioski!$D$6*1.23*0.7,"","Rażąca") -> Rażąca | BG9: 0 | BL9: =IF(BF9>Wnioski!$D$7*1.23*0.7,"","Rażąca") -> Rażąca | BQ9: 0 | BV9: =IF(BP9>Wnioski!$D$8*1.23*0.7,"","Rażąca") -> Rażąca | CA9: 0 | CF9: =IF(BZ9>Wnioski!$D$9*1.23*0.7,"","Rażąca") -> Rażąca | CK9: 0 | CP9: =IF(CJ9>Wnioski!$D$10*1.23*0.7,"","Rażąca") -> Rażąca
A10: 8 | C10: 4 | D10: =VLOOKUP($C10,Wykonawcy!$A$2:$D$31,2) -> Coach and Go Joanna Chorwacka | E10: =VLOOKUP($C10,Wykonawcy!$A$2:$D$31,3) -> ul. Sosnowa 6d | F10: =VLOOKUP($C10,Wykonawcy!$A$2:$D$31,4) -> 86-300 Grudziądz | H10: 16,000.00 zł | I10: 16,000.00 zł | J10: 500 | K10: 2 | N10: =IF(H10>Wnioski!$D$2*1.23*0.7,"","Rażąca") -> Rażąca | O10: Rażąca | S10: 0 | X10: =IF(R10>Wnioski!$D$3*1.23*0.7,"","Rażąca") -> Rażąca | AC10: 0 | AH10: =IF(AB10>Wnioski!$D$4*1.23*0.7,"","Rażąca") -> Rażąca | AM10: 0 | AR10: =IF(AL10>Wnioski!$D$5*1.23*0.7,"","Rażąca") -> Rażąca | AW10: 0 | BB10: =IF(AV10>Wnioski!$D$6*1.23*0.7,"","Rażąca") -> Rażąca | BG10: 0 | BL10: =IF(BF10>Wnioski!$D$7*1.23*0.7,"","Rażąca") -> Rażąca | BQ10: 0 | BV10: =IF(BP10>Wnioski!$D$8*1.23*0.7,"","Rażąca") -> Rażąca | CA10: 0 | CF10: =IF(BZ10>Wnioski!$D$9*1.23*0.7,"","Rażąca") -> Rażąca | CK10: 0 | CP10: =IF(CJ10>Wnioski!$D$10*1.23*0.7,"","Rażąca") -> Rażąca
A11: 9 | C11: 7 | D11: =VLOOKUP($C11,Wykonawcy!$A$2:$D$31,2) -> Moja Firma Elzbieta Kowalska | E11: =VLOOKUP($C11,Wykonawcy!$A$2:$D$31,3) -> ul. Uniwersytecka 33/35 lok. 36 | F11: =VLOOKUP($C11,Wykonawcy!$A$2:$D$31,4) -> 90-233 Łódź | H11: 32,000.00 zł | I11: 32,000.00 zł | J11: 3038 | K11: 1 | N11: =IF(H11>Wnioski!$D$2*1.23*0.7,"","Rażąca") ->  | S11: 0 | X11: =IF(R11>Wnioski!$D$3*1.23*0.7,"","Rażąca") -> Rażąca | AC11: 0 | AH11: =IF(AB11>Wnioski!$D$4*1.23*0.7,"","Rażąca") -> Rażąca | AM11: 0 | AR11: =IF(AL11>Wnioski!$D$5*1.23*0.7,"","Rażąca") -> Rażąca | AW11: 0 | BB11: =IF(AV11>Wnioski!$D$6*1.23*0.7,"","Rażąca") -> Rażąca | BG11: 0 | BL11: =IF(BF11>Wnioski!$D$7*1.23*0.7,"","Rażąca") -> Rażąca | BQ11: 0 | BV11: =IF(BP11>Wnioski!$D$8*1.23*0.7,"","Rażąca") -> Rażąca | CA11: 0 | CF11: =IF(BZ11>Wnioski!$D$9*1.23*0.7,"","Rażąca") -> Rażąca | CK11: 0 | CP11: =IF(CJ11>Wnioski!$D$10*1.23*0.7,"","Rażąca") -> Rażąca
A12: 10 | C12: 6 | D12: =VLOOKUP($C12,Wykonawcy!$A$2:$D$31,2) -> LCE LOGOS Centrum Edukacyjne | E12: =VLOOKUP($C12,Wykonawcy!$A$2:$D$31,3) -> ul. Ks.Kard.Wyszyńskiego 6 lok 44 | F12: =VLOOKUP($C12,Wykonawcy!$A$2:$D$31,4) -> 18-400 Łomża | H12: 12,160.00 zł | I12: 12,160.00 zł | J12: 922 | K12: 1 | N12: =IF(H12>Wnioski!$D$2*1.23*0.7,"","Rażąca") -> Rażąca | O12: Rażąca | S12: 0 | X12: =IF(R12>Wnioski!$D$3*1.23*0.7,"","Rażąca") -> Rażąca | AC12: 0 | AH12: =IF(AB12>Wnioski!$D$4*1.23*0.7,"","Rażąca") -> Rażąca | AM12: 0 | AR12: =IF(AL12>Wnioski!$D$5*1.23*0.7,"","Rażąca") -> Rażąca | AW12: 0 | BB12: =IF(AV12>Wnioski!$D$6*1.23*0.7,"","Rażąca") -> Rażąca | BG12: 0 | BL12: =IF(BF12>Wnioski!$D$7*1.23*0.7,"","Rażąca") -> Rażąca | BQ12: 0 | BV12: =IF(BP12>Wnioski!$D$8*1.23*0.7,"","Rażąca") -> Rażąca | CA12: 0 | CF12: =IF(BZ12>Wnioski!$D$9*1.23*0.7,"","Rażąca") -> Rażąca | CK12: 0 | CP12: =IF(CJ12>Wnioski!$D$10*1.23*0.7,"","Rażąca") -> Rażąca
A13: 11 | C13: 11 | D13: =VLOOKUP($C13,Wykonawcy!$A$2:$D$31,2) -> SEKA S.A. | E13: =VLOOKUP($C13,Wykonawcy!$A$2:$D$31,3) -> ul. Bernardyńska 13 | F13: =VLOOKUP($C13,Wykonawcy!$A$2:$D$31,4) -> 85-029 Bydgoszcz | H13: 17,500.00 zł | I13: 17,500.00 zł | J13: 3054 | K13: 1 | N13: =IF(H13>Wnioski!$D$2*1.23*0.7,"","Rażąca") -> Rażąca | S13: 0 | X13: =IF(R13>Wnioski!$D$3*1.23*0.7,"","Rażąca") -> Rażąca | AC13: 0 | AH13: =IF(AB13>Wnioski!$D$4*1.23*0.7,"","Rażąca") -> Rażąca | AM13: 0 | AR13: =IF(AL13>Wnioski!$D$5*1.23*0.7,"","Rażąca") -> Rażąca | AW13: 0 | BB13: =IF(AV13>Wnioski!$D$6*1.23*0.7,"","Rażąca") -> Rażąca | BG13: 0 | BL13: =IF(BF13>Wnioski!$D$7*1.23*0.7,"","Rażąca") -> Rażąca | BQ13: 0 | BV13: =IF(BP13>Wnioski!$D$8*1.23*0.7,"","Rażąca") -> Rażąca | CA13: 0 | CF13: =IF(BZ13>Wnioski!$D$9*1.23*0.7,"","Rażąca") -> Rażąca | CK13: 0 | CP13: =IF(CJ13>Wnioski!$D$10*1.23*0.7,"","Rażąca") -> Rażąca
A14: 12 | C14: 9 | D14: =VLOOKUP($C14,Wykonawcy!$A$2:$D$31,2) -> Polska Akademia Oświaty Sp. z o.o. | E14: =VLOOKUP($C14,Wykonawcy!$A$2:$D$31,3) -> ul. Krańcowa 17/1 | F14: =VLOOKUP($C14,Wykonawcy!$A$2:$D$31,4) -> 02-493 Warszawa | H14: 32,000.00 zł | I14: 32,000.00 zł | J14: 6058 | K14: 1 | N14: =IF(H14>Wnioski!$D$2*1.23*0.7,"","Rażąca") ->  | S14: 0 | X14: =IF(R14>Wnioski!$D$3*1.23*0.7,"","Rażąca") -> Rażąca | AC14: 0 | AH14: =IF(AB14>Wnioski!$D$4*1.23*0.7,"","Rażąca") -> Rażąca | AM14: 0 | AR14: =IF(AL14>Wnioski!$D$5*1.23*0.7,"","Rażąca") -> Rażąca | AW14: 0 | BB14: =IF(AV14>Wnioski!$D$6*1.23*0.7,"","Rażąca") -> Rażąca | BG14: 0 | BL14: =IF(BF14>Wnioski!$D$7*1.23*0.7,"","Rażąca") -> Rażąca | BQ14: 0 | BV14: =IF(BP14>Wnioski!$D$8*1.23*0.7,"","Rażąca") -> Rażąca | CA14: 0 | CF14: =IF(BZ14>Wnioski!$D$9*1.23*0.7,"","Rażąca") -> Rażąca | CK14: 0 | CP14: =IF(CJ14>Wnioski!$D$10*1.23*0.7,"","Rażąca") -> Rażąca
A15: 13 | C15: 25 | D15: =VLOOKUP($C15,Wykonawcy!$A$2:$D$31,2) -> 0 | E15: =VLOOKUP($C15,Wykonawcy!$A$2:$D$31,3) -> 0 | F15: =VLOOKUP($C15,Wykonawcy!$A$2:$D$31,4) -> 0 | I15: 0 | N15: =IF(H15>Wnioski!$D$2*1.23*0.7,"","Rażąca") -> Rażąca | O15: Rażąca | S15: 0 | X15: =IF(R15>Wnioski!$D$3*1.23*0.7,"","Rażąca") -> Rażąca | AC15: 0 | AH15: =IF(AB15>Wnioski!$D$4*1.23*0.7,"","Rażąca") -> Rażąca | AM15: 0 | AR15: =IF(AL15>Wnioski!$D$5*1.23*0.7,"","Rażąca") -> Rażąca | AW15: 0 | BB15: =IF(AV15>Wnioski!$D$6*1.23*0.7,"","Rażąca") -> Rażąca | BG15: 0 | BL15: =IF(BF15>Wnioski!$D$7*1.23*0.7,"","Rażąca") -> Rażąca | BQ15: 0 | BV15: =IF(BP15>Wnioski!$D$8*1.23*0.7,"","Rażąca") -> Rażąca | CA15: 0 | CF15: =IF(BZ15>Wnioski!$D$9*1.23*0.7,"","Rażąca") -> Rażąca | CK15: 0 | CP15: =IF(CJ15>Wnioski!$D$10*1.23*0.7,"","Rażąca") -> Rażąca
A16: 14 | C16: 25 | D16: =VLOOKUP($C16,Wykonawcy!$A$2:$D$31,2) -> 0 | E16: =VLOOKUP($C16,Wykonawcy!$A$2:$D$31,3) -> 0 | F16: =VLOOKUP($C16,Wykonawcy!$A$2:$D$31,4) -> 0 | I16: 0 | N16: =IF(H16>Wnioski!$D$2*1.23*0.7,"","Rażąca") -> Rażąca | O16: Rażąca | S16: 0 | X16: =IF(R16>Wnioski!$D$3*1.23*0.7,"","Rażąca") -> Rażąca | AC16: 0 | AH16: =IF(AB16>Wnioski!$D$4*1.23*0.7,"","Rażąca") -> Rażąca | AM16: 0 | AR16: =IF(AL16>Wnioski!$D$5*1.23*0.7,"","Rażąca") -> Rażąca | AW16: 0 | BB16: =IF(AV16>Wnioski!$D$6*1.23*0.7,"","Rażąca") -> Rażąca | BG16: 0 | BL16: =IF(BF16>Wnioski!$D$7*1.23*0.7,"","Rażąca") -> Rażąca | BQ16: 0 | BV16: =IF(BP16>Wnioski!$D$8*1.23*0.7,"","Rażąca") -> Rażąca | CA16: 0 | CF16: =IF(BZ16>Wnioski!$D$9*1.23*0.7,"","Rażąca") -> Rażąca | CK16: 0 | CP16: =IF(CJ16>Wnioski!$D$10*1.23*0.7,"","Rażąca") -> Rażąca
A17: 15 | C17: 25 | D17: =VLOOKUP($C17,Wykonawcy!$A$2:$D$31,2) -> 0 | E17: =VLOOKUP($C17,Wykonawcy!$A$2:$D$31,3) -> 0 | F17: =VLOOKUP($C17,Wykonawcy!$A$2:$D$31,4) -> 0 | I17: 0 | N17: =IF(H17>Wnioski!$D$2*1.23*0.7,"","Rażąca") -> Rażąca | O17: Rażąca | S17: 0 | X17: =IF(R17>Wnioski!$D$3*1.23*0.7,"","Rażąca") -> Rażąca | AC17: 0 | AH17: =IF(AB17>Wnioski!$D$4*1.23*0.7,"","Rażąca") -> Rażąca | AM17: 0 | AR17: =IF(AL17>Wnioski!$D$5*1.23*0.7,"","Rażąca") -> Rażąca | AW17: 0 | BB17: =IF(AV17>Wnioski!$D$6*1.23*0.7,"","Rażąca") -> Rażąca | BG17: 0 | BL17: =IF(BF17>Wnioski!$D$7*1.23*0.7,"","Rażąca") -> Rażąca | BQ17: 0 | BV17: =IF(BP17>Wnioski!$D$8*1.23*0.7,"","Rażąca") -> Rażąca | CA17: 0 | CF17: =IF(BZ17>Wnioski!$D$9*1.23*0.7,"","Rażąca") -> Rażąca | CK17: 0 | CP17: =IF(CJ17>Wnioski!$D$10*1.23*0.7,"","Rażąca") -> Rażąca
A18: 16 | C18: 25 | D18: =VLOOKUP($C18,Wykonawcy!$A$2:$D$31,2) -> 0 | E18: =VLOOKUP($C18,Wykonawcy!$A$2:$D$31,3) -> 0 | F18: =VLOOKUP($C18,Wykonawcy!$A$2:$D$31,4) -> 0 | I18: 0 | N18: =IF(H18>Wnioski!$D$2*1.23*0.7,"","Rażąca") -> Rażąca | O18: Rażąca | S18: 0 | X18: =IF(R18>Wnioski!$D$3*1.23*0.7,"","Rażąca") -> Rażąca | AC18: 0 | AH18: =IF(AB18>Wnioski!$D$4*1.23*0.7,"","Rażąca") -> Rażąca | AM18: 0 | AR18: =IF(AL18>Wnioski!$D$5*1.23*0.7,"","Rażąca") -> Rażąca | AW18: 0 | BB18: =IF(AV18>Wnioski!$D$6*1.23*0.7,"","Rażąca") -> Rażąca | BG18: 0 | BL18: =IF(BF18>Wnioski!$D$7*1.23*0.7,"","Rażąca") -> Rażąca | BQ18: 0 | BV18: =IF(BP18>Wnioski!$D$8*1.23*0.7,"","Rażąca") -> Rażąca | CA18: 0 | CF18: =IF(BZ18>Wnioski!$D$9*1.23*0.7,"","Rażąca") -> Rażąca | CK18: 0 | CP18: =IF(CJ18>Wnioski!$D$10*1.23*0.7,"","Rażąca") -> Rażąca
A19: 17 | C19: 25 | D19: =VLOOKUP($C19,Wykonawcy!$A$2:$D$31,2) -> 0 | E19: =VLOOKUP($C19,Wykonawcy!$A$2:$D$31,3) -> 0 | F19: =VLOOKUP($C19,Wykonawcy!$A$2:$D$31,4) -> 0 | I19: 0 | N19: =IF(H19>Wnioski!$D$2*1.23*0.7,"","Rażąca") -> Rażąca | O19: Rażąca | S19: 0 | X19: =IF(R19>Wnioski!$D$3*1.23*0.7,"","Rażąca") -> Rażąca | AC19: 0 | AH19: =IF(AB19>Wnioski!$D$4*1.23*0.7,"","Rażąca") -> Rażąca | AM19: 0 | AR19: =IF(AL19>Wnioski!$D$5*1.23*0.7,"","Rażąca") -> Rażąca | AW19: 0 | BB19: =IF(AV19>Wnioski!$D$6*1.23*0.7,"","Rażąca") -> Rażąca | BG19: 0 | BL19: =IF(BF19>Wnioski!$D$7*1.23*0.7,"","Rażąca") -> Rażąca | BQ19: 0 | BV19: =IF(BP19>Wnioski!$D$8*1.23*0.7,"","Rażąca") -> Rażąca | CA19: 0 | CF19: =IF(BZ19>Wnioski!$D$9*1.23*0.7,"","Rażąca") -> Rażąca | CK19: 0 | CP19: =IF(CJ19>Wnioski!$D$10*1.23*0.7,"","Rażąca") -> Rażąca
A20: 18 | C20: 25 | D20: =VLOOKUP($C20,Wykonawcy!$A$2:$D$31,2) -> 0 | E20: =VLOOKUP($C20,Wykonawcy!$A$2:$D$31,3) -> 0 | F20: =VLOOKUP($C20,Wykonawcy!$A$2:$D$31,4) -> 0 | I20: 0 | N20: =IF(H20>Wnioski!$D$2*1.23*0.7,"","Rażąca") -> Rażąca | O20: Rażąca | S20: 0 | X20: =IF(R20>Wnioski!$D$3*1.23*0.7,"","Rażąca") -> Rażąca | AC20: 0 | AH20: =IF(AB20>Wnioski!$D$4*1.23*0.7,"","Rażąca") -> Rażąca | AM20: 0 | AR20: =IF(AL20>Wnioski!$D$5*1.23*0.7,"","Rażąca") -> Rażąca | AW20: 0 | BB20: =IF(AV20>Wnioski!$D$6*1.23*0.7,"","Rażąca") -> Rażąca | BG20: 0 | BL20: =IF(BF20>Wnioski!$D$7*1.23*0.7,"","Rażąca") -> Rażąca | BQ20: 0 | BV20: =IF(BP20>Wnioski!$D$8*1.23*0.7,"","Rażąca") -> Rażąca | CA20: 0 | CF20: =IF(BZ20>Wnioski!$D$9*1.23*0.7,"","Rażąca") -> Rażąca | CK20: 0 | CP20: =IF(CJ20>Wnioski!$D$10*1.23*0.7,"","Rażąca") -> Rażąca
A21: 19 | C21: 25 | D21: =VLOOKUP($C21,Wykonawcy!$A$2:$D$31,2) -> 0 | E21: =VLOOKUP($C21,Wykonawcy!$A$2:$D$31,3) -> 0 | F21: =VLOOKUP($C21,Wykonawcy!$A$2:$D$31,4) -> 0 | I21: 0 | N21: =IF(H21>Wnioski!$D$2*1.23*0.7,"","Rażąca") -> Rażąca | O21: Rażąca | S21: 0 | X21: =IF(R21>Wnioski!$D$3*1.23*0.7,"","Rażąca") -> Rażąca | AC21: 0 | AH21: =IF(AB21>Wnioski!$D$4*1.23*0.7,"","Rażąca") -> Rażąca | AM21: 0 | AR21: =IF(AL21>Wnioski!$D$5*1.23*0.7,"","Rażąca") -> Rażąca | AW21: 0 | BB21: =IF(AV21>Wnioski!$D$6*1.23*0.7,"","Rażąca") -> Rażąca | BG21: 0 | BL21: =IF(BF21>Wnioski!$D$7*1.23*0.7,"","Rażąca") -> Rażąca | BQ21: 0 | BV21: =IF(BP21>Wnioski!$D$8*1.23*0.7,"","Rażąca") -> Rażąca | CA21: 0 | CF21: =IF(BZ21>Wnioski!$D$9*1.23*0.7,"","Rażąca") -> Rażąca | CK21: 0 | CP21: =IF(CJ21>Wnioski!$D$10*1.23*0.7,"","Rażąca") -> Rażąca
A22: 20 | C22: 25 | D22: =VLOOKUP($C22,Wykonawcy!$A$2:$D$31,2) -> 0 | E22: =VLOOKUP($C22,Wykonawcy!$A$2:$D$31,3) -> 0 | F22: =VLOOKUP($C22,Wykonawcy!$A$2:$D$31,4) -> 0 | I22: 0 | N22: =IF(H22>Wnioski!$D$2*1.23*0.7,"","Rażąca") -> Rażąca | O22: Rażąca | S22: 0 | X22: =IF(R22>Wnioski!$D$3*1.23*0.7,"","Rażąca") -> Rażąca | AC22: 0 | AH22: =IF(AB22>Wnioski!$D$4*1.23*0.7,"","Rażąca") -> Rażąca | AM22: 0 | AR22: =IF(AL22>Wnioski!$D$5*1.23*0.7,"","Rażąca") -> Rażąca | AW22: 0 | BB22: =IF(AV22>Wnioski!$D$6*1.23*0.7,"","Rażąca") -> Rażąca | BG22: 0 | BL22: =IF(BF22>Wnioski!$D$7*1.23*0.7,"","Rażąca") -> Rażąca | BQ22: 0 | BV22: =IF(BP22>Wnioski!$D$8*1.23*0.7,"","Rażąca") -> Rażąca | CA22: 0 | CF22: =IF(BZ22>Wnioski!$D$9*1.23*0.7,"","Rażąca") -> Rażąca | CK22: 0 | CP22: =IF(CJ22>Wnioski!$D$10*1.23*0.7,"","Rażąca") -> Rażąca

Sheet Zestawienie
A1: Uniwersytet Technologiczno-Przyrodniczy
A2: im. Jana i Jędrzeja Śniadeckich
A3: al. prof. S. Kaliskiego 7
A4: 85-796 Bydgoszcz
A6: INFORMACJA Z PUBLICZNEGO OTWARCIA OFERT Przeprowadzenie warsztatów kompetencji miękkich (warsztaty interpersonalne) dla studentów II stopnia kierunków Mechanika i budowa maszyn i Transport - AZZP.243.35.2017, w dniu 22.05.2017 r. o godz. 09:30 Kwota jaką zamawiający zamierza przeznaczyć na sfinansowanie zamówienia: 40 000,00 zł
A8: Nr oferty | B8: Nazwa oraz adres wykonawcy | C8: KRYTERIA OCENY OFERT | G8: Zadanie 2 | K8: Zadanie 3 | O8: Zadanie 4 | S8: Zadanie 5 | W8: Zadanie 6 | AA8: Zadanie 7 | AE8: Zadanie 8 | AI8: Zadanie 9
C9: =Dane!I2 -> Cena - 50% | D9: =Dane!J2 -> Doświadczenie trenera w realizacji szkolen/warsztetów interpersonalnych ( w godzinach) 40% | E9: =Dane!K2 -> Termin przeprowadzenia I Warsztatu (w dniach) 10% | F9: =Dane!L2 -> % | G9: =Dane!S2 -> Cena - 60% | H9: =Dane!T2 -> % | I9: =Dane!U2 -> % | J9: =Dane!V2 -> % | K9: =Dane!AC2 -> Cena - 60% | L9: =Dane!AD2 -> % | M9: =Dane!AE2 -> % | N9: =Dane!AF2 -> % | O9: =Dane!AM2 -> Cena - 60% | P9: =Dane!AN2 -> % | Q9: =Dane!AO2 -> % | R9: =Dane!AP2 -> % | S9: =Dane!AW2 -> Cena - 60% | T9: =Dane!AX2 -> % | U9: =Dane!AY2 -> % | V9: =Dane!AZ2 -> % | W9: =Dane!BG2 -> Cena - 60% | X9: =Dane!BH2 -> % | Y9: =Dane!BI2 -> % | Z9: =Dane!BJ2 -> % | AA9: =Dane!BQ2 -> Cena - 60% | AB9: =Dane!BR2 -> % | AC9: =Dane!BS2 -> % | AD9: =Dane!BT2 -> % | AE9: =Dane!CA2 -> Cena - 60% | AF9: =Dane!CB2 -> % | AG9: =Dane!CC2 -> % | AH9: =Dane!CD2 -> % | AI9: =Dane!CK2 -> Cena - 60% | AJ9: =Dane!CL2 -> Okres gwarancji (w miesiącach) - % | AK9: =Dane!CM2 -> Termin płatności (w dniach) - % | AL9: =Dane!CN2 -> %
A10: 1 | B10: =Dane!D3&" "&Dane!E3&" "&Dane!F3 -> Nowoczesny Osrodek Edukacji Anna Ratuszniak ul. Zaułek Szkolny 24 55-002 Kamieniec Wrocławski | C10: =Dane!I3 -> 30,000.00 zł | D10: =Dane!J3 -> 4256 | E10: =Dane!K3 -> 1 | F10: =Dane!L3 -> 0 | G10: =Dane!S3 -> 0 | H10: =Dane!T3 -> 0 | I10: =Dane!U3 -> 0 | J10: =Dane!V3 -> 0 | K10: =Dane!AC3 -> 0 | L10: =Dane!AD3 -> 0 | M10: =Dane!AE3 -> 0 | N10: =Dane!AF3 -> 0 | O10: =Dane!AM3 -> 0 | P10: =Dane!AN3 -> 0 | Q10: =Dane!AO3 -> 0 | R10: =Dane!AP3 -> 0 | S10: =Dane!AW3 -> 0 | T10: =Dane!AX3 -> 0 | U10: =Dane!AY3 -> 0 | V10: =Dane!AZ3 -> 0 | W10: =Dane!BG3 -> 0 | X10: =Dane!BH3 -> 0 | Y10: =Dane!BI3 -> 0 | Z10: =Dane!BJ3 -> 0 | AA10: =Dane!BQ3 -> 0 | AB10: =Dane!BR3 -> 0 | AC10: =Dane!BS3 -> 0 | AD10: =Dane!BT3 -> 0 | AE10: =Dane!CA3 -> 0 | AF10: =Dane!CB3 -> 0 | AG10: =Dane!CC3 -> 0 | AH10: =Dane!CD3 -> 0 | AI10: =Dane!CK3 -> 0 | AJ10: =Dane!CL3 -> 0 | AK10: =Dane!CM3 -> 0 | AL10: =Dane!CN3 -> 0
A11: 2 | B11: =Dane!D4&" "&Dane!E4&" "&Dane!F4 -> Agencja Analiz i Doradztwa Personalnego Remigiusz Koc ul. Gdańska 105/4 85-022 Bydgoszcz | C11: =Dane!I4 -> 16,728.00 zł | D11: =Dane!J4 -> 1471 | E11: =Dane!K4 -> 1 | F11: =Dane!L4 -> 0 | G11: =Dane!S4 -> 0 | H11: =Dane!T4 -> 0 | I11: =Dane!U4 -> 0 | J11: =Dane!V4 -> 0 | K11: =Dane!AC4 -> 0 | L11: =Dane!AD4 -> 0 | M11: =Dane!AE4 -> 0 | N11: =Dane!AF4 -> 0 | O11: =Dane!AM4 -> 0 | P11: =Dane!AN4 -> 0 | Q11: =Dane!AO4 -> 0 | R11: =Dane!AP4 -> 0 | S11: =Dane!AW4 -> 0 | T11: =Dane!AX4 -> 0 | U11: =Dane!AY4 -> 0 | V11: =Dane!AZ4 -> 0 | W11: =Dane!BG4 -> 0 | X11: =Dane!BH4 -> 0 | Y11: =Dane!BI4 -> 0 | Z11: =Dane!BJ4 -> 0 | AA11: =Dane!BQ4 -> 0 | AB11: =Dane!BR4 -> 0 | AC11: =Dane!BS4 -> 0 | AD11: =Dane!BT4 -> 0 | AE11: =Dane!CA4 -> 0 | AF11: =Dane!CB4 -> 0 | AG11: =Dane!CC4 -> 0 | AH11: =Dane!CD4 -> 0 | AI11: =Dane!CK4 -> 0 | AJ11: =Dane!CL4 -> 0 | AK11: =Dane!CM4 -> 0 | AL11: =Dane!CN4 -> 0
A12: 3 | B12: =Dane!D5&" "&Dane!E5&" "&Dane!F5 -> IMMOQEE Sp. z o.o. ul. Karola Chodkiewicza 3 lok. U 10 02-593 Warszawa | C12: =Dane!I5 -> 19,500.00 zł | D12: =Dane!J5 -> 600 | E12: =Dane!K5 -> 3 | F12: =Dane!L5 -> 0 | G12: =Dane!S5 -> 0 | H12: =Dane!T5 -> 0 | I12: =Dane!U5 -> 0 | J12: =Dane!V5 -> 0 | K12: =Dane!AC5 -> 0 | L12: =Dane!AD5 -> 0 | M12: =Dane!AE5 -> 0 | N12: =Dane!AF5 -> 0 | O12: =Dane!AM5 -> 0 | P12: =Dane!AN5 -> 0 | Q12: =Dane!AO5 -> 0 | R12: =Dane!AP5 -> 0 | S12: =Dane!AW5 -> 0 | T12: =Dane!AX5 -> 0 | U12: =Dane!AY5 -> 0 | V12: =Dane!AZ5 -> 0 | W12: =Dane!BG5 -> 0 | X12: =Dane!BH5 -> 0 | Y12: =Dane!BI5 -> 0 | Z12: =Dane!BJ5 -> 0 | AA12: =Dane!BQ5 -> 0 | AB12: =Dane!BR5 -> 0 | AC12: =Dane!BS5 -> 0 | AD12: =Dane!BT5 -> 0 | AE12: =Dane!CA5 -> 0 | AF12: =Dane!CB5 -> 0 | AG12: =Dane!CC5 -> 0 | AH12: =Dane!CD5 -> 0 | AI12: =Dane!CK5 -> 0 | AJ12: =Dane!CL5 -> 0 | AK12: =Dane!CM5 -> 0 | AL12: =Dane!CN5 -> 0
A13: 4 | B13: =Dane!D6&" "&Dane!E6&" "&Dane!F6 -> Brainstorm Group Sp. z o.o. ul. Perła 10 41-300 Dabrowa Górnicza | C13: =Dane!I6 -> 73,800.00 zł | D13: =Dane!J6 -> 1916 | E13: =Dane!K6 -> 1 | F13: =Dane!L6 -> 0 | G13: =Dane!S6 -> 0 | H13: =Dane!T6 -> 0 | I13: =Dane!U6 -> 0 | J13: =Dane!V6 -> 0 | K13: =Dane!AC6 -> 0 | L13: =Dane!AD6 -> 0 | M13: =Dane!AE6 -> 0 | N13: =Dane!AF6 -> 0 | O13: =Dane!AM6 -> 0 | P13: =Dane!AN6 -> 0 | Q13: =Dane!AO6 -> 0 | R13: =Dane!AP6 -> 0 | S13: =Dane!AW6 -> 0 | T13: =Dane!AX6 -> 0 | U13: =Dane!AY6 -> 0 | V13: =Dane!AZ6 -> 0 | W13: =Dane!BG6 -> 0 | X13: =Dane!BH6 -> 0 | Y13: =Dane!BI6 -> 0 | Z13: =Dane!BJ6 -> 0 | AA13: =Dane!BQ6 -> 0 | AB13: =Dane!BR6 -> 0 | AC13: =Dane!BS6 -> 0 | AD13: =Dane!BT6 -> 0 | AE13: =Dane!CA6 -> 0 | AF13: =Dane!CB6 -> 0 | AG13: =Dane!CC6 -> 0 | AH13: =Dane!CD6 -> 0 | AI13: =Dane!CK6 -> 0 | AJ13: =Dane!CL6 -> 0 | AK13: =Dane!CM6 -> 0 | AL13: =Dane!CN6 -> 0
A14: 5 | B14: =Dane!D7&" "&Dane!E7&" "&Dane!F7 -> Slow Life&Business ul. Szafirowa 78 63-460 Nowe Skalmierzyce | C14: =Dane!I7 -> warsztat jednodniowy 1000,00zł netto, warsztat dwudniowy 1800,00zł | D14: =Dane!J7 -> 570 | E14: =Dane!K7 -> między 10 a 16 lipca br. | F14: =Dane!L7 -> 0 | G14: =Dane!S7 -> 0 | H14: =Dane!T7 -> 0 | I14: =Dane!U7 -> 0 | J14: =Dane!V7 -> 0 | K14: =Dane!AC7 -> 0 | L14: =Dane!AD7 -> 0 | M14: =Dane!AE7 -> 0 | N14: =Dane!AF7 -> 0 | O14: =Dane!AM7 -> 0 | P14: =Dane!AN7 -> 0 | Q14: =Dane!AO7 -> 0 | R14: =Dane!AP7 -> 0 | S14: =Dane!AW7 -> 0 | T14: =Dane!AX7 -> 0 | U14: =Dane!AY7 -> 0 | V14: =Dane!AZ7 -> 0 | W14: =Dane!BG7 -> 0 | X14: =Dane!BH7 -> 0 | Y14: =Dane!BI7 -> 0 | Z14: =Dane!BJ7 -> 0 | AA14: =Dane!BQ7 -> 0 | AB14: =Dane!BR7 -> 0 | AC14: =Dane!BS7 -> 0 | AD14: =Dane!BT7 -> 0 | AE14: =Dane!CA7 -> 0 | AF14: =Dane!CB7 -> 0 | AG14: =Dane!CC7 -> 0 | AH14: =Dane!CD7 -> 0 | AI14: =Dane!CK7 -> 0 | AJ14: =Dane!CL7 -> 0 | AK14: =Dane!CM7 -> 0 | AL14: =Dane!CN7 -> 0
A15: 6 | B15: =Dane!D8&" "&Dane!E8&" "&Dane!F8 -> RAJOS COSULTING Rafał Stelmasik ul. C.K.Norwida 1 37-550 Radymno | C15: =Dane!I8 -> 10,880.00 zł | D15: =Dane!J8 -> 300 | E15: =Dane!K8 -> 3 | F15: =Dane!L8 -> 0 | G15: =Dane!S8 -> 0 | H15: =Dane!T8 -> 0 | I15: =Dane!U8 -> 0 | J15: =Dane!V8 -> 0 | K15: =Dane!AC8 -> 0 | L15: =Dane!AD8 -> 0 | M15: =Dane!AE8 -> 0 | N15: =Dane!AF8 -> 0 | O15: =Dane!AM8 -> 0 | P15: =Dane!AN8 -> 0 | Q15: =Dane!AO8 -> 0 | R15: =Dane!AP8 -> 0 | S15: =Dane!AW8 -> 0 | T15: =Dane!AX8 -> 0 | U15: =Dane!AY8 -> 0 | V15: =Dane!AZ8 -> 0 | W15: =Dane!BG8 -> 0 | X15: =Dane!BH8 -> 0 | Y15: =Dane!BI8 -> 0 | Z15: =Dane!BJ8 -> 0 | AA15: =Dane!BQ8 -> 0 | AB15: =Dane!BR8 -> 0 | AC15: =Dane!BS8 -> 0 | AD15: =Dane!BT8 -> 0 | AE15: =Dane!CA8 -> 0 | AF15: =Dane!CB8 -> 0 | AG15: =Dane!CC8 -> 0 | AH15: =Dane!CD8 -> 0 | AI15: =Dane!CK8 -> 0 | AJ15: =Dane!CL8 -> 0 | AK15: =Dane!CM8 -> 0 | AL15: =Dane!CN8 -> 0
A16: 7 | B16: =Dane!D9&" "&Dane!E9&" "&Dane!F9 -> Centrum Szkoleń Wielozawodowych DELTA ul. Sandomierska 26a pokój nr 9 27-400 Ostrowiec w. | C16: =Dane!I9 -> 10,055.00 zł | D16: =Dane!J9 -> 300 | E16: =Dane!K9 -> 2 | F16: =Dane!L9 -> 0 | G16: =Dane!S9 -> 0 | H16: =Dane!T9 -> 0 | I16: =Dane!U9 -> 0 | J16: =Dane!V9 -> 0 | K16: =Dane!AC9 -> 0 | L16: =Dane!AD9 -> 0 | M16: =Dane!AE9 -> 0 | N16: =Dane!AF9 -> 0 | O16: =Dane!AM9 -> 0 | P16: =Dane!AN9 -> 0 | Q16: =Dane!AO9 -> 0 | R16: =Dane!AP9 -> 0 | S16: =Dane!AW9 -> 0 | T16: =Dane!AX9 -> 0 | U16: =Dane!AY9 -> 0 | V16: =Dane!AZ9 -> 0 | W16: =Dane!BG9 -> 0 | X16: =Dane!BH9 -> 0 | Y16: =Dane!BI9 -> 0 | Z16: =Dane!BJ9 -> 0 | AA16: =Dane!BQ9 -> 0 | AB16: =Dane!BR9 -> 0 | AC16: =Dane!BS9 -> 0 | AD16: =Dane!BT9 -> 0 | AE16: =Dane!CA9 -> 0 | AF16: =Dane!CB9 -> 0 | AG16: =Dane!CC9 -> 0 | AH16: =Dane!CD9 -> 0 | AI16: =Dane!CK9 -> 0 | AJ16: =Dane!CL9 -> 0 | AK16: =Dane!CM9 -> 0 | AL16: =Dane!CN9 -> 0
A17: 8 | B17: =Dane!D10&" "&Dane!E10&" "&Dane!F10 -> Coach and Go Joanna Chorwacka ul. Sosnowa 6d 86-300 Grudziądz | C17: =Dane!I10 -> 16,000.00 zł | D17: =Dane!J10 -> 500 | E17: =Dane!K10 -> 2 | F17: =Dane!L10 -> 0 | G17: =Dane!S10 -> 0 | H17: =Dane!T10 -> 0 | I17: =Dane!U10 -> 0 | J17: =Dane!V10 -> 0 | K17: =Dane!AC10 -> 0 | L17: =Dane!AD10 -> 0 | M17: =Dane!AE10 -> 0 | N17: =Dane!AF10 -> 0 | O17: =Dane!AM10 -> 0 | P17: =Dane!AN10 -> 0 | Q17: =Dane!AO10 -> 0 | R17: =Dane!AP10 -> 0 | S17: =Dane!AW10 -> 0 | T17: =Dane!AX10 -> 0 | U17: =Dane!AY10 -> 0 | V17: =Dane!AZ10 -> 0 | W17: =Dane!BG10 -> 0 | X17: =Dane!BH10 -> 0 | Y17: =Dane!BI10 -> 0 | Z17: =Dane!BJ10 -> 0 | AA17: =Dane!BQ10 -> 0 | AB17: =Dane!BR10 -> 0 | AC17: =Dane!BS10 -> 0 | AD17: =Dane!BT10 -> 0 | AE17: =Dane!CA10 -> 0 | AF17: =Dane!CB10 -> 0 | AG17: =Dane!CC10 -> 0 | AH17: =Dane!CD10 -> 0 | AI17: =Dane!CK10 -> 0 | AJ17: =Dane!CL10 -> 0 | AK17: =Dane!CM10 -> 0 | AL17: =Dane!CN10 -> 0
A18: 9 | B18: =Dane!D11&" "&Dane!E11&" "&Dane!F11 -> Moja Firma Elzbieta Kowalska ul. Uniwersytecka 33/35 lok. 36 90-233 Łódź | C18: =Dane!I11 -> 32,000.00 zł | D18: =Dane!J11 -> 3038 | E18: =Dane!K11 -> 1 | F18: =Dane!L11 -> 0 | G18: =Dane!S11 -> 0 | H18: =Dane!T11 -> 0 | I18: =Dane!U11 -> 0 | J18: =Dane!V11 -> 0 | K18: =Dane!AC11 -> 0 | L18: =Dane!AD11 -> 0 | M18: =Dane!AE11 -> 0 | N18: =Dane!AF11 -> 0 | O18: =Dane!AM11 -> 0 | P18: =Dane!AN11 -> 0 | Q18: =Dane!AO11 -> 0 | R18: =Dane!AP11 -> 0 | S18: =Dane!AW11 -> 0 | T18: =Dane!AX11 -> 0 | U18: =Dane!AY11 -> 0 | V18: =Dane!AZ11 -> 0 | W18: =Dane!BG11 -> 0 | X18: =Dane!BH11 -> 0 | Y18: =Dane!BI11 -> 0 | Z18: =Dane!BJ11 -> 0 | AA18: =Dane!BQ11 -> 0 | AB18: =Dane!BR11 -> 0 | AC18: =Dane!BS11 -> 0 | AD18: =Dane!BT11 -> 0 | AE18: =Dane!CA11 -> 0 | AF18: =Dane!CB11 -> 0 | AG18: =Dane!CC11 -> 0 | AH18: =Dane!CD11 -> 0 | AI18: =Dane!CK11 -> 0 | AJ18: =Dane!CL11 -> 0 | AK18: =Dane!CM11 -> 0 | AL18: =Dane!CN11 -> 0
A19: 10 | B19: =Dane!D12&" "&Dane!E12&" "&Dane!F12 -> LCE LOGOS Centrum Edukacyjne ul. Ks.Kard.Wyszyńskiego 6 lok 44 18-400 Łomża | C19: =Dane!I12 -> 12,160.00 zł | D19: =Dane!J12 -> 922 | E19: =Dane!K12 -> 1 | F19: =Dane!L12 -> 0 | G19: =Dane!S12 -> 0 | H19: =Dane!T12 -> 0 | I19: =Dane!U12 -> 0 | J19: =Dane!V12 -> 0 | K19: =Dane!AC12 -> 0 | L19: =Dane!AD12 -> 0 | M19: =Dane!AE12 -> 0 | N19: =Dane!AF12 -> 0 | O19: =Dane!AM12 -> 0 | P19: =Dane!AN12 -> 0 | Q19: =Dane!AO12 -> 0 | R19: =Dane!AP12 -> 0 | S19: =Dane!AW12 -> 0 | T19: =Dane!AX12 -> 0 | U19: =Dane!AY12 -> 0 | V19: =Dane!AZ12 -> 0 | W19: =Dane!BG12 -> 0 | X19: =Dane!BH12 -> 0 | Y19: =Dane!BI12 -> 0 | Z19: =Dane!BJ12 -> 0 | AA19: =Dane!BQ12 -> 0 | AB19: =Dane!BR12 -> 0 | AC19: =Dane!BS12 -> 0 | AD19: =Dane!BT12 -> 0 | AE19: =Dane!CA12 -> 0 | AF19: =Dane!CB12 -> 0 | AG19: =Dane!CC12 -> 0 | AH19: =Dane!CD12 -> 0 | AI19: =Dane!CK12 -> 0 | AJ19: =Dane!CL12 -> 0 | AK19: =Dane!CM12 -> 0 | AL19: =Dane!CN12 -> 0
A20: 11 | B20: =Dane!D13&" "&Dane!E13&" "&Dane!F13 -> SEKA S.A. ul. Bernardyńska 13 85-029 Bydgoszcz | C20: =Dane!I13 -> 17,500.00 zł | D20: =Dane!J13 -> 3054 | E20: =Dane!K13 -> 1 | F20: =Dane!L13 -> 0 | G20: =Dane!S13 -> 0 | H20: =Dane!T13 -> 0 | I20: =Dane!U13 -> 0 | J20: =Dane!V13 -> 0 | K20: =Dane!AC13 -> 0 | L20: =Dane!AD13 -> 0 | M20: =Dane!AE13 -> 0 | N20: =Dane!AF13 -> 0 | O20: =Dane!AM13 -> 0 | P20: =Dane!AN13 -> 0 | Q20: =Dane!AO13 -> 0 | R20: =Dane!AP13 -> 0 | S20: =Dane!AW13 -> 0 | T20: =Dane!AX13 -> 0 | U20: =Dane!AY13 -> 0 | V20: =Dane!AZ13 -> 0 | W20: =Dane!BG13 -> 0 | X20: =Dane!BH13 -> 0 | Y20: =Dane!BI13 -> 0 | Z20: =Dane!BJ13 -> 0 | AA20: =Dane!BQ13 -> 0 | AB20: =Dane!BR13 -> 0 | AC20: =Dane!BS13 -> 0 | AD20: =Dane!BT13 -> 0 | AE20: =Dane!CA13 -> 0 | AF20: =Dane!CB13 -> 0 | AG20: =Dane!CC13 -> 0 | AH20: =Dane!CD13 -> 0 | AI20: =Dane!CK13 -> 0 | AJ20: =Dane!CL13 -> 0 | AK20: =Dane!CM13 -> 0 | AL20: =Dane!CN13 -> 0
A21: 12 | B21: =Dane!D14&" "&Dane!E14&" "&Dane!F14 -> Polska Akademia Oświaty Sp. z o.o. ul. Krańcowa 17/1 02-493 Warszawa | C21: =Dane!I14 -> 32,000.00 zł | D21: =Dane!J14 -> 6058 | E21: =Dane!K14 -> 1 | F21: =Dane!L14 -> 0 | G21: =Dane!S14 -> 0 | H21: =Dane!T14 -> 0 | I21: =Dane!U14 -> 0 | J21: =Dane!V14 -> 0 | K21: =Dane!AC14 -> 0 | L21: =Dane!AD14 -> 0 | M21: =Dane!AE14 -> 0 | N21: =Dane!AF14 -> 0 | O21: =Dane!AM14 -> 0 | P21: =Dane!AN14 -> 0 | Q21: =Dane!AO14 -> 0 | R21: =Dane!AP14 -> 0 | S21: =Dane!AW14 -> 0 | T21: =Dane!AX14 -> 0 | U21: =Dane!AY14 -> 0 | V21: =Dane!AZ14 -> 0 | W21: =Dane!BG14 -> 0 | X21: =Dane!BH14 -> 0 | Y21: =Dane!BI14 -> 0 | Z21: =Dane!BJ14 -> 0 | AA21: =Dane!BQ14 -> 0 | AB21: =Dane!BR14 -> 0 | AC21: =Dane!BS14 -> 0 | AD21: =Dane!BT14 -> 0 | AE21: =Dane!CA14 -> 0 | AF21: =Dane!CB14 -> 0 | AG21: =Dane!CC14 -> 0 | AH21: =Dane!CD14 -> 0 | AI21: =Dane!CK14 -> 0 | AJ21: =Dane!CL14 -> 0 | AK21: =Dane!CM14 -> 0 | AL21: =Dane!CN14 -> 0
A22: 13 | B22: =Dane!D15&" "&Dane!E15&" "&Dane!F15 -> 0 0 0 | C22: =Dane!I15 -> 0 | D22: =Dane!J15 -> 0 | E22: =Dane!K15 -> 0 | F22: =Dane!L15 -> 0 | G22: =Dane!S15 -> 0 | H22: =Dane!T15 -> 0 | I22: =Dane!U15 -> 0 | J22: =Dane!V15 -> 0 | K22: =Dane!AC15 -> 0 | L22: =Dane!AD15 -> 0 | M22: =Dane!AE15 -> 0 | N22: =Dane!AF15 -> 0 | O22: =Dane!AM15 -> 0 | P22: =Dane!AN15 -> 0 | Q22: =Dane!AO15 -> 0 | R22: =Dane!AP15 -> 0 | S22: =Dane!AW15 -> 0 | T22: =Dane!AX15 -> 0 | U22: =Dane!AY15 -> 0 | V22: =Dane!AZ15 -> 0 | W22: =Dane!BG15 -> 0 | X22: =Dane!BH15 -> 0 | Y22: =Dane!BI15 -> 0 | Z22: =Dane!BJ15 -> 0 | AA22: =Dane!BQ15 -> 0 | AB22: =Dane!BR15 -> 0 | AC22: =Dane!BS15 -> 0 | AD22: =Dane!BT15 -> 0 | AE22: =Dane!CA15 -> 0 | AF22: =Dane!CB15 -> 0 | AG22: =Dane!CC15 -> 0 | AH22: =Dane!CD15 -> 0 | AI22: =Dane!CK15 -> 0 | AJ22: =Dane!CL15 -> 0 | AK22: =Dane!CM15 -> 0 | AL22: =Dane!CN15 -> 0
A23: 14 | B23: =Dane!D16&" "&Dane!E16&" "&Dane!F16 -> 0 0 0 | C23: =Dane!I16 -> 0 | D23: =Dane!J16 -> 0 | E23: =Dane!K16 -> 0 | F23: =Dane!L16 -> 0 | G23: =Dane!S16 -> 0 | H23: =Dane!T16 -> 0 | I23: =Dane!U16 -> 0 | J23: =Dane!V16 -> 0 | K23: =Dane!AC16 -> 0 | L23: =Dane!AD16 -> 0 | M23: =Dane!AE16 -> 0 | N23: =Dane!AF16 -> 0 | O23: =Dane!AM16 -> 0 | P23: =Dane!AN16 -> 0 | Q23: =Dane!AO16 -> 0 | R23: =Dane!AP16 -> 0 | S23: =Dane!AW16 -> 0 | T23: =Dane!AX16 -> 0 | U23: =Dane!AY16 -> 0 | V23: =Dane!AZ16 -> 0 | W23: =Dane!BG16 -> 0 | X23: =Dane!BH16 -> 0 | Y23: =Dane!BI16 -> 0 | Z23: =Dane!BJ16 -> 0 | AA23: =Dane!BQ16 -> 0 | AB23: =Dane!BR16 -> 0 | AC23: =Dane!BS16 -> 0 | AD23: =Dane!BT16 -> 0 | AE23: =Dane!CA16 -> 0 | AF23: =Dane!CB16 -> 0 | AG23: =Dane!CC16 -> 0 | AH23: =Dane!CD16 -> 0 | AI23: =Dane!CK16 -> 0 | AJ23: =Dane!CL16 -> 0 | AK23: =Dane!CM16 -> 0 | AL23: =Dane!CN16 -> 0
A24: 15 | B24: =Dane!D17&" "&Dane!E17&" "&Dane!F17 -> 0 0 0 | C24: =Dane!I17 -> 0 | D24: =Dane!J17 -> 0 | E24: =Dane!K17 -> 0 | F24: =Dane!L17 -> 0 | G24: =Dane!S17 -> 0 | H24: =Dane!T17 -> 0 | I24: =Dane!U17 -> 0 | J24: =Dane!V17 -> 0 | K24: =Dane!AC17 -> 0 | L24: =Dane!AD17 -> 0 | M24: =Dane!AE17 -> 0 | N24: =Dane!AF17 -> 0 | O24: =Dane!AM17 -> 0 | P24: =Dane!AN17 -> 0 | Q24: =Dane!AO17 -> 0 | R24: =Dane!AP17 -> 0 | S24: =Dane!AW17 -> 0 | T24: =Dane!AX17 -> 0 | U24: =Dane!AY17 -> 0 | V24: =Dane!AZ17 -> 0 | W24: =Dane!BG17 -> 0 | X24: =Dane!BH17 -> 0 | Y24: =Dane!BI17 -> 0 | Z24: =Dane!BJ17 -> 0 | AA24: =Dane!BQ17 -> 0 | AB24: =Dane!BR17 -> 0 | AC24: =Dane!BS17 -> 0 | AD24: =Dane!BT17 -> 0 | AE24: =Dane!CA17 -> 0 | AF24: =Dane!CB17 -> 0 | AG24: =Dane!CC17 -> 0 | AH24: =Dane!CD17 -> 0 | AI24: =Dane!CK17 -> 0 | AJ24: =Dane!CL17 -> 0 | AK24: =Dane!CM17 -> 0 | AL24: =Dane!CN17 -> 0
A25: 16 | B25: =Dane!D18&" "&Dane!E18&" "&Dane!F18 -> 0 0 0 | C25: =Dane!I18 -> 0 | D25: =Dane!J18 -> 0 | E25: =Dane!K18 -> 0 | F25: =Dane!L18 -> 0 | G25: =Dane!S18 -> 0 | H25: =Dane!T18 -> 0 | I25: =Dane!U18 -> 0 | J25: =Dane!V18 -> 0 | K25: =Dane!AC18 -> 0 | L25: =Dane!AD18 -> 0 | M25: =Dane!AE18 -> 0 | N25: =Dane!AF18 -> 0 | O25: =Dane!AM18 -> 0 | P25: =Dane!AN18 -> 0 | Q25: =Dane!AO18 -> 0 | R25: =Dane!AP18 -> 0 | S25: =Dane!AW18 -> 0 | T25: =Dane!AX18 -> 0 | U25: =Dane!AY18 -> 0 | V25: =Dane!AZ18 -> 0 | W25: =Dane!BG18 -> 0 | X25: =Dane!BH18 -> 0 | Y25: =Dane!BI18 -> 0 | Z25: =Dane!BJ18 -> 0 | AA25: =Dane!BQ18 -> 0 | AB25: =Dane!BR18 -> 0 | AC25: =Dane!BS18 -> 0 | AD25: =Dane!BT18 -> 0 | AE25: =Dane!CA18 -> 0 | AF25: =Dane!CB18 -> 0 | AG25: =Dane!CC18 -> 0 | AH25: =Dane!CD18 -> 0 | AI25: =Dane!CK18 -> 0 | AJ25: =Dane!CL18 -> 0 | AK25: =Dane!CM18 -> 0 | AL25: =Dane!CN18 -> 0
A26: 17 | B26: =Dane!D19&" "&Dane!E19&" "&Dane!F19 -> 0 0 0 | C26: =Dane!I19 -> 0 | D26: =Dane!J19 -> 0 | E26: =Dane!K19 -> 0 | F26: =Dane!L19 -> 0 | G26: =Dane!S19 -> 0 | H26: =Dane!T19 -> 0 | I26: =Dane!U19 -> 0 | J26: =Dane!V19 -> 0 | K26: =Dane!AC19 -> 0 | L26: =Dane!AD19 -> 0 | M26: =Dane!AE19 -> 0 | N26: =Dane!AF19 -> 0 | O26: =Dane!AM19 -> 0 | P26: =Dane!AN19 -> 0 | Q26: =Dane!AO19 -> 0 | R26: =Dane!AP19 -> 0 | S26: =Dane!AW19 -> 0 | T26: =Dane!AX19 -> 0 | U26: =Dane!AY19 -> 0 | V26: =Dane!AZ19 -> 0 | W26: =Dane!BG19 -> 0 | X26: =Dane!BH19 -> 0 | Y26: =Dane!BI19 -> 0 | Z26: =Dane!BJ19 -> 0 | AA26: =Dane!BQ19 -> 0 | AB26: =Dane!BR19 -> 0 | AC26: =Dane!BS19 -> 0 | AD26: =Dane!BT19 -> 0 | AE26: =Dane!CA19 -> 0 | AF26: =Dane!CB19 -> 0 | AG26: =Dane!CC19 -> 0 | AH26: =Dane!CD19 -> 0 | AI26: =Dane!CK19 -> 0 | AJ26: =Dane!CL19 -> 0 | AK26: =Dane!CM19 -> 0 | AL26: =Dane!CN19 -> 0
A27: 18 | B27: =Dane!D20&" "&Dane!E20&" "&Dane!F20 -> 0 0 0 | C27: =Dane!I20 -> 0 | D27: =Dane!J20 -> 0 | E27: =Dane!K20 -> 0 | F27: =Dane!L20 -> 0 | G27: =Dane!S20 -> 0 | H27: =Dane!T20 -> 0 | I27: =Dane!U20 -> 0 | J27: =Dane!V20 -> 0 | K27: =Dane!AC20 -> 0 | L27: =Dane!AD20 -> 0 | M27: =Dane!AE20 -> 0 | N27: =Dane!AF20 -> 0 | O27: =Dane!AM20 -> 0 | P27: =Dane!AN20 -> 0 | Q27: =Dane!AO20 -> 0 | R27: =Dane!AP20 -> 0 | S27: =Dane!AW20 -> 0 | T27: =Dane!AX20 -> 0 | U27: =Dane!AY20 -> 0 | V27: =Dane!AZ20 -> 0 | W27: =Dane!BG20 -> 0 | X27: =Dane!BH20 -> 0 | Y27: =Dane!BI20 -> 0 | Z27: =Dane!BJ20 -> 0 | AA27: =Dane!BQ20 -> 0 | AB27: =Dane!BR20 -> 0 | AC27: =Dane!BS20 -> 0 | AD27: =Dane!BT20 -> 0 | AE27: =Dane!CA20 -> 0 | AF27: =Dane!CB20 -> 0 | AG27: =Dane!CC20 -> 0 | AH27: =Dane!CD20 -> 0 | AI27: =Dane!CK20 -> 0 | AJ27: =Dane!CL20 -> 0 | AK27: =Dane!CM20 -> 0 | AL27: =Dane!CN20 -> 0
A28: 19 | B28: =Dane!D21&" "&Dane!E21&" "&Dane!F21 -> 0 0 0 | C28: =Dane!I21 -> 0 | D28: =Dane!J21 -> 0 | E28: =Dane!K21 -> 0 | F28: =Dane!L21 -> 0 | G28: =Dane!S21 -> 0 | H28: =Dane!T21 -> 0 | I28: =Dane!U21 -> 0 | J28: =Dane!V21 -> 0 | K28: =Dane!AC21 -> 0 | L28: =Dane!AD21 -> 0 | M28: =Dane!AE21 -> 0 | N28: =Dane!AF21 -> 0 | O28: =Dane!AM21 -> 0 | P28: =Dane!AN21 -> 0 | Q28: =Dane!AO21 -> 0 | R28: =Dane!AP21 -> 0 | S28: =Dane!AW21 -> 0 | T28: =Dane!AX21 -> 0 | U28: =Dane!AY21 -> 0 | V28: =Dane!AZ21 -> 0 | W28: =Dane!BG21 -> 0 | X28: =Dane!BH21 -> 0 | Y28: =Dane!BI21 -> 0 | Z28: =Dane!BJ21 -> 0 | AA28: =Dane!BQ21 -> 0 | AB28: =Dane!BR21 -> 0 | AC28: =Dane!BS21 -> 0 | AD28: =Dane!BT21 -> 0 | AE28: =Dane!CA21 -> 0 | AF28: =Dane!CB21 -> 0 | AG28: =Dane!CC21 -> 0 | AH28: =Dane!CD21 -> 0 | AI28: =Dane!CK21 -> 0 | AJ28: =Dane!CL21 -> 0 | AK28: =Dane!CM21 -> 0 | AL28: =Dane!CN21 -> 0
A29: 20 | B29: =Dane!D22&" "&Dane!E22&" "&Dane!F22 -> 0 0 0 | C29: =Dane!I22 -> 0 | D29: =Dane!J22 -> 0 | E29: =Dane!K22 -> 0 | F29: =Dane!L22 -> 0 | G29: =Dane!S22 -> 0 | H29: =Dane!T22 -> 0 | I29: =Dane!U22 -> 0 | J29: =Dane!V22 -> 0 | K29: =Dane!AC22 -> 0 | L29: =Dane!AD22 -> 0 | M29: =Dane!AE22 -> 0 | N29: =Dane!AF22 -> 0 | O29: =Dane!AM22 -> 0 | P29: =Dane!AN22 -> 0 | Q29: =Dane!AO22 -> 0 | R29: =Dane!AP22 -> 0 | S29: =Dane!AW22 -> 0 | T29: =Dane!AX22 -> 0 | U29: =Dane!AY22 -> 0 | V29: =Dane!AZ22 -> 0 | W29: =Dane!BG22 -> 0 | X29: =Dane!BH22 -> 0 | Y29: =Dane!BI22 -> 0 | Z29: =Dane!BJ22 -> 0 | AA29: =Dane!BQ22 -> 0 | AB29: =Dane!BR22 -> 0 | AC29: =Dane!BS22 -> 0 | AD29: =Dane!BT22 -> 0 | AE29: =Dane!CA22 -> 0 | AF29: =Dane!CB22 -> 0 | AG29: =Dane!CC22 -> 0 | AH29: =Dane!CD22 -> 0 | AI29: =Dane!CK22 -> 0 | AJ29: =Dane!CL22 -> 0 | AK29: =Dane!CM22 -> 0 | AL29: =Dane!CN22 -> 0
A31: Termin wykonania zamówienia: I warsztat …. dni od dnia podpisania umowy do 31.07.2018r. Okres gwarancji: nie dotyczy Warunki płatności: przelew 30 dni
A33: UWAGA: Wykonawca w terminie 3 dni od dnia zamieszczenia na stronie internetowej Zamawiającego informacji, o której mowa w art. 86 ust. 5 ustawy Pzp, przekaże Zamawiającemu oświadczenie w formie pisemnej o przynależności lub braku przynależności do tej samej grupy kapitałowej, o której mowa w art. 24 ust. 1 pkt 23 ustawy Pzp. Wraz ze złożonym oświadczeniem, wykonawca może przedstawić dowody, że powiązania z innym Wykonawcą nie prowadzą do zakłócenia konkurencji w postepowaniu o udzielenie zamówienia.

Sheet Punktacja
B1: R/M | C1: =Wnioski!$K2 -> M | D1: =Wnioski!$N2 -> R | E1: =Wnioski!$Q2 -> M | F1: =Wnioski!$T2 -> 0 | H1: =Wnioski!$K3 -> M | I1: =Wnioski!$N3 -> 0 | J1: =Wnioski!$Q3 -> 0 | K1: =Wnioski!$T3 -> 0 | M1: =Wnioski!$K4 -> M | N1: =Wnioski!$N4 -> 0 | O1: =Wnioski!$Q4 -> 0 | P1: =Wnioski!$T4 -> 0 | R1: =Wnioski!$K5 -> M | S1: =Wnioski!$N5 -> 0 | T1: =Wnioski!$Q5 -> 0 | U1: =Wnioski!$T5 -> 0 | W1: =Wnioski!$K6 -> M | X1: =Wnioski!$N6 -> 0 | Y1: =Wnioski!$Q6 -> 0 | Z1: =Wnioski!$T6 -> 0 | AB1: =Wnioski!$K7 -> M | AC1: =Wnioski!$N7 -> 0 | AD1: =Wnioski!$Q7 -> 0 | AE1: =Wnioski!$T7 -> 0 | AG1: =Wnioski!$K8 -> M | AH1: =Wnioski!$N8 -> 0 | AI1: =Wnioski!$Q8 -> 0 | AJ1: =Wnioski!$T8 -> 0 | AL1: =Wnioski!$K9 -> M | AM1: =Wnioski!$N9 -> 0 | AN1: =Wnioski!$Q9 -> 0 | AO1: =Wnioski!$T9 -> 0 | AQ1: =Wnioski!$K10 -> M | AR1: =Wnioski!$N10 -> 0 | AS1: =Wnioski!$Q10 -> 0 | AT1: =Wnioski!$T10 -> 0
B2: Waga | C2: =Wnioski!$J2 -> 50 | D2: =Wnioski!$M2 -> 40 | E2: =Wnioski!$P2 -> 10 | F2: =Wnioski!$S2 -> 0 | H2: =Wnioski!$J3 -> 60 | I2: =Wnioski!$M3 -> 0 | J2: =Wnioski!$P3 -> 0 | K2: =Wnioski!$S3 -> 0 | M2: =Wnioski!$J4 -> 60 | N2: =Wnioski!$M4 -> 0 | O2: =Wnioski!$P4 -> 0 | P2: =Wnioski!$S4 -> 0 | R2: =Wnioski!$J5 -> 60 | S2: =Wnioski!$M5 -> 0 | T2: =Wnioski!$P5 -> 0 | U2: =Wnioski!$S5 -> 0 | W2: =Wnioski!$J6 -> 60 | X2: =Wnioski!$M6 -> 0 | Y2: =Wnioski!$P6 -> 0 | Z2: =Wnioski!$S6 -> 0 | AB2: =Wnioski!$J7 -> 60 | AC2: =Wnioski!$M7 -> 0 | AD2: =Wnioski!$P7 -> 0 | AE2: =Wnioski!$S7 -> 0 | AG2: =Wnioski!$J8 -> 60 | AH2: =Wnioski!$M8 -> 0 | AI2: =Wnioski!$P8 -> 0 | AJ2: =Wnioski!$S8 -> 0 | AL2: =Wnioski!$J9 -> 60 | AM2: =Wnioski!$M9 -> 0 | AN2: =Wnioski!$P9 -> 0 | AO2: =Wnioski!$S9 -> 0 | AQ2: =Wnioski!$J10 -> 60 | AR2: =Wnioski!$M10 -> 0 | AS2: =Wnioski!$P10 -> 0 | AT2: =Wnioski!$S10 -> 0
A3: =Zestawienie!A8 -> Nr oferty | B3: Nazwa Wykonawcy | H3: =Zestawienie!G8 -> Zadanie 2 | I3: =Zestawienie!H8 -> 0 | M3: =Zestawienie!K8 -> Zadanie 3 | N3: =Zestawienie!L8 -> 0 | R3: =Zestawienie!O8 -> Zadanie 4 | S3: =Zestawienie!P8 -> 0 | W3: =Zestawienie!S8 -> Zadanie 5 | X3: =Zestawienie!T8 -> 0 | AB3: =Zestawienie!W8 -> Zadanie 6 | AC3: =Zestawienie!X8 -> 0 | AG3: =Zestawienie!AA8 -> Zadanie 7 | AH3: =Zestawienie!AB8 -> 0 | AL3: =Zestawienie!AE8 -> Zadanie 8 | AM3: =Zestawienie!AF8 -> 0 | AQ3: =Zestawienie!AI8 -> Zadanie 9 | AR3: =Zestawienie!AJ8 -> 0
A4: =Zestawienie!A9 -> 0 | B4: 0 | C4: =Zestawienie!C9 -> Cena - 50% | D4: =Zestawienie!D9 -> Doświadczenie trenera w realizacji szkolen/warsztetów interpersonalnych ( w godzinach) 40% | E4: =Zestawienie!E9 -> Termin przeprowadzenia I Warsztatu (w dniach) 10% | F4: =Zestawienie!F9 -> % | G4: Razem | H4: =Zestawienie!G9 -> Cena - 60% | I4: =Zestawienie!H9 -> % | J4: =Zestawienie!I9 -> % | K4: =Zestawienie!J9 -> % | L4: Razem | M4: =Zestawienie!K9 -> Cena - 60% | N4: =Zestawienie!L9 -> % | O4: =Zestawienie!M9 -> % | P4: =Zestawienie!N9 -> % | Q4: Razem | R4: =Zestawienie!O9 -> Cena - 60% | S4: =Zestawienie!P9 -> % | T4: =Zestawienie!Q9 -> % | U4: =Zestawienie!R9 -> % | V4: Razem | W4: =Zestawienie!S9 -> Cena - 60% | X4: =Zestawienie!T9 -> % | Y4: =Zestawienie!U9 -> % | Z4: =Zestawienie!V9 -> % | AA4: Razem | AB4: =Zestawienie!W9 -> Cena - 60% | AC4: =Zestawienie!X9 -> % | AD4: =Zestawienie!Y9 -> % | AE4: =Zestawienie!Z9 -> % | AF4: Razem | AG4: =Zestawienie!AA9 -> Cena - 60% | AH4: =Zestawienie!AB9 -> % | AI4: =Zestawienie!AC9 -> % | AJ4: =Zestawienie!AD9 -> % | AK4: Razem | AL4: =Zestawienie!AE9 -> Cena - 60% | AM4: =Zestawienie!AF9 -> % | AN4: =Zestawienie!AG9 -> % | AO4: =Zestawienie!AH9 -> % | AP4: Razem | AQ4: =Zestawienie!AI9 -> Cena - 60% | AR4: =Zestawienie!AJ9 -> Okres gwarancji (w miesiącach) - % | AS4: =Zestawienie!AK9 -> Termin płatności (w dniach) - % | AT4: =Zestawienie!AL9 -> % | AU4: Razem
A5: =Zestawienie!A10 -> 1 | B5: =Dane!D3 -> Nowoczesny Osrodek Edukacji Anna Ratuszniak | C5: =IF(Zestawienie!C10>0,Zestawienie!C10,"ZERO") -> 30000 | D5: =IF(Zestawienie!D10>0,Zestawienie!D10,"ZERO") -> 4256 | E5: =IF(Zestawienie!E10>0,Zestawienie!E10,"ZERO") -> 1 | F5: =IF(Zestawienie!F10>0,Zestawienie!F10,"ZERO") -> ZERO | H5: =IF(Zestawienie!G10>0,Zestawienie!G10,"ZERO") -> ZERO | I5: =IF(Zestawienie!H10>0,Zestawienie!H10,"ZERO") -> ZERO | J5: =IF(Zestawienie!I10>0,Zestawienie!I10,"ZERO") -> ZERO | K5: =IF(Zestawienie!J10>0,Zestawienie!J10,"ZERO") -> ZERO | M5: =IF(Zestawienie!K10>0,Zestawienie!K10,"ZERO") -> ZERO | N5: =IF(Zestawienie!L10>0,Zestawienie!L10,"ZERO") -> ZERO | O5: =IF(Zestawienie!M10>0,Zestawienie!M10,"ZERO") -> ZERO | P5: =IF(Zestawienie!N10>0,Zestawienie!N10,"ZERO") -> ZERO | R5: =IF(Zestawienie!O10>0,Zestawienie!O10,"ZERO") -> ZERO | S5: =IF(Zestawienie!P10>0,Zestawienie!P10,"ZERO") -> ZERO | T5: =IF(Zestawienie!Q10>0,Zestawienie!Q10,"ZERO") -> ZERO | U5: =IF(Zestawienie!R10>0,Zestawienie!R10,"ZERO") -> ZERO | W5: =IF(Zestawienie!S10>0,Zestawienie!S10,"ZERO") -> ZERO | X5: =IF(Zestawienie!T10>0,Zestawienie!T10,"ZERO") -> ZERO | Y5: =IF(Zestawienie!U10>0,Zestawienie!U10,"ZERO") -> ZERO | Z5: =IF(Zestawienie!V10>0,Zestawienie!V10,"ZERO") -> ZERO | AB5: =IF(Zestawienie!W10>0,Zestawienie!W10,"ZERO") -> ZERO | AC5: =IF(Zestawienie!X10>0,Zestawienie!X10,"ZERO") -> ZERO | AD5: =IF(Zestawienie!Y10>0,Zestawienie!Y10,"ZERO") -> ZERO | AE5: =IF(Zestawienie!Z10>0,Zestawienie!Z10,"ZERO") -> ZERO | AG5: =IF(Zestawienie!AA10>0,Zestawienie!AA10,"ZERO") -> ZERO | AH5: =IF(Zestawienie!AB10>0,Zestawienie!AB10,"ZERO") -> ZERO | AI5: =IF(Zestawienie!AC10>0,Zestawienie!AC10,"ZERO") -> ZERO | AJ5: =IF(Zestawienie!AD10>0,Zestawienie!AD10,"ZERO") -> ZERO | AL5: =IF(Zestawienie!AE10>0,Zestawienie!AE10,"ZERO") -> ZERO | AM5: =IF(Zestawienie!AF10>0,Zestawienie!AF10,"ZERO") -> ZERO | AN5: =IF(Zestawienie!AG10>0,Zestawienie!AG10,"ZERO") -> ZERO | AO5: =IF(Zestawienie!AH10>0,Zestawienie!AH10,"ZERO") -> ZERO | AQ5: =IF(Zestawienie!AI10>0,Zestawienie!AI10,"ZERO") -> ZERO | AR5: =IF(Zestawienie!AJ10>0,Zestawienie!AJ10,"ZERO") -> ZERO | AS5: =IF(Zestawienie!AK10>0,Zestawienie!AK10,"ZERO") -> ZERO | AT5: =IF(Zestawienie!AL10>0,Zestawienie!AL10,"ZERO") -> ZERO
A6: =Zestawienie!A11 -> 2 | B6: =Dane!D4 -> Agencja Analiz i Doradztwa Personalnego Remigiusz Koc | C6: =IF(Zestawienie!C11>0,Zestawienie!C11,"ZERO") -> 16728 | D6: =IF(Zestawienie!D11>0,Zestawienie!D11,"ZERO") -> 1471 | E6: =IF(Zestawienie!E11>0,Zestawienie!E11,"ZERO") -> 1 | F6: =IF(Zestawienie!F11>0,Zestawienie!F11,"ZERO") -> ZERO | H6: =IF(Zestawienie!G11>0,Zestawienie!G11,"ZERO") -> ZERO | I6: =IF(Zestawienie!H11>0,Zestawienie!H11,"ZERO") -> ZERO | J6: =IF(Zestawienie!I11>0,Zestawienie!I11,"ZERO") -> ZERO | K6: =IF(Zestawienie!J11>0,Zestawienie!J11,"ZERO") -> ZERO | M6: =IF(Zestawienie!K11>0,Zestawienie!K11,"ZERO") -> ZERO | N6: =IF(Zestawienie!L11>0,Zestawienie!L11,"ZERO") -> ZERO | O6: =IF(Zestawienie!M11>0,Zestawienie!M11,"ZERO") -> ZERO | P6: =IF(Zestawienie!N11>0,Zestawienie!N11,"ZERO") -> ZERO | R6: =IF(Zestawienie!O11>0,Zestawienie!O11,"ZERO") -> ZERO | S6: =IF(Zestawienie!P11>0,Zestawienie!P11,"ZERO") -> ZERO | T6: =IF(Zestawienie!Q11>0,Zestawienie!Q11,"ZERO") -> ZERO | U6: =IF(Zestawienie!R11>0,Zestawienie!R11,"ZERO") -> ZERO | W6: =IF(Zestawienie!S11>0,Zestawienie!S11,"ZERO") -> ZERO | X6: =IF(Zestawienie!T11>0,Zestawienie!T11,"ZERO") -> ZERO | Y6: =IF(Zestawienie!U11>0,Zestawienie!U11,"ZERO") -> ZERO | Z6: =IF(Zestawienie!V11>0,Zestawienie!V11,"ZERO") -> ZERO | AB6: =IF(Zestawienie!W11>0,Zestawienie!W11,"ZERO") -> ZERO | AC6: =IF(Zestawienie!X11>0,Zestawienie!X11,"ZERO") -> ZERO | AD6: =IF(Zestawienie!Y11>0,Zestawienie!Y11,"ZERO") -> ZERO | AE6: =IF(Zestawienie!Z11>0,Zestawienie!Z11,"ZERO") -> ZERO | AG6: =IF(Zestawienie!AA11>0,Zestawienie!AA11,"ZERO") -> ZERO | AH6: =IF(Zestawienie!AB11>0,Zestawienie!AB11,"ZERO") -> ZERO | AI6: =IF(Zestawienie!AC11>0,Zestawienie!AC11,"ZERO") -> ZERO | AJ6: =IF(Zestawienie!AD11>0,Zestawienie!AD11,"ZERO") -> ZERO | AL6: =IF(Zestawienie!AE11>0,Zestawienie!AE11,"ZERO") -> ZERO | AM6: =IF(Zestawienie!AF11>0,Zestawienie!AF11,"ZERO") -> ZERO | AN6: =IF(Zestawienie!AG11>0,Zestawienie!AG11,"ZERO") -> ZERO | AO6: =IF(Zestawienie!AH11>0,Zestawienie!AH11,"ZERO") -> ZERO | AQ6: =IF(Zestawienie!AI11>0,Zestawienie!AI11,"ZERO") -> ZERO | AR6: =IF(Zestawienie!AJ11>0,Zestawienie!AJ11,"ZERO") -> ZERO | AS6: =IF(Zestawienie!AK11>0,Zestawienie!AK11,"ZERO") -> ZERO | AT6: =IF(Zestawienie!AL11>0,Zestawienie!AL11,"ZERO") -> ZERO
A7: =Zestawienie!A12 -> 3 | B7: =Dane!D5 -> IMMOQEE Sp. z o.o. | C7: =IF(Zestawienie!C12>0,Zestawienie!C12,"ZERO") -> 19500 | D7: =IF(Zestawienie!D12>0,Zestawienie!D12,"ZERO") -> 600 | E7: =IF(Zestawienie!E12>0,Zestawienie!E12,"ZERO") -> 3 | F7: =IF(Zestawienie!F12>0,Zestawienie!F12,"ZERO") -> ZERO | H7: =IF(Zestawienie!G12>0,Zestawienie!G12,"ZERO") -> ZERO | I7: =IF(Zestawienie!H12>0,Zestawienie!H12,"ZERO") -> ZERO | J7: =IF(Zestawienie!I12>0,Zestawienie!I12,"ZERO") -> ZERO | K7: =IF(Zestawienie!J12>0,Zestawienie!J12,"ZERO") -> ZERO | M7: =IF(Zestawienie!K12>0,Zestawienie!K12,"ZERO") -> ZERO | N7: =IF(Zestawienie!L12>0,Zestawienie!L12,"ZERO") -> ZERO | O7: =IF(Zestawienie!M12>0,Zestawienie!M12,"ZERO") -> ZERO | P7: =IF(Zestawienie!N12>0,Zestawienie!N12,"ZERO") -> ZERO | R7: =IF(Zestawienie!O12>0,Zestawienie!O12,"ZERO") -> ZERO | S7: =IF(Zestawienie!P12>0,Zestawienie!P12,"ZERO") -> ZERO | T7: =IF(Zestawienie!Q12>0,Zestawienie!Q12,"ZERO") -> ZERO | U7: =IF(Zestawienie!R12>0,Zestawienie!R12,"ZERO") -> ZERO | W7: =IF(Zestawienie!S12>0,Zestawienie!S12,"ZERO") -> ZERO | X7: =IF(Zestawienie!T12>0,Zestawienie!T12,"ZERO") -> ZERO | Y7: =IF(Zestawienie!U12>0,Zestawienie!U12,"ZERO") -> ZERO | Z7: =IF(Zestawienie!V12>0,Zestawienie!V12,"ZERO") -> ZERO | AB7: =IF(Zestawienie!W12>0,Zestawienie!W12,"ZERO") -> ZERO | AC7: =IF(Zestawienie!X12>0,Zestawienie!X12,"ZERO") -> ZERO | AD7: =IF(Zestawienie!Y12>0,Zestawienie!Y12,"ZERO") -> ZERO | AE7: =IF(Zestawienie!Z12>0,Zestawienie!Z12,"ZERO") -> ZERO | AG7: =IF(Zestawienie!AA12>0,Zestawienie!AA12,"ZERO") -> ZERO | AH7: =IF(Zestawienie!AB12>0,Zestawienie!AB12,"ZERO") -> ZERO | AI7: =IF(Zestawienie!AC12>0,Zestawienie!AC12,"ZERO") -> ZERO | AJ7: =IF(Zestawienie!AD12>0,Zestawienie!AD12,"ZERO") -> ZERO | AL7: =IF(Zestawienie!AE12>0,Zestawienie!AE12,"ZERO") -> ZERO | AM7: =IF(Zestawienie!AF12>0,Zestawienie!AF12,"ZERO") -> ZERO | AN7: =IF(Zestawienie!AG12>0,Zestawienie!AG12,"ZERO") -> ZERO | AO7: =IF(Zestawienie!AH12>0,Zestawienie!AH12,"ZERO") -> ZERO | AQ7: =IF(Zestawienie!AI12>0,Zestawienie!AI12,"ZERO") -> ZERO | AR7: =IF(Zestawienie!AJ12>0,Zestawienie!AJ12,"ZERO") -> ZERO | AS7: =IF(Zestawienie!AK12>0,Zestawienie!AK12,"ZERO") -> ZERO | AT7: =IF(Zestawienie!AL12>0,Zestawienie!AL12,"ZERO") -> ZERO
A8: =Zestawienie!A13 -> 4 | B8: =Dane!D6 -> Brainstorm Group Sp. z o.o. | C8: =IF(Zestawienie!C13>0,Zestawienie!C13,"ZERO") -> 73800 | D8: =IF(Zestawienie!D13>0,Zestawienie!D13,"ZERO") -> 1916 | E8: =IF(Zestawienie!E13>0,Zestawienie!E13,"ZERO") -> 1 | F8: =IF(Zestawienie!F13>0,Zestawienie!F13,"ZERO") -> ZERO | H8: =IF(Zestawienie!G13>0,Zestawienie!G13,"ZERO") -> ZERO | I8: =IF(Zestawienie!H13>0,Zestawienie!H13,"ZERO") -> ZERO | J8: =IF(Zestawienie!I13>0,Zestawienie!I13,"ZERO") -> ZERO | K8: =IF(Zestawienie!J13>0,Zestawienie!J13,"ZERO") -> ZERO | M8: =IF(Zestawienie!K13>0,Zestawienie!K13,"ZERO") -> ZERO | N8: =IF(Zestawienie!L13>0,Zestawienie!L13,"ZERO") -> ZERO | O8: =IF(Zestawienie!M13>0,Zestawienie!M13,"ZERO") -> ZERO | P8: =IF(Zestawienie!N13>0,Zestawienie!N13,"ZERO") -> ZERO | R8: =IF(Zestawienie!O13>0,Zestawienie!O13,"ZERO") -> ZERO | S8: =IF(Zestawienie!P13>0,Zestawienie!P13,"ZERO") -> ZERO | T8: =IF(Zestawienie!Q13>0,Zestawienie!Q13,"ZERO") -> ZERO | U8: =IF(Zestawienie!R13>0,Zestawienie!R13,"ZERO") -> ZERO | W8: =IF(Zestawienie!S13>0,Zestawienie!S13,"ZERO") -> ZERO | X8: =IF(Zestawienie!T13>0,Zestawienie!T13,"ZERO") -> ZERO | Y8: =IF(Zestawienie!U13>0,Zestawienie!U13,"ZERO") -> ZERO | Z8: =IF(Zestawienie!V13>0,Zestawienie!V13,"ZERO") -> ZERO | AB8: =IF(Zestawienie!W13>0,Zestawienie!W13,"ZERO") -> ZERO | AC8: =IF(Zestawienie!X13>0,Zestawienie!X13,"ZERO") -> ZERO | AD8: =IF(Zestawienie!Y13>0,Zestawienie!Y13,"ZERO") -> ZERO | AE8: =IF(Zestawienie!Z13>0,Zestawienie!Z13,"ZERO") -> ZERO | AG8: =IF(Zestawienie!AA13>0,Zestawienie!AA13,"ZERO") -> ZERO | AH8: =IF(Zestawienie!AB13>0,Zestawienie!AB13,"ZERO") -> ZERO | AI8: =IF(Zestawienie!AC13>0,Zestawienie!AC13,"ZERO") -> ZERO | AJ8: =IF(Zestawienie!AD13>0,Zestawienie!AD13,"ZERO") -> ZERO | AL8: =IF(Zestawienie!AE13>0,Zestawienie!AE13,"ZERO") -> ZERO | AM8: =IF(Zestawienie!AF13>0,Zestawienie!AF13,"ZERO") -> ZERO | AN8: =IF(Zestawienie!AG13>0,Zestawienie!AG13,"ZERO") -> ZERO | AO8: =IF(Zestawienie!AH13>0,Zestawienie!AH13,"ZERO") -> ZERO | AQ8: =IF(Zestawienie!AI13>0,Zestawienie!AI13,"ZERO") -> ZERO | AR8: =IF(Zestawienie!AJ13>0,Zestawienie!AJ13,"ZERO") -> ZERO | AS8: =IF(Zestawienie!AK13>0,Zestawienie!AK13,"ZERO") -> ZERO | AT8: =IF(Zestawienie!AL13>0,Zestawienie!AL13,"ZERO") -> ZERO
A9: =Zestawienie!A14 -> 5 | B9: =Dane!D7 -> Slow Life&Business | C9: =IF(Zestawienie!C14>0,Zestawienie!C14,"ZERO") -> warsztat jednodniowy 1000,00zł netto, warsztat dwudniowy 1800,00zł | D9: =IF(Zestawienie!D14>0,Zestawienie!D14,"ZERO") -> 570 | E9: =IF(Zestawienie!E14>0,Zestawienie!E14,"ZERO") -> między 10 a 16 lipca br. | F9: =IF(Zestawienie!F14>0,Zestawienie!F14,"ZERO") -> ZERO | H9: =IF(Zestawienie!G14>0,Zestawienie!G14,"ZERO") -> ZERO | I9: =IF(Zestawienie!H14>0,Zestawienie!H14,"ZERO") -> ZERO | J9: =IF(Zestawienie!I14>0,Zestawienie!I14,"ZERO") -> ZERO | K9: =IF(Zestawienie!J14>0,Zestawienie!J14,"ZERO") -> ZERO | M9: =IF(Zestawienie!K14>0,Zestawienie!K14,"ZERO") -> ZERO | N9: =IF(Zestawienie!L14>0,Zestawienie!L14,"ZERO") -> ZERO | O9: =IF(Zestawienie!M14>0,Zestawienie!M14,"ZERO") -> ZERO | P9: =IF(Zestawienie!N14>0,Zestawienie!N14,"ZERO") -> ZERO | R9: =IF(Zestawienie!O14>0,Zestawienie!O14,"ZERO") -> ZERO | S9: =IF(Zestawienie!P14>0,Zestawienie!P14,"ZERO") -> ZERO | T9: =IF(Zestawienie!Q14>0,Zestawienie!Q14,"ZERO") -> ZERO | U9: =IF(Zestawienie!R14>0,Zestawienie!R14,"ZERO") -> ZERO | W9: =IF(Zestawienie!S14>0,Zestawienie!S14,"ZERO") -> ZERO | X9: =IF(Zestawienie!T14>0,Zestawienie!T14,"ZERO") -> ZERO | Y9: =IF(Zestawienie!U14>0,Zestawienie!U14,"ZERO") -> ZERO | Z9: =IF(Zestawienie!V14>0,Zestawienie!V14,"ZERO") -> ZERO | AB9: =IF(Zestawienie!W14>0,Zestawienie!W14,"ZERO") -> ZERO | AC9: =IF(Zestawienie!X14>0,Zestawienie!X14,"ZERO") -> ZERO | AD9: =IF(Zestawienie!Y14>0,Zestawienie!Y14,"ZERO") -> ZERO | AE9: =IF(Zestawienie!Z14>0,Zestawienie!Z14,"ZERO") -> ZERO | AG9: =IF(Zestawienie!AA14>0,Zestawienie!AA14,"ZERO") -> ZERO | AH9: =IF(Zestawienie!AB14>0,Zestawienie!AB14,"ZERO") -> ZERO | AI9: =IF(Zestawienie!AC14>0,Zestawienie!AC14,"ZERO") -> ZERO | AJ9: =IF(Zestawienie!AD14>0,Zestawienie!AD14,"ZERO") -> ZERO | AL9: =IF(Zestawienie!AE14>0,Zestawienie!AE14,"ZERO") -> ZERO | AM9: =IF(Zestawienie!AF14>0,Zestawienie!AF14,"ZERO") -> ZERO | AN9: =IF(Zestawienie!AG14>0,Zestawienie!AG14,"ZERO") -> ZERO | AO9: =IF(Zestawienie!AH14>0,Zestawienie!AH14,"ZERO") -> ZERO | AQ9: =IF(Zestawienie!AI14>0,Zestawienie!AI14,"ZERO") -> ZERO | AR9: =IF(Zestawienie!AJ14>0,Zestawienie!AJ14,"ZERO") -> ZERO | AS9: =IF(Zestawienie!AK14>0,Zestawienie!AK14,"ZERO") -> ZERO | AT9: =IF(Zestawienie!AL14>0,Zestawienie!AL14,"ZERO") -> ZERO
A10: =Zestawienie!A15 -> 6 | B10: =Dane!D8 -> RAJOS COSULTING Rafał Stelmasik | C10: =IF(Zestawienie!C15>0,Zestawienie!C15,"ZERO") -> 10880 | D10: =IF(Zestawienie!D15>0,Zestawienie!D15,"ZERO") -> 300 | E10: =IF(Zestawienie!E15>0,Zestawienie!E15,"ZERO") -> 3 | F10: =IF(Zestawienie!F15>0,Zestawienie!F15,"ZERO") -> ZERO | H10: =IF(Zestawienie!G15>0,Zestawienie!G15,"ZERO") -> ZERO | I10: =IF(Zestawienie!H15>0,Zestawienie!H15,"ZERO") -> ZERO | J10: =IF(Zestawienie!I15>0,Zestawienie!I15,"ZERO") -> ZERO | K10: =IF(Zestawienie!J15>0,Zestawienie!J15,"ZERO") -> ZERO | M10: =IF(Zestawienie!K15>0,Zestawienie!K15,"ZERO") -> ZERO | N10: =IF(Zestawienie!L15>0,Zestawienie!L15,"ZERO") -> ZERO | O10: =IF(Zestawienie!M15>0,Zestawienie!M15,"ZERO") -> ZERO | P10: =IF(Zestawienie!N15>0,Zestawienie!N15,"ZERO") -> ZERO | R10: =IF(Zestawienie!O15>0,Zestawienie!O15,"ZERO") -> ZERO | S10: =IF(Zestawienie!P15>0,Zestawienie!P15,"ZERO") -> ZERO | T10: =IF(Zestawienie!Q15>0,Zestawienie!Q15,"ZERO") -> ZERO | U10: =IF(Zestawienie!R15>0,Zestawienie!R15,"ZERO") -> ZERO | W10: =IF(Zestawienie!S15>0,Zestawienie!S15,"ZERO") -> ZERO | X10: =IF(Zestawienie!T15>0,Zestawienie!T15,"ZERO") -> ZERO | Y10: =IF(Zestawienie!U15>0,Zestawienie!U15,"ZERO") -> ZERO | Z10: =IF(Zestawienie!V15>0,Zestawienie!V15,"ZERO") -> ZERO | AB10: =IF(Zestawienie!W15>0,Zestawienie!W15,"ZERO") -> ZERO | AC10: =IF(Zestawienie!X15>0,Zestawienie!X15,"ZERO") -> ZERO | AD10: =IF(Zestawienie!Y15>0,Zestawienie!Y15,"ZERO") -> ZERO | AE10: =IF(Zestawienie!Z15>0,Zestawienie!Z15,"ZERO") -> ZERO | AG10: =IF(Zestawienie!AA15>0,Zestawienie!AA15,"ZERO") -> ZERO | AH10: =IF(Zestawienie!AB15>0,Zestawienie!AB15,"ZERO") -> ZERO | AI10: =IF(Zestawienie!AC15>0,Zestawienie!AC15,"ZERO") -> ZERO | AJ10: =IF(Zestawienie!AD15>0,Zestawienie!AD15,"ZERO") -> ZERO | AL10: =IF(Zestawienie!AE15>0,Zestawienie!AE15,"ZERO") -> ZERO | AM10: =IF(Zestawienie!AF15>0,Zestawienie!AF15,"ZERO") -> ZERO | AN10: =IF(Zestawienie!AG15>0,Zestawienie!AG15,"ZERO") -> ZERO | AO10: =IF(Zestawienie!AH15>0,Zestawienie!AH15,"ZERO") -> ZERO | AQ10: =IF(Zestawienie!AI15>0,Zestawienie!AI15,"ZERO") -> ZERO | AR10: =IF(Zestawienie!AJ15>0,Zestawienie!AJ15,"ZERO") -> ZERO | AS10: =IF(Zestawienie!AK15>0,Zestawienie!AK15,"ZERO") -> ZERO | AT10: =IF(Zestawienie!AL15>0,Zestawienie!AL15,"ZERO") -> ZERO
A11: =Zestawienie!A16 -> 7 | B11: =Dane!D9 -> Centrum Szkoleń Wielozawodowych DELTA | C11: =IF(Zestawienie!C16>0,Zestawienie!C16,"ZERO") -> 10055 | D11: =IF(Zestawienie!D16>0,Zestawienie!D16,"ZERO") -> 300 | E11: =IF(Zestawienie!E16>0,Zestawienie!E16,"ZERO") -> 2 | F11: =IF(Zestawienie!F16>0,Zestawienie!F16,"ZERO") -> ZERO | H11: =IF(Zestawienie!G16>0,Zestawienie!G16,"ZERO") -> ZERO | I11: =IF(Zestawienie!H16>0,Zestawienie!H16,"ZERO") -> ZERO | J11: =IF(Zestawienie!I16>0,Zestawienie!I16,"ZERO") -> ZERO | K11: =IF(Zestawienie!J16>0,Zestawienie!J16,"ZERO") -> ZERO | M11: =IF(Zestawienie!K16>0,Zestawienie!K16,"ZERO") -> ZERO | N11: =IF(Zestawienie!L16>0,Zestawienie!L16,"ZERO") -> ZERO | O11: =IF(Zestawienie!M16>0,Zestawienie!M16,"ZERO") -> ZERO | P11: =IF(Zestawienie!N16>0,Zestawienie!N16,"ZERO") -> ZERO | R11: =IF(Zestawienie!O16>0,Zestawienie!O16,"ZERO") -> ZERO | S11: =IF(Zestawienie!P16>0,Zestawienie!P16,"ZERO") -> ZERO | T11: =IF(Zestawienie!Q16>0,Zestawienie!Q16,"ZERO") -> ZERO | U11: =IF(Zestawienie!R16>0,Zestawienie!R16,"ZERO") -> ZERO | W11: =IF(Zestawienie!S16>0,Zestawienie!S16,"ZERO") -> ZERO | X11: =IF(Zestawienie!T16>0,Zestawienie!T16,"ZERO") -> ZERO | Y11: =IF(Zestawienie!U16>0,Zestawienie!U16,"ZERO") -> ZERO | Z11: =IF(Zestawienie!V16>0,Zestawienie!V16,"ZERO") -> ZERO | AB11: =IF(Zestawienie!W16>0,Zestawienie!W16,"ZERO") -> ZERO | AC11: =IF(Zestawienie!X16>0,Zestawienie!X16,"ZERO") -> ZERO | AD11: =IF(Zestawienie!Y16>0,Zestawienie!Y16,"ZERO") -> ZERO | AE11: =IF(Zestawienie!Z16>0,Zestawienie!Z16,"ZERO") -> ZERO | AG11: =IF(Zestawienie!AA16>0,Zestawienie!AA16,"ZERO") -> ZERO | AH11: =IF(Zestawienie!AB16>0,Zestawienie!AB16,"ZERO") -> ZERO | AI11: =IF(Zestawienie!AC16>0,Zestawienie!AC16,"ZERO") -> ZERO | AJ11: =IF(Zestawienie!AD16>0,Zestawienie!AD16,"ZERO") -> ZERO | AL11: =IF(Zestawienie!AE16>0,Zestawienie!AE16,"ZERO") -> ZERO | AM11: =IF(Zestawienie!AF16>0,Zestawienie!AF16,"ZERO") -> ZERO | AN11: =IF(Zestawienie!AG16>0,Zestawienie!AG16,"ZERO") -> ZERO | AO11: =IF(Zestawienie!AH16>0,Zestawienie!AH16,"ZERO") -> ZERO | AQ11: =IF(Zestawienie!AI16>0,Zestawienie!AI16,"ZERO") -> ZERO | AR11: =IF(Zestawienie!AJ16>0,Zestawienie!AJ16,"ZERO") -> ZERO | AS11: =IF(Zestawienie!AK16>0,Zestawienie!AK16,"ZERO") -> ZERO | AT11: =IF(Zestawienie!AL16>0,Zestawienie!AL16,"ZERO") -> ZERO
A12: =Zestawienie!A17 -> 8 | B12: =Dane!D10 -> Coach and Go Joanna Chorwacka | C12: =IF(Zestawienie!C17>0,Zestawienie!C17,"ZERO") -> 16000 | D12: =IF(Zestawienie!D17>0,Zestawienie!D17,"ZERO") -> 500 | E12: =IF(Zestawienie!E17>0,Zestawienie!E17,"ZERO") -> 2 | F12: =IF(Zestawienie!F17>0,Zestawienie!F17,"ZERO") -> ZERO | H12: =IF(Zestawienie!G17>0,Zestawienie!G17,"ZERO") -> ZERO | I12: =IF(Zestawienie!H17>0,Zestawienie!H17,"ZERO") -> ZERO | J12: =IF(Zestawienie!I17>0,Zestawienie!I17,"ZERO") -> ZERO | K12: =IF(Zestawienie!J17>0,Zestawienie!J17,"ZERO") -> ZERO | M12: =IF(Zestawienie!K17>0,Zestawienie!K17,"ZERO") -> ZERO | N12: =IF(Zestawienie!L17>0,Zestawienie!L17,"ZERO") -> ZERO | O12: =IF(Zestawienie!M17>0,Zestawienie!M17,"ZERO") -> ZERO | P12: =IF(Zestawienie!N17>0,Zestawienie!N17,"ZERO") -> ZERO | R12: =IF(Zestawienie!O17>0,Zestawienie!O17,"ZERO") -> ZERO | S12: =IF(Zestawienie!P17>0,Zestawienie!P17,"ZERO") -> ZERO | T12: =IF(Zestawienie!Q17>0,Zestawienie!Q17,"ZERO") -> ZERO | U12: =IF(Zestawienie!R17>0,Zestawienie!R17,"ZERO") -> ZERO | W12: =IF(Zestawienie!S17>0,Zestawienie!S17,"ZERO") -> ZERO | X12: =IF(Zestawienie!T17>0,Zestawienie!T17,"ZERO") -> ZERO | Y12: =IF(Zestawienie!U17>0,Zestawienie!U17,"ZERO") -> ZERO | Z12: =IF(Zestawienie!V17>0,Zestawienie!V17,"ZERO") -> ZERO | AB12: =IF(Zestawienie!W17>0,Zestawienie!W17,"ZERO") -> ZERO | AC12: =IF(Zestawienie!X17>0,Zestawienie!X17,"ZERO") -> ZERO | AD12: =IF(Zestawienie!Y17>0,Zestawienie!Y17,"ZERO") -> ZERO | AE12: =IF(Zestawienie!Z17>0,Zestawienie!Z17,"ZERO") -> ZERO | AG12: =IF(Zestawienie!AA17>0,Zestawienie!AA17,"ZERO") -> ZERO | AH12: =IF(Zestawienie!AB17>0,Zestawienie!AB17,"ZERO") -> ZERO | AI12: =IF(Zestawienie!AC17>0,Zestawienie!AC17,"ZERO") -> ZERO | AJ12: =IF(Zestawienie!AD17>0,Zestawienie!AD17,"ZERO") -> ZERO | AL12: =IF(Zestawienie!AE17>0,Zestawienie!AE17,"ZERO") -> ZERO | AM12: =IF(Zestawienie!AF17>0,Zestawienie!AF17,"ZERO") -> ZERO | AN12: =IF(Zestawienie!AG17>0,Zestawienie!AG17,"ZERO") -> ZERO | AO12: =IF(Zestawienie!AH17>0,Zestawienie!AH17,"ZERO") -> ZERO | AQ12: =IF(Zestawienie!AI17>0,Zestawienie!AI17,"ZERO") -> ZERO | AR12: =IF(Zestawienie!AJ17>0,Zestawienie!AJ17,"ZERO") -> ZERO | AS12: =IF(Zestawienie!AK17>0,Zestawienie!AK17,"ZERO") -> ZERO | AT12: =IF(Zestawienie!AL17>0,Zestawienie!AL17,"ZERO") -> ZERO
A13: =Zestawienie!A18 -> 9 | B13: =Dane!D11 -> Moja Firma Elzbieta Kowalska | C13: =IF(Zestawienie!C18>0,Zestawienie!C18,"ZERO") -> 32000 | D13: =IF(Zestawienie!D18>0,Zestawienie!D18,"ZERO") -> 3038 | E13: =IF(Zestawienie!E18>0,Zestawienie!E18,"ZERO") -> 1 | F13: =IF(Zestawienie!F18>0,Zestawienie!F18,"ZERO") -> ZERO | H13: =IF(Zestawienie!G18>0,Zestawienie!G18,"ZERO") -> ZERO | I13: =IF(Zestawienie!H18>0,Zestawienie!H18,"ZERO") -> ZERO | J13: =IF(Zestawienie!I18>0,Zestawienie!I18,"ZERO") -> ZERO | K13: =IF(Zestawienie!J18>0,Zestawienie!J18,"ZERO") -> ZERO | M13: =IF(Zestawienie!K18>0,Zestawienie!K18,"ZERO") -> ZERO | N13: =IF(Zestawienie!L18>0,Zestawienie!L18,"ZERO") -> ZERO | O13: =IF(Zestawienie!M18>0,Zestawienie!M18,"ZERO") -> ZERO | P13: =IF(Zestawienie!N18>0,Zestawienie!N18,"ZERO") -> ZERO | R13: =IF(Zestawienie!O18>0,Zestawienie!O18,"ZERO") -> ZERO | S13: =IF(Zestawienie!P18>0,Zestawienie!P18,"ZERO") -> ZERO | T13: =IF(Zestawienie!Q18>0,Zestawienie!Q18,"ZERO") -> ZERO | U13: =IF(Zestawienie!R18>0,Zestawienie!R18,"ZERO") -> ZERO | W13: =IF(Zestawienie!S18>0,Zestawienie!S18,"ZERO") -> ZERO | X13: =IF(Zestawienie!T18>0,Zestawienie!T18,"ZERO") -> ZERO | Y13: =IF(Zestawienie!U18>0,Zestawienie!U18,"ZERO") -> ZERO | Z13: =IF(Zestawienie!V18>0,Zestawienie!V18,"ZERO") -> ZERO | AB13: =IF(Zestawienie!W18>0,Zestawienie!W18,"ZERO") -> ZERO | AC13: =IF(Zestawienie!X18>0,Zestawienie!X18,"ZERO") -> ZERO | AD13: =IF(Zestawienie!Y18>0,Zestawienie!Y18,"ZERO") -> ZERO | AE13: =IF(Zestawienie!Z18>0,Zestawienie!Z18,"ZERO") -> ZERO | AG13: =IF(Zestawienie!AA18>0,Zestawienie!AA18,"ZERO") -> ZERO | AH13: =IF(Zestawienie!AB18>0,Zestawienie!AB18,"ZERO") -> ZERO | AI13: =IF(Zestawienie!AC18>0,Zestawienie!AC18,"ZERO") -> ZERO | AJ13: =IF(Zestawienie!AD18>0,Zestawienie!AD18,"ZERO") -> ZERO | AL13: =IF(Zestawienie!AE18>0,Zestawienie!AE18,"ZERO") -> ZERO | AM13: =IF(Zestawienie!AF18>0,Zestawienie!AF18,"ZERO") -> ZERO | AN13: =IF(Zestawienie!AG18>0,Zestawienie!AG18,"ZERO") -> ZERO | AO13: =IF(Zestawienie!AH18>0,Zestawienie!AH18,"ZERO") -> ZERO | AQ13: =IF(Zestawienie!AI18>0,Zestawienie!AI18,"ZERO") -> ZERO | AR13: =IF(Zestawienie!AJ18>0,Zestawienie!AJ18,"ZERO") -> ZERO | AS13: =IF(Zestawienie!AK18>0,Zestawienie!AK18,"ZERO") -> ZERO | AT13: =IF(Zestawienie!AL18>0,Zestawienie!AL18,"ZERO") -> ZERO
A14: =Zestawienie!A19 -> 10 | B14: =Dane!D12 -> LCE LOGOS Centrum Edukacyjne | C14: =IF(Zestawienie!C19>0,Zestawienie!C19,"ZERO") -> 12160 | D14: =IF(Zestawienie!D19>0,Zestawienie!D19,"ZERO") -> 922 | E14: =IF(Zestawienie!E19>0,Zestawienie!E19,"ZERO") -> 1 | F14: =IF(Zestawienie!F19>0,Zestawienie!F19,"ZERO") -> ZERO | H14: =IF(Zestawienie!G19>0,Zestawienie!G19,"ZERO") -> ZERO | I14: =IF(Zestawienie!H19>0,Zestawienie!H19,"ZERO") -> ZERO | J14: =IF(Zestawienie!I19>0,Zestawienie!I19,"ZERO") -> ZERO | K14: =IF(Zestawienie!J19>0,Zestawienie!J19,"ZERO") -> ZERO | M14: =IF(Zestawienie!K19>0,Zestawienie!K19,"ZERO") -> ZERO | N14: =IF(Zestawienie!L19>0,Zestawienie!L19,"ZERO") -> ZERO | O14: =IF(Zestawienie!M19>0,Zestawienie!M19,"ZERO") -> ZERO | P14: =IF(Zestawienie!N19>0,Zestawienie!N19,"ZERO") -> ZERO | R14: =IF(Zestawienie!O19>0,Zestawienie!O19,"ZERO") -> ZERO | S14: =IF(Zestawienie!P19>0,Zestawienie!P19,"ZERO") -> ZERO | T14: =IF(Zestawienie!Q19>0,Zestawienie!Q19,"ZERO") -> ZERO | U14: =IF(Zestawienie!R19>0,Zestawienie!R19,"ZERO") -> ZERO | W14: =IF(Zestawienie!S19>0,Zestawienie!S19,"ZERO") -> ZERO | X14: =IF(Zestawienie!T19>0,Zestawienie!T19,"ZERO") -> ZERO | Y14: =IF(Zestawienie!U19>0,Zestawienie!U19,"ZERO") -> ZERO | Z14: =IF(Zestawienie!V19>0,Zestawienie!V19,"ZERO") -> ZERO | AB14: =IF(Zestawienie!W19>0,Zestawienie!W19,"ZERO") -> ZERO | AC14: =IF(Zestawienie!X19>0,Zestawienie!X19,"ZERO") -> ZERO | AD14: =IF(Zestawienie!Y19>0,Zestawienie!Y19,"ZERO") -> ZERO | AE14: =IF(Zestawienie!Z19>0,Zestawienie!Z19,"ZERO") -> ZERO | AG14: =IF(Zestawienie!AA19>0,Zestawienie!AA19,"ZERO") -> ZERO | AH14: =IF(Zestawienie!AB19>0,Zestawienie!AB19,"ZERO") -> ZERO | AI14: =IF(Zestawienie!AC19>0,Zestawienie!AC19,"ZERO") -> ZERO | AJ14: =IF(Zestawienie!AD19>0,Zestawienie!AD19,"ZERO") -> ZERO | AL14: =IF(Zestawienie!AE19>0,Zestawienie!AE19,"ZERO") -> ZERO | AM14: =IF(Zestawienie!AF19>0,Zestawienie!AF19,"ZERO") -> ZERO | AN14: =IF(Zestawienie!AG19>0,Zestawienie!AG19,"ZERO") -> ZERO | AO14: =IF(Zestawienie!AH19>0,Zestawienie!AH19,"ZERO") -> ZERO | AQ14: =IF(Zestawienie!AI19>0,Zestawienie!AI19,"ZERO") -> ZERO | AR14: =IF(Zestawienie!AJ19>0,Zestawienie!AJ19,"ZERO") -> ZERO | AS14: =IF(Zestawienie!AK19>0,Zestawienie!AK19,"ZERO") -> ZERO | AT14: =IF(Zestawienie!AL19>0,Zestawienie!AL19,"ZERO") -> ZERO
A15: =Zestawienie!A20 -> 11 | B15: =Dane!D13 -> SEKA S.A. | C15: =IF(Zestawienie!C20>0,Zestawienie!C20,"ZERO") -> 17500 | D15: =IF(Zestawienie!D20>0,Zestawienie!D20,"ZERO") -> 3054 | E15: =IF(Zestawienie!E20>0,Zestawienie!E20,"ZERO") -> 1 | F15: =IF(Zestawienie!F20>0,Zestawienie!F20,"ZERO") -> ZERO | H15: =IF(Zestawienie!G20>0,Zestawienie!G20,"ZERO") -> ZERO | I15: =IF(Zestawienie!H20>0,Zestawienie!H20,"ZERO") -> ZERO | J15: =IF(Zestawienie!I20>0,Zestawienie!I20,"ZERO") -> ZERO | K15: =IF(Zestawienie!J20>0,Zestawienie!J20,"ZERO") -> ZERO | M15: =IF(Zestawienie!K20>0,Zestawienie!K20,"ZERO") -> ZERO | N15: =IF(Zestawienie!L20>0,Zestawienie!L20,"ZERO") -> ZERO | O15: =IF(Zestawienie!M20>0,Zestawienie!M20,"ZERO") -> ZERO | P15: =IF(Zestawienie!N20>0,Zestawienie!N20,"ZERO") -> ZERO | R15: =IF(Zestawienie!O20>0,Zestawienie!O20,"ZERO") -> ZERO | S15: =IF(Zestawienie!P20>0,Zestawienie!P20,"ZERO") -> ZERO | T15: =IF(Zestawienie!Q20>0,Zestawienie!Q20,"ZERO") -> ZERO | U15: =IF(Zestawienie!R20>0,Zestawienie!R20,"ZERO") -> ZERO | W15: =IF(Zestawienie!S20>0,Zestawienie!S20,"ZERO") -> ZERO | X15: =IF(Zestawienie!T20>0,Zestawienie!T20,"ZERO") -> ZERO | Y15: =IF(Zestawienie!U20>0,Zestawienie!U20,"ZERO") -> ZERO | Z15: =IF(Zestawienie!V20>0,Zestawienie!V20,"ZERO") -> ZERO | AB15: =IF(Zestawienie!W20>0,Zestawienie!W20,"ZERO") -> ZERO | AC15: =IF(Zestawienie!X20>0,Zestawienie!X20,"ZERO") -> ZERO | AD15: =IF(Zestawienie!Y20>0,Zestawienie!Y20,"ZERO") -> ZERO | AE15: =IF(Zestawienie!Z20>0,Zestawienie!Z20,"ZERO") -> ZERO | AG15: =IF(Zestawienie!AA20>0,Zestawienie!AA20,"ZERO") -> ZERO | AH15: =IF(Zestawienie!AB20>0,Zestawienie!AB20,"ZERO") -> ZERO | AI15: =IF(Zestawienie!AC20>0,Zestawienie!AC20,"ZERO") -> ZERO | AJ15: =IF(Zestawienie!AD20>0,Zestawienie!AD20,"ZERO") -> ZERO | AL15: =IF(Zestawienie!AE20>0,Zestawienie!AE20,"ZERO") -> ZERO | AM15: =IF(Zestawienie!AF20>0,Zestawienie!AF20,"ZERO") -> ZERO | AN15: =IF(Zestawienie!AG20>0,Zestawienie!AG20,"ZERO") -> ZERO | AO15: =IF(Zestawienie!AH20>0,Zestawienie!AH20,"ZERO") -> ZERO | AQ15: =IF(Zestawienie!AI20>0,Zestawienie!AI20,"ZERO") -> ZERO | AR15: =IF(Zestawienie!AJ20>0,Zestawienie!AJ20,"ZERO") -> ZERO | AS15: =IF(Zestawienie!AK20>0,Zestawienie!AK20,"ZERO") -> ZERO | AT15: =IF(Zestawienie!AL20>0,Zestawienie!AL20,"ZERO") -> ZERO
A16: =Zestawienie!A21 -> 12 | B16: =Dane!D14 -> Polska Akademia Oświaty Sp. z o.o. | C16: =IF(Zestawienie!C21>0,Zestawienie!C21,"ZERO") -> 32000 | D16: =IF(Zestawienie!D21>0,Zestawienie!D21,"ZERO") -> 6058 | E16: =IF(Zestawienie!E21>0,Zestawienie!E21,"ZERO") -> 1 | F16: =IF(Zestawienie!F21>0,Zestawienie!F21,"ZERO") -> ZERO | H16: =IF(Zestawienie!G21>0,Zestawienie!G21,"ZERO") -> ZERO | I16: =IF(Zestawienie!H21>0,Zestawienie!H21,"ZERO") -> ZERO | J16: =IF(Zestawienie!I21>0,Zestawienie!I21,"ZERO") -> ZERO | K16: =IF(Zestawienie!J21>0,Zestawienie!J21,"ZERO") -> ZERO | M16: =IF(Zestawienie!K21>0,Zestawienie!K21,"ZERO") -> ZERO | N16: =IF(Zestawienie!L21>0,Zestawienie!L21,"ZERO") -> ZERO | O16: =IF(Zestawienie!M21>0,Zestawienie!M21,"ZERO") -> ZERO | P16: =IF(Zestawienie!N21>0,Zestawienie!N21,"ZERO") -> ZERO | R16: =IF(Zestawienie!O21>0,Zestawienie!O21,"ZERO") -> ZERO | S16: =IF(Zestawienie!P21>0,Zestawienie!P21,"ZERO") -> ZERO | T16: =IF(Zestawienie!Q21>0,Zestawienie!Q21,"ZERO") -> ZERO | U16: =IF(Zestawienie!R21>0,Zestawienie!R21,"ZERO") -> ZERO | W16: =IF(Zestawienie!S21>0,Zestawienie!S21,"ZERO") -> ZERO | X16: =IF(Zestawienie!T21>0,Zestawienie!T21,"ZERO") -> ZERO | Y16: =IF(Zestawienie!U21>0,Zestawienie!U21,"ZERO") -> ZERO | Z16: =IF(Zestawienie!V21>0,Zestawienie!V21,"ZERO") -> ZERO | AB16: =IF(Zestawienie!W21>0,Zestawienie!W21,"ZERO") -> ZERO | AC16: =IF(Zestawienie!X21>0,Zestawienie!X21,"ZERO") -> ZERO | AD16: =IF(Zestawienie!Y21>0,Zestawienie!Y21,"ZERO") -> ZERO | AE16: =IF(Zestawienie!Z21>0,Zestawienie!Z21,"ZERO") -> ZERO | AG16: =IF(Zestawienie!AA21>0,Zestawienie!AA21,"ZERO") -> ZERO | AH16: =IF(Zestawienie!AB21>0,Zestawienie!AB21,"ZERO") -> ZERO | AI16: =IF(Zestawienie!AC21>0,Zestawienie!AC21,"ZERO") -> ZERO | AJ16: =IF(Zestawienie!AD21>0,Zestawienie!AD21,"ZERO") -> ZERO | AL16: =IF(Zestawienie!AE21>0,Zestawienie!AE21,"ZERO") -> ZERO | AM16: =IF(Zestawienie!AF21>0,Zestawienie!AF21,"ZERO") -> ZERO | AN16: =IF(Zestawienie!AG21>0,Zestawienie!AG21,"ZERO") -> ZERO | AO16: =IF(Zestawienie!AH21>0,Zestawienie!AH21,"ZERO") -> ZERO | AQ16: =IF(Zestawienie!AI21>0,Zestawienie!AI21,"ZERO") -> ZERO | AR16: =IF(Zestawienie!AJ21>0,Zestawienie!AJ21,"ZERO") -> ZERO | AS16: =IF(Zestawienie!AK21>0,Zestawienie!AK21,"ZERO") -> ZERO | AT16: =IF(Zestawienie!AL21>0,Zestawienie!AL21,"ZERO") -> ZERO
A17: =Zestawienie!A22 -> 13 | B17: =Dane!D15 -> 0 | C17: =IF(Zestawienie!C22>0,Zestawienie!C22,"ZERO") -> ZERO | D17: =IF(Zestawienie!D22>0,Zestawienie!D22,"ZERO") -> ZERO | E17: =IF(Zestawienie!E22>0,Zestawienie!E22,"ZERO") -> ZERO | F17: =IF(Zestawienie!F22>0,Zestawienie!F22,"ZERO") -> ZERO | H17: =IF(Zestawienie!G22>0,Zestawienie!G22,"ZERO") -> ZERO | I17: =IF(Zestawienie!H22>0,Zestawienie!H22,"ZERO") -> ZERO | J17: =IF(Zestawienie!I22>0,Zestawienie!I22,"ZERO") -> ZERO | K17: =IF(Zestawienie!J22>0,Zestawienie!J22,"ZERO") -> ZERO | M17: =IF(Zestawienie!K22>0,Zestawienie!K22,"ZERO") -> ZERO | N17: =IF(Zestawienie!L22>0,Zestawienie!L22,"ZERO") -> ZERO | O17: =IF(Zestawienie!M22>0,Zestawienie!M22,"ZERO") -> ZERO | P17: =IF(Zestawienie!N22>0,Zestawienie!N22,"ZERO") -> ZERO | R17: =IF(Zestawienie!O22>0,Zestawienie!O22,"ZERO") -> ZERO | S17: =IF(Zestawienie!P22>0,Zestawienie!P22,"ZERO") -> ZERO | T17: =IF(Zestawienie!Q22>0,Zestawienie!Q22,"ZERO") -> ZERO | U17: =IF(Zestawienie!R22>0,Zestawienie!R22,"ZERO") -> ZERO | W17: =IF(Zestawienie!S22>0,Zestawienie!S22,"ZERO") -> ZERO | X17: =IF(Zestawienie!T22>0,Zestawienie!T22,"ZERO") -> ZERO | Y17: =IF(Zestawienie!U22>0,Zestawienie!U22,"ZERO") -> ZERO | Z17: =IF(Zestawienie!V22>0,Zestawienie!V22,"ZERO") -> ZERO | AB17: =IF(Zestawienie!W22>0,Zestawienie!W22,"ZERO") -> ZERO | AC17: =IF(Zestawienie!X22>0,Zestawienie!X22,"ZERO") -> ZERO | AD17: =IF(Zestawienie!Y22>0,Zestawienie!Y22,"ZERO") -> ZERO | AE17: =IF(Zestawienie!Z22>0,Zestawienie!Z22,"ZERO") -> ZERO | AG17: =IF(Zestawienie!AA22>0,Zestawienie!AA22,"ZERO") -> ZERO | AH17: =IF(Zestawienie!AB22>0,Zestawienie!AB22,"ZERO") -> ZERO | AI17: =IF(Zestawienie!AC22>0,Zestawienie!AC22,"ZERO") -> ZERO | AJ17: =IF(Zestawienie!AD22>0,Zestawienie!AD22,"ZERO") -> ZERO | AL17: =IF(Zestawienie!AE22>0,Zestawienie!AE22,"ZERO") -> ZERO | AM17: =IF(Zestawienie!AF22>0,Zestawienie!AF22,"ZERO") -> ZERO | AN17: =IF(Zestawienie!AG22>0,Zestawienie!AG22,"ZERO") -> ZERO | AO17: =IF(Zestawienie!AH22>0,Zestawienie!AH22,"ZERO") -> ZERO | AQ17: =IF(Zestawienie!AI22>0,Zestawienie!AI22,"ZERO") -> ZERO | AR17: =IF(Zestawienie!AJ22>0,Zestawienie!AJ22,"ZERO") -> ZERO | AS17: =IF(Zestawienie!AK22>0,Zestawienie!AK22,"ZERO") -> ZERO | AT17: =IF(Zestawienie!AL22>0,Zestawienie!AL22,"ZERO") -> ZERO
A18: =Zestawienie!A23 -> 14 | B18: =Dane!D16 -> 0 | C18: =IF(Zestawienie!C23>0,Zestawienie!C23,"ZERO") -> ZERO | D18: =IF(Zestawienie!D23>0,Zestawienie!D23,"ZERO") -> ZERO | E18: =IF(Zestawienie!E23>0,Zestawienie!E23,"ZERO") -> ZERO | F18: =IF(Zestawienie!F23>0,Zestawienie!F23,"ZERO") -> ZERO | H18: =IF(Zestawienie!G23>0,Zestawienie!G23,"ZERO") -> ZERO | I18: =IF(Zestawienie!H23>0,Zestawienie!H23,"ZERO") -> ZERO | J18: =IF(Zestawienie!I23>0,Zestawienie!I23,"ZERO") -> ZERO | K18: =IF(Zestawienie!J23>0,Zestawienie!J23,"ZERO") -> ZERO | M18: =IF(Zestawienie!K23>0,Zestawienie!K23,"ZERO") -> ZERO | N18: =IF(Zestawienie!L23>0,Zestawienie!L23,"ZERO") -> ZERO | O18: =IF(Zestawienie!M23>0,Zestawienie!M23,"ZERO") -> ZERO | P18: =IF(Zestawienie!N23>0,Zestawienie!N23,"ZERO") -> ZERO | R18: =IF(Zestawienie!O23>0,Zestawienie!O23,"ZERO") -> ZERO | S18: =IF(Zestawienie!P23>0,Zestawienie!P23,"ZERO") -> ZERO | T18: =IF(Zestawienie!Q23>0,Zestawienie!Q23,"ZERO") -> ZERO | U18: =IF(Zestawienie!R23>0,Zestawienie!R23,"ZERO") -> ZERO | W18: =IF(Zestawienie!S23>0,Zestawienie!S23,"ZERO") -> ZERO | X18: =IF(Zestawienie!T23>0,Zestawienie!T23,"ZERO") -> ZERO | Y18: =IF(Zestawienie!U23>0,Zestawienie!U23,"ZERO") -> ZERO | Z18: =IF(Zestawienie!V23>0,Zestawienie!V23,"ZERO") -> ZERO | AB18: =IF(Zestawienie!W23>0,Zestawienie!W23,"ZERO") -> ZERO | AC18: =IF(Zestawienie!X23>0,Zestawienie!X23,"ZERO") -> ZERO | AD18: =IF(Zestawienie!Y23>0,Zestawienie!Y23,"ZERO") -> ZERO | AE18: =IF(Zestawienie!Z23>0,Zestawienie!Z23,"ZERO") -> ZERO | AG18: =IF(Zestawienie!AA23>0,Zestawienie!AA23,"ZERO") -> ZERO | AH18: =IF(Zestawienie!AB23>0,Zestawienie!AB23,"ZERO") -> ZERO | AI18: =IF(Zestawienie!AC23>0,Zestawienie!AC23,"ZERO") -> ZERO | AJ18: =IF(Zestawienie!AD23>0,Zestawienie!AD23,"ZERO") -> ZERO | AL18: =IF(Zestawienie!AE23>0,Zestawienie!AE23,"ZERO") -> ZERO | AM18: =IF(Zestawienie!AF23>0,Zestawienie!AF23,"ZERO") -> ZERO | AN18: =IF(Zestawienie!AG23>0,Zestawienie!AG23,"ZERO") -> ZERO | AO18: =IF(Zestawienie!AH23>0,Zestawienie!AH23,"ZERO") -> ZERO | AQ18: =IF(Zestawienie!AI23>0,Zestawienie!AI23,"ZERO") -> ZERO | AR18: =IF(Zestawienie!AJ23>0,Zestawienie!AJ23,"ZERO") -> ZERO | AS18: =IF(Zestawienie!AK23>0,Zestawienie!AK23,"ZERO") -> ZERO | AT18: =IF(Zestawienie!AL23>0,Zestawienie!AL23,"ZERO") -> ZERO
A19: =Zestawienie!A24 -> 15 | B19: =Dane!D17 -> 0 | C19: =IF(Zestawienie!C24>0,Zestawienie!C24,"ZERO") -> ZERO | D19: =IF(Zestawienie!D24>0,Zestawienie!D24,"ZERO") -> ZERO | E19: =IF(Zestawienie!E24>0,Zestawienie!E24,"ZERO") -> ZERO | F19: =IF(Zestawienie!F24>0,Zestawienie!F24,"ZERO") -> ZERO | H19: =IF(Zestawienie!G24>0,Zestawienie!G24,"ZERO") -> ZERO | I19: =IF(Zestawienie!H24>0,Zestawienie!H24,"ZERO") -> ZERO | J19: =IF(Zestawienie!I24>0,Zestawienie!I24,"ZERO") -> ZERO | K19: =IF(Zestawienie!J24>0,Zestawienie!J24,"ZERO") -> ZERO | M19: =IF(Zestawienie!K24>0,Zestawienie!K24,"ZERO") -> ZERO | N19: =IF(Zestawienie!L24>0,Zestawienie!L24,"ZERO") -> ZERO | O19: =IF(Zestawienie!M24>0,Zestawienie!M24,"ZERO") -> ZERO | P19: =IF(Zestawienie!N24>0,Zestawienie!N24,"ZERO") -> ZERO | R19: =IF(Zestawienie!O24>0,Zestawienie!O24,"ZERO") -> ZERO | S19: =IF(Zestawienie!P24>0,Zestawienie!P24,"ZERO") -> ZERO | T19: =IF(Zestawienie!Q24>0,Zestawienie!Q24,"ZERO") -> ZERO | U19: =IF(Zestawienie!R24>0,Zestawienie!R24,"ZERO") -> ZERO | W19: =IF(Zestawienie!S24>0,Zestawienie!S24,"ZERO") -> ZERO | X19: =IF(Zestawienie!T24>0,Zestawienie!T24,"ZERO") -> ZERO | Y19: =IF(Zestawienie!U24>0,Zestawienie!U24,"ZERO") -> ZERO | Z19: =IF(Zestawienie!V24>0,Zestawienie!V24,"ZERO") -> ZERO | AB19: =IF(Zestawienie!W24>0,Zestawienie!W24,"ZERO") -> ZERO | AC19: =IF(Zestawienie!X24>0,Zestawienie!X24,"ZERO") -> ZERO | AD19: =IF(Zestawienie!Y24>0,Zestawienie!Y24,"ZERO") -> ZERO | AE19: =IF(Zestawienie!Z24>0,Zestawienie!Z24,"ZERO") -> ZERO | AG19: =IF(Zestawienie!AA24>0,Zestawienie!AA24,"ZERO") -> ZERO | AH19: =IF(Zestawienie!AB24>0,Zestawienie!AB24,"ZERO") -> ZERO | AI19: =IF(Zestawienie!AC24>0,Zestawienie!AC24,"ZERO") -> ZERO | AJ19: =IF(Zestawienie!AD24>0,Zestawienie!AD24,"ZERO") -> ZERO | AL19: =IF(Zestawienie!AE24>0,Zestawienie!AE24,"ZERO") -> ZERO | AM19: =IF(Zestawienie!AF24>0,Zestawienie!AF24,"ZERO") -> ZERO | AN19: =IF(Zestawienie!AG24>0,Zestawienie!AG24,"ZERO") -> ZERO | AO19: =IF(Zestawienie!AH24>0,Zestawienie!AH24,"ZERO") -> ZERO | AQ19: =IF(Zestawienie!AI24>0,Zestawienie!AI24,"ZERO") -> ZERO | AR19: =IF(Zestawienie!AJ24>0,Zestawienie!AJ24,"ZERO") -> ZERO | AS19: =IF(Zestawienie!AK24>0,Zestawienie!AK24,"ZERO") -> ZERO | AT19: =IF(Zestawienie!AL24>0,Zestawienie!AL24,"ZERO") -> ZERO
A20: =Zestawienie!A25 -> 16 | B20: =Dane!D18 -> 0 | C20: =IF(Zestawienie!C25>0,Zestawienie!C25,"ZERO") -> ZERO | D20: =IF(Zestawienie!D25>0,Zestawienie!D25,"ZERO") -> ZERO | E20: =IF(Zestawienie!E25>0,Zestawienie!E25,"ZERO") -> ZERO | F20: =IF(Zestawienie!F25>0,Zestawienie!F25,"ZERO") -> ZERO | H20: =IF(Zestawienie!G25>0,Zestawienie!G25,"ZERO") -> ZERO | I20: =IF(Zestawienie!H25>0,Zestawienie!H25,"ZERO") -> ZERO | J20: =IF(Zestawienie!I25>0,Zestawienie!I25,"ZERO") -> ZERO | K20: =IF(Zestawienie!J25>0,Zestawienie!J25,"ZERO") -> ZERO | M20: =IF(Zestawienie!K25>0,Zestawienie!K25,"ZERO") -> ZERO | N20: =IF(Zestawienie!L25>0,Zestawienie!L25,"ZERO") -> ZERO | O20: =IF(Zestawienie!M25>0,Zestawienie!M25,"ZERO") -> ZERO | P20: =IF(Zestawienie!N25>0,Zestawienie!N25,"ZERO") -> ZERO | R20: =IF(Zestawienie!O25>0,Zestawienie!O25,"ZERO") -> ZERO | S20: =IF(Zestawienie!P25>0,Zestawienie!P25,"ZERO") -> ZERO | T20: =IF(Zestawienie!Q25>0,Zestawienie!Q25,"ZERO") -> ZERO | U20: =IF(Zestawienie!R25>0,Zestawienie!R25,"ZERO") -> ZERO | W20: =IF(Zestawienie!S25>0,Zestawienie!S25,"ZERO") -> ZERO | X20: =IF(Zestawienie!T25>0,Zestawienie!T25,"ZERO") -> ZERO | Y20: =IF(Zestawienie!U25>0,Zestawienie!U25,"ZERO") -> ZERO | Z20: =IF(Zestawienie!V25>0,Zestawienie!V25,"ZERO") -> ZERO | AB20: =IF(Zestawienie!W25>0,Zestawienie!W25,"ZERO") -> ZERO | AC20: =IF(Zestawienie!X25>0,Zestawienie!X25,"ZERO") -> ZERO | AD20: =IF(Zestawienie!Y25>0,Zestawienie!Y25,"ZERO") -> ZERO | AE20: =IF(Zestawienie!Z25>0,Zestawienie!Z25,"ZERO") -> ZERO | AG20: =IF(Zestawienie!AA25>0,Zestawienie!AA25,"ZERO") -> ZERO | AH20: =IF(Zestawienie!AB25>0,Zestawienie!AB25,"ZERO") -> ZERO | AI20: =IF(Zestawienie!AC25>0,Zestawienie!AC25,"ZERO") -> ZERO | AJ20: =IF(Zestawienie!AD25>0,Zestawienie!AD25,"ZERO") -> ZERO | AL20: =IF(Zestawienie!AE25>0,Zestawienie!AE25,"ZERO") -> ZERO | AM20: =IF(Zestawienie!AF25>0,Zestawienie!AF25,"ZERO") -> ZERO | AN20: =IF(Zestawienie!AG25>0,Zestawienie!AG25,"ZERO") -> ZERO | AO20: =IF(Zestawienie!AH25>0,Zestawienie!AH25,"ZERO") -> ZERO | AQ20: =IF(Zestawienie!AI25>0,Zestawienie!AI25,"ZERO") -> ZERO | AR20: =IF(Zestawienie!AJ25>0,Zestawienie!AJ25,"ZERO") -> ZERO | AS20: =IF(Zestawienie!AK25>0,Zestawienie!AK25,"ZERO") -> ZERO | AT20: =IF(Zestawienie!AL25>0,Zestawienie!AL25,"ZERO") -> ZERO
A21: =Zestawienie!A26 -> 17 | B21: =Dane!D19 -> 0 | C21: =IF(Zestawienie!C26>0,Zestawienie!C26,"ZERO") -> ZERO | D21: =IF(Zestawienie!D26>0,Zestawienie!D26,"ZERO") -> ZERO | E21: =IF(Zestawienie!E26>0,Zestawienie!E26,"ZERO") -> ZERO | F21: =IF(Zestawienie!F26>0,Zestawienie!F26,"ZERO") -> ZERO | H21: =IF(Zestawienie!G26>0,Zestawienie!G26,"ZERO") -> ZERO | I21: =IF(Zestawienie!H26>0,Zestawienie!H26,"ZERO") -> ZERO | J21: =IF(Zestawienie!I26>0,Zestawienie!I26,"ZERO") -> ZERO | K21: =IF(Zestawienie!J26>0,Zestawienie!J26,"ZERO") -> ZERO | M21: =IF(Zestawienie!K26>0,Zestawienie!K26,"ZERO") -> ZERO | N21: =IF(Zestawienie!L26>0,Zestawienie!L26,"ZERO") -> ZERO | O21: =IF(Zestawienie!M26>0,Zestawienie!M26,"ZERO") -> ZERO | P21: =IF(Zestawienie!N26>0,Zestawienie!N26,"ZERO") -> ZERO | R21: =IF(Zestawienie!O26>0,Zestawienie!O26,"ZERO") -> ZERO | S21: =IF(Zestawienie!P26>0,Zestawienie!P26,"ZERO") -> ZERO | T21: =IF(Zestawienie!Q26>0,Zestawienie!Q26,"ZERO") -> ZERO | U21: =IF(Zestawienie!R26>0,Zestawienie!R26,"ZERO") -> ZERO | W21: =IF(Zestawienie!S26>0,Zestawienie!S26,"ZERO") -> ZERO | X21: =IF(Zestawienie!T26>0,Zestawienie!T26,"ZERO") -> ZERO | Y21: =IF(Zestawienie!U26>0,Zestawienie!U26,"ZERO") -> ZERO | Z21: =IF(Zestawienie!V26>0,Zestawienie!V26,"ZERO") -> ZERO | AB21: =IF(Zestawienie!W26>0,Zestawienie!W26,"ZERO") -> ZERO | AC21: =IF(Zestawienie!X26>0,Zestawienie!X26,"ZERO") -> ZERO | AD21: =IF(Zestawienie!Y26>0,Zestawienie!Y26,"ZERO") -> ZERO | AE21: =IF(Zestawienie!Z26>0,Zestawienie!Z26,"ZERO") -> ZERO | AG21: =IF(Zestawienie!AA26>0,Zestawienie!AA26,"ZERO") -> ZERO | AH21: =IF(Zestawienie!AB26>0,Zestawienie!AB26,"ZERO") -> ZERO | AI21: =IF(Zestawienie!AC26>0,Zestawienie!AC26,"ZERO") -> ZERO | AJ21: =IF(Zestawienie!AD26>0,Zestawienie!AD26,"ZERO") -> ZERO | AL21: =IF(Zestawienie!AE26>0,Zestawienie!AE26,"ZERO") -> ZERO | AM21: =IF(Zestawienie!AF26>0,Zestawienie!AF26,"ZERO") -> ZERO | AN21: =IF(Zestawienie!AG26>0,Zestawienie!AG26,"ZERO") -> ZERO | AO21: =IF(Zestawienie!AH26>0,Zestawienie!AH26,"ZERO") -> ZERO | AQ21: =IF(Zestawienie!AI26>0,Zestawienie!AI26,"ZERO") -> ZERO | AR21: =IF(Zestawienie!AJ26>0,Zestawienie!AJ26,"ZERO") -> ZERO | AS21: =IF(Zestawienie!AK26>0,Zestawienie!AK26,"ZERO") -> ZERO | AT21: =IF(Zestawienie!AL26>0,Zestawienie!AL26,"ZERO") -> ZERO
A22: =Zestawienie!A27 -> 18 | B22: =Dane!D20 -> 0 | C22: =IF(Zestawienie!C27>0,Zestawienie!C27,"ZERO") -> ZERO | D22: =IF(Zestawienie!D27>0,Zestawienie!D27,"ZERO") -> ZERO | E22: =IF(Zestawienie!E27>0,Zestawienie!E27,"ZERO") -> ZERO | F22: =IF(Zestawienie!F27>0,Zestawienie!F27,"ZERO") -> ZERO | H22: =IF(Zestawienie!G27>0,Zestawienie!G27,"ZERO") -> ZERO | I22: =IF(Zestawienie!H27>0,Zestawienie!H27,"ZERO") -> ZERO | J22: =IF(Zestawienie!I27>0,Zestawienie!I27,"ZERO") -> ZERO | K22: =IF(Zestawienie!J27>0,Zestawienie!J27,"ZERO") -> ZERO | M22: =IF(Zestawienie!K27>0,Zestawienie!K27,"ZERO") -> ZERO | N22: =IF(Zestawienie!L27>0,Zestawienie!L27,"ZERO") -> ZERO | O22: =IF(Zestawienie!M27>0,Zestawienie!M27,"ZERO") -> ZERO | P22: =IF(Zestawienie!N27>0,Zestawienie!N27,"ZERO") -> ZERO | R22: =IF(Zestawienie!O27>0,Zestawienie!O27,"ZERO") -> ZERO | S22: =IF(Zestawienie!P27>0,Zestawienie!P27,"ZERO") -> ZERO | T22: =IF(Zestawienie!Q27>0,Zestawienie!Q27,"ZERO") -> ZERO | U22: =IF(Zestawienie!R27>0,Zestawienie!R27,"ZERO") -> ZERO | W22: =IF(Zestawienie!S27>0,Zestawienie!S27,"ZERO") -> ZERO | X22: =IF(Zestawienie!T27>0,Zestawienie!T27,"ZERO") -> ZERO | Y22: =IF(Zestawienie!U27>0,Zestawienie!U27,"ZERO") -> ZERO | Z22: =IF(Zestawienie!V27>0,Zestawienie!V27,"ZERO") -> ZERO | AB22: =IF(Zestawienie!W27>0,Zestawienie!W27,"ZERO") -> ZERO | AC22: =IF(Zestawienie!X27>0,Zestawienie!X27,"ZERO") -> ZERO | AD22: =IF(Zestawienie!Y27>0,Zestawienie!Y27,"ZERO") -> ZERO | AE22: =IF(Zestawienie!Z27>0,Zestawienie!Z27,"ZERO") -> ZERO | AG22: =IF(Zestawienie!AA27>0,Zestawienie!AA27,"ZERO") -> ZERO | AH22: =IF(Zestawienie!AB27>0,Zestawienie!AB27,"ZERO") -> ZERO | AI22: =IF(Zestawienie!AC27>0,Zestawienie!AC27,"ZERO") -> ZERO | AJ22: =IF(Zestawienie!AD27>0,Zestawienie!AD27,"ZERO") -> ZERO | AL22: =IF(Zestawienie!AE27>0,Zestawienie!AE27,"ZERO") -> ZERO | AM22: =IF(Zestawienie!AF27>0,Zestawienie!AF27,"ZERO") -> ZERO | AN22: =IF(Zestawienie!AG27>0,Zestawienie!AG27,"ZERO") -> ZERO | AO22: =IF(Zestawienie!AH27>0,Zestawienie!AH27,"ZERO") -> ZERO | AQ22: =IF(Zestawienie!AI27>0,Zestawienie!AI27,"ZERO") -> ZERO | AR22: =IF(Zestawienie!AJ27>0,Zestawienie!AJ27,"ZERO") -> ZERO | AS22: =IF(Zestawienie!AK27>0,Zestawienie!AK27,"ZERO") -> ZERO | AT22: =IF(Zestawienie!AL27>0,Zestawienie!AL27,"ZERO") -> ZERO
A23: =Zestawienie!A28 -> 19 | B23: =Dane!D21 -> 0 | C23: =IF(Zestawienie!C28>0,Zestawienie!C28,"ZERO") -> ZERO | D23: =IF(Zestawienie!D28>0,Zestawienie!D28,"ZERO") -> ZERO | E23: =IF(Zestawienie!E28>0,Zestawienie!E28,"ZERO") -> ZERO | F23: =IF(Zestawienie!F28>0,Zestawienie!F28,"ZERO") -> ZERO | H23: =IF(Zestawienie!G28>0,Zestawienie!G28,"ZERO") -> ZERO | I23: =IF(Zestawienie!H28>0,Zestawienie!H28,"ZERO") -> ZERO | J23: =IF(Zestawienie!I28>0,Zestawienie!I28,"ZERO") -> ZERO | K23: =IF(Zestawienie!J28>0,Zestawienie!J28,"ZERO") -> ZERO | M23: =IF(Zestawienie!K28>0,Zestawienie!K28,"ZERO") -> ZERO | N23: =IF(Zestawienie!L28>0,Zestawienie!L28,"ZERO") -> ZERO | O23: =IF(Zestawienie!M28>0,Zestawienie!M28,"ZERO") -> ZERO | P23: =IF(Zestawienie!N28>0,Zestawienie!N28,"ZERO") -> ZERO | R23: =IF(Zestawienie!O28>0,Zestawienie!O28,"ZERO") -> ZERO | S23: =IF(Zestawienie!P28>0,Zestawienie!P28,"ZERO") -> ZERO | T23: =IF(Zestawienie!Q28>0,Zestawienie!Q28,"ZERO") -> ZERO | U23: =IF(Zestawienie!R28>0,Zestawienie!R28,"ZERO") -> ZERO | W23: =IF(Zestawienie!S28>0,Zestawienie!S28,"ZERO") -> ZERO | X23: =IF(Zestawienie!T28>0,Zestawienie!T28,"ZERO") -> ZERO | Y23: =IF(Zestawienie!U28>0,Zestawienie!U28,"ZERO") -> ZERO | Z23: =IF(Zestawienie!V28>0,Zestawienie!V28,"ZERO") -> ZERO | AB23: =IF(Zestawienie!W28>0,Zestawienie!W28,"ZERO") -> ZERO | AC23: =IF(Zestawienie!X28>0,Zestawienie!X28,"ZERO") -> ZERO | AD23: =IF(Zestawienie!Y28>0,Zestawienie!Y28,"ZERO") -> ZERO | AE23: =IF(Zestawienie!Z28>0,Zestawienie!Z28,"ZERO") -> ZERO | AG23: =IF(Zestawienie!AA28>0,Zestawienie!AA28,"ZERO") -> ZERO | AH23: =IF(Zestawienie!AB28>0,Zestawienie!AB28,"ZERO") -> ZERO | AI23: =IF(Zestawienie!AC28>0,Zestawienie!AC28,"ZERO") -> ZERO | AJ23: =IF(Zestawienie!AD28>0,Zestawienie!AD28,"ZERO") -> ZERO | AL23: =IF(Zestawienie!AE28>0,Zestawienie!AE28,"ZERO") -> ZERO | AM23: =IF(Zestawienie!AF28>0,Zestawienie!AF28,"ZERO") -> ZERO | AN23: =IF(Zestawienie!AG28>0,Zestawienie!AG28,"ZERO") -> ZERO | AO23: =IF(Zestawienie!AH28>0,Zestawienie!AH28,"ZERO") -> ZERO | AQ23: =IF(Zestawienie!AI28>0,Zestawienie!AI28,"ZERO") -> ZERO | AR23: =IF(Zestawienie!AJ28>0,Zestawienie!AJ28,"ZERO") -> ZERO | AS23: =IF(Zestawienie!AK28>0,Zestawienie!AK28,"ZERO") -> ZERO | AT23: =IF(Zestawienie!AL28>0,Zestawienie!AL28,"ZERO") -> ZERO
A24: =Zestawienie!A29 -> 20 | B24: =Dane!D22 -> 0 | C24: =IF(Zestawienie!C29>0,Zestawienie!C29,"ZERO") -> ZERO | D24: =IF(Zestawienie!D29>0,Zestawienie!D29,"ZERO") -> ZERO | E24: =IF(Zestawienie!E29>0,Zestawienie!E29,"ZERO") -> ZERO | F24: =IF(Zestawienie!F29>0,Zestawienie!F29,"ZERO") -> ZERO | H24: =IF(Zestawienie!G29>0,Zestawienie!G29,"ZERO") -> ZERO | I24: =IF(Zestawienie!H29>0,Zestawienie!H29,"ZERO") -> ZERO | J24: =IF(Zestawienie!I29>0,Zestawienie!I29,"ZERO") -> ZERO | K24: =IF(Zestawienie!J29>0,Zestawienie!J29,"ZERO") -> ZERO | M24: =IF(Zestawienie!K29>0,Zestawienie!K29,"ZERO") -> ZERO | N24: =IF(Zestawienie!L29>0,Zestawienie!L29,"ZERO") -> ZERO | O24: =IF(Zestawienie!M29>0,Zestawienie!M29,"ZERO") -> ZERO | P24: =IF(Zestawienie!N29>0,Zestawienie!N29,"ZERO") -> ZERO | R24: =IF(Zestawienie!O29>0,Zestawienie!O29,"ZERO") -> ZERO | S24: =IF(Zestawienie!P29>0,Zestawienie!P29,"ZERO") -> ZERO | T24: =IF(Zestawienie!Q29>0,Zestawienie!Q29,"ZERO") -> ZERO | U24: =IF(Zestawienie!R29>0,Zestawienie!R29,"ZERO") -> ZERO | W24: =IF(Zestawienie!S29>0,Zestawienie!S29,"ZERO") -> ZERO | X24: =IF(Zestawienie!T29>0,Zestawienie!T29,"ZERO") -> ZERO | Y24: =IF(Zestawienie!U29>0,Zestawienie!U29,"ZERO") -> ZERO | Z24: =IF(Zestawienie!V29>0,Zestawienie!V29,"ZERO") -> ZERO | AB24: =IF(Zestawienie!W29>0,Zestawienie!W29,"ZERO") -> ZERO | AC24: =IF(Zestawienie!X29>0,Zestawienie!X29,"ZERO") -> ZERO | AD24: =IF(Zestawienie!Y29>0,Zestawienie!Y29,"ZERO") -> ZERO | AE24: =IF(Zestawienie!Z29>0,Zestawienie!Z29,"ZERO") -> ZERO | AG24: =IF(Zestawienie!AA29>0,Zestawienie!AA29,"ZERO") -> ZERO | AH24: =IF(Zestawienie!AB29>0,Zestawienie!AB29,"ZERO") -> ZERO | AI24: =IF(Zestawienie!AC29>0,Zestawienie!AC29,"ZERO") -> ZERO | AJ24: =IF(Zestawienie!AD29>0,Zestawienie!AD29,"ZERO") -> ZERO | AL24: =IF(Zestawienie!AE29>0,Zestawienie!AE29,"ZERO") -> ZERO | AM24: =IF(Zestawienie!AF29>0,Zestawienie!AF29,"ZERO") -> ZERO | AN24: =IF(Zestawienie!AG29>0,Zestawienie!AG29,"ZERO") -> ZERO | AO24: =IF(Zestawienie!AH29>0,Zestawienie!AH29,"ZERO") -> ZERO | AQ24: =IF(Zestawienie!AI29>0,Zestawienie!AI29,"ZERO") -> ZERO | AR24: =IF(Zestawienie!AJ29>0,Zestawienie!AJ29,"ZERO") -> ZERO | AS24: =IF(Zestawienie!AK29>0,Zestawienie!AK29,"ZERO") -> ZERO | AT24: =IF(Zestawienie!AL29>0,Zestawienie!AL29,"ZERO") -> ZERO
A31: =A3 -> Nr oferty | B31: =B3 -> Nazwa Wykonawcy | H31: =H3 -> Zadanie 2 | M31: =M3 -> Zadanie 3 | R31: =R3 -> Zadanie 4 | W31: =W3 -> Zadanie 5 | AB31: =AB3 -> Zadanie 6 | AG31: =AG3 -> Zadanie 7 | AL31: =AL3 -> Zadanie 8 | AQ31: =AQ3 -> Zadanie 9
A32: =Zestawienie!A37 -> 0 | B32: =Zestawienie!B37 -> 0 | C32: =C4 -> Cena - 50% | D32: =D4 -> Doświadczenie trenera w realizacji szkolen/warsztetów interpersonalnych ( w godzinach) 40% | E32: Termin przeprowadzenia I Warsztatu (w dniach) 10% | F32: % | G32: Razem | H32: Cena - 60% | I32: % | J32: % | K32: % | L32: Razem | M32: Cena - 60% | N32: % | O32: % | P32: % | Q32: Razem | R32: Cena - 60% | S32: % | T32: % | U32: % | V32: Razem | W32: Cena - 60% | X32: % | Y32: % | Z32: % | AA32: Razem | AB32: Cena - 60% | AC32: % | AD32: % | AE32: % | AF32: Razem | AG32: Cena - 60% | AH32: % | AI32: % | AJ32: % | AK32: Razem | AL32: Cena - 60% | AM32: % | AN32: % | AO32: % | AP32: Razem | AQ32: Cena - 60% | AR32: Okres gwarancji (w miesiącach) - % | AS32: Termin płatności (w dniach) - % | AT32: % | AU32: Razem
A33: 1 | B33: =Zestawienie!B10 -> Nowoczesny Osrodek Edukacji Anna Ratuszniak ul. Zaułek Szkolny 24 55-002 Kamieniec Wrocławski | C33: =IF(C$1="M",MIN(C$5:C$24)/C5*C$2,IF(C$1="R",C5/MAX(C$5:C$24)*C$2,"00")) -> 16.8 | D33: =IF(D$1="M",MIN(D$5:D$24)/D5*D$2,IF(D$1="R",D5/MAX(D$5:D$24)*D$2,"00")) -> 28.1 | E33: 10.0 | F33: 00 | G33: =C33+D33+E33+F33 -> 54.9 | H33: =IF(H$1="M",MIN(H$5:H$24)/H5*H$2,IF(H$1="R",H5/MAX(H$5:H$24)*H$2,"00")) ->  | I33: =IF(I$1="M",MIN(I$5:I$24)/I5*I$2,IF(I$1="R",I5/MAX(I$5:I$24)*I$2,"00")) -> 00 | J33: 00 | K33: 00 | L33: =H33+I33+J33+K33 ->  | M33: =IF(M$1="M",MIN(M$5:M$24)/M5*M$2,IF(M$1="R",M5/MAX(M$5:M$24)*M$2,"00")) ->  | N33: =IF(N$1="M",MIN(N$5:N$24)/N5*N$2,IF(N$1="R",N5/MAX(N$5:N$24)*N$2,"00")) -> 00 | O33: 00 | P33: 00 | Q33: =M33+N33+O33+P33 ->  | R33: =IF(R$1="M",MIN(R$5:R$24)/R5*R$2,IF(R$1="R",R5/MAX(R$5:R$24)*R$2,"00")) ->  | S33: =IF(S$1="M",MIN(S$5:S$24)/S5*S$2,IF(S$1="R",S5/MAX(S$5:S$24)*S$2,"00")) -> 00 | T33: 00 | U33: 00 | V33: =R33+S33+T33+U33 ->  | W33: =IF(W$1="M",MIN(W$5:W$24)/W5*W$2,IF(W$1="R",W5/MAX(W$5:W$24)*W$2,"00")) ->  | X33: =IF(X$1="M",MIN(X$5:X$24)/X5*X$2,IF(X$1="R",X5/MAX(X$5:X$24)*X$2,"00")) -> 00 | Y33: 00 | Z33: 00 | AA33: =W33+X33+Y33+Z33 ->  | AB33: =IF(AB$1="M",MIN(AB$5:AB$24)/AB5*AB$2,IF(AB$1="R",AB5/MAX(AB$5:AB$24)*AB$2,"00")) ->  | AC33: =IF(AC$1="M",MIN(AC$5:AC$24)/AC5*AC$2,IF(AC$1="R",AC5/MAX(AC$5:AC$24)*AC$2,"00")) -> 00 | AD33: 00 | AE33: 00 | AF33: =AB33+AC33+AD33+AE33 ->  | AG33: =IF(AG$1="M",MIN(AG$5:AG$24)/AG5*AG$2,IF(AG$1="R",AG5/MAX(AG$5:AG$24)*AG$2,"00")) ->  | AH33: =IF(AH$1="M",MIN(AH$5:AH$24)/AH5*AH$2,IF(AH$1="R",AH5/MAX(AH$5:AH$24)*AH$2,"00")) -> 00 | AI33: 00 | AJ33: 00 | AK33: =AG33+AH33+AI33+AJ33 ->  | AL33: =IF(AL$1="M",MIN(AL$5:AL$24)/AL5*AL$2,IF(AL$1="R",AL5/MAX(AL$5:AL$24)*AL$2,"00")) ->  | AM33: =IF(AM$1="M",MIN(AM$5:AM$24)/AM5*AM$2,IF(AM$1="R",AM5/MAX(AM$5:AM$24)*AM$2,"00")) -> 00 | AN33: 00 | AO33: 00 | AP33: =AL33+AM33+AN33+AO33 ->  | AQ33: =IF(AQ$1="M",MIN(AQ$5:AQ$24)/AQ5*AQ$2,IF(AQ$1="R",AQ5/MAX(AQ$5:AQ$24)*AQ$2,"00")) ->  | AR33: =IF(AR$1="M",MIN(AR$5:AR$24)/AR5*AR$2,IF(AR$1="R",AR5/MAX(AR$5:AR$24)*AR$2,"00")) -> 00 | AS33: 00 | AT33: 00 | AU33: =AQ33+AR33+AS33+AT33 -> 
A34: 2 | B34: =Zestawienie!B11 -> Agencja Analiz i Doradztwa Personalnego Remigiusz Koc ul. Gdańska 105/4 85-022 Bydgoszcz | C34: =IF(C$1="M",MIN(C$5:C$24)/C6*C$2,IF(C$1="R",C6/MAX(C$5:C$24)*C$2,"00")) -> 30.1 | D34: 9.7 | E34: 10.0 | F34: 00 | G34: =C34+D34+E34+F34 -> 49.8 | H34: =IF(H$1="M",MIN(H$5:H$24)/H6*H$2,IF(H$1="R",H6/MAX(H$5:H$24)*H$2,"00")) ->  | I34: 00 | J34: 00 | K34: 00 | L34: =H34+I34+J34+K34 ->  | M34: =IF(M$1="M",MIN(M$5:M$24)/M6*M$2,IF(M$1="R",M6/MAX(M$5:M$24)*M$2,"00")) ->  | N34: 00 | O34: 00 | P34: 00 | Q34: =M34+N34+O34+P34 ->  | R34: =IF(R$1="M",MIN(R$5:R$24)/R6*R$2,IF(R$1="R",R6/MAX(R$5:R$24)*R$2,"00")) ->  | S34: 00 | T34: 00 | U34: 00 | V34: =R34+S34+T34+U34 ->  | W34: =IF(W$1="M",MIN(W$5:W$24)/W6*W$2,IF(W$1="R",W6/MAX(W$5:W$24)*W$2,"00")) ->  | X34: 00 | Y34: 00 | Z34: 00 | AA34: =W34+X34+Y34+Z34 ->  | AB34: =IF(AB$1="M",MIN(AB$5:AB$24)/AB6*AB$2,IF(AB$1="R",AB6/MAX(AB$5:AB$24)*AB$2,"00")) ->  | AC34: 00 | AD34: 00 | AE34: 00 | AF34: =AB34+AC34+AD34+AE34 ->  | AG34: =IF(AG$1="M",MIN(AG$5:AG$24)/AG6*AG$2,IF(AG$1="R",AG6/MAX(AG$5:AG$24)*AG$2,"00")) ->  | AH34: 00 | AI34: 00 | AJ34: 00 | AK34: =AG34+AH34+AI34+AJ34 ->  | AL34: =IF(AL$1="M",MIN(AL$5:AL$24)/AL6*AL$2,IF(AL$1="R",AL6/MAX(AL$5:AL$24)*AL$2,"00")) ->  | AM34: 00 | AN34: 00 | AO34: 00 | AP34: =AL34+AM34+AN34+AO34 ->  | AQ34: =IF(AQ$1="M",MIN(AQ$5:AQ$24)/AQ6*AQ$2,IF(AQ$1="R",AQ6/MAX(AQ$5:AQ$24)*AQ$2,"00")) ->  | AR34: 00 | AS34: 00 | AT34: 00 | AU34: =AQ34+AR34+AS34+AT34 -> 
A35: 3 | B35: =Zestawienie!B12 -> IMMOQEE Sp. z o.o. ul. Karola Chodkiewicza 3 lok. U 10 02-593 Warszawa | C35: =IF(C$1="M",MIN(C$5:C$24)/C7*C$2,IF(C$1="R",C7/MAX(C$5:C$24)*C$2,"00")) -> 25.8 | D35: 4.0 | E35: 3.3 | F35: 00 | G35: 33.1 | H35: =IF(H$1="M",MIN(H$5:H$24)/H7*H$2,IF(H$1="R",H7/MAX(H$5:H$24)*H$2,"00")) ->  | I35: 00 | J35: 00 | K35: 00 | M35: =IF(M$1="M",MIN(M$5:M$24)/M7*M$2,IF(M$1="R",M7/MAX(M$5:M$24)*M$2,"00")) ->  | N35: 00 | O35: 00 | P35: 00 | R35: =IF(R$1="M",MIN(R$5:R$24)/R7*R$2,IF(R$1="R",R7/MAX(R$5:R$24)*R$2,"00")) ->  | S35: 00 | T35: 00 | U35: 00 | W35: =IF(W$1="M",MIN(W$5:W$24)/W7*W$2,IF(W$1="R",W7/MAX(W$5:W$24)*W$2,"00")) ->  | X35: 00 | Y35: 00 | Z35: 00 | AB35: =IF(AB$1="M",MIN(AB$5:AB$24)/AB7*AB$2,IF(AB$1="R",AB7/MAX(AB$5:AB$24)*AB$2,"00")) ->  | AC35: 00 | AD35: 00 | AE35: 00 | AG35: =IF(AG$1="M",MIN(AG$5:AG$24)/AG7*AG$2,IF(AG$1="R",AG7/MAX(AG$5:AG$24)*AG$2,"00")) ->  | AH35: 00 | AI35: 00 | AJ35: 00 | AL35: =IF(AL$1="M",MIN(AL$5:AL$24)/AL7*AL$2,IF(AL$1="R",AL7/MAX(AL$5:AL$24)*AL$2,"00")) ->  | AM35: 00 | AN35: 00 | AO35: 00 | AQ35: =IF(AQ$1="M",MIN(AQ$5:AQ$24)/AQ7*AQ$2,IF(AQ$1="R",AQ7/MAX(AQ$5:AQ$24)*AQ$2,"00")) ->  | AR35: 00 | AS35: 00 | AT35: 00
A36: 4 | B36: =Zestawienie!B13 -> Brainstorm Group Sp. z o.o. ul. Perła 10 41-300 Dabrowa Górnicza | C36: =IF(C$1="M",MIN(C$5:C$24)/C8*C$2,IF(C$1="R",C8/MAX(C$5:C$24)*C$2,"00")) -> 6.8 | D36: 12.7 | E36: 10.0 | F36: 00 | G36: 29.5 | H36: =IF(H$1="M",MIN(H$5:H$24)/H8*H$2,IF(H$1="R",H8/MAX(H$5:H$24)*H$2,"00")) ->  | I36: 00 | J36: 00 | K36: 00 | M36: =IF(M$1="M",MIN(M$5:M$24)/M8*M$2,IF(M$1="R",M8/MAX(M$5:M$24)*M$2,"00")) ->  | N36: 00 | O36: 00 | P36: 00 | R36: =IF(R$1="M",MIN(R$5:R$24)/R8*R$2,IF(R$1="R",R8/MAX(R$5:R$24)*R$2,"00")) ->  | S36: 00 | T36: 00 | U36: 00 | W36: =IF(W$1="M",MIN(W$5:W$24)/W8*W$2,IF(W$1="R",W8/MAX(W$5:W$24)*W$2,"00")) ->  | X36: 00 | Y36: 00 | Z36: 00 | AB36: =IF(AB$1="M",MIN(AB$5:AB$24)/AB8*AB$2,IF(AB$1="R",AB8/MAX(AB$5:AB$24)*AB$2,"00")) ->  | AC36: 00 | AD36: 00 | AE36: 00 | AG36: =IF(AG$1="M",MIN(AG$5:AG$24)/AG8*AG$2,IF(AG$1="R",AG8/MAX(AG$5:AG$24)*AG$2,"00")) ->  | AH36: 00 | AI36: 00 | AJ36: 00 | AL36: =IF(AL$1="M",MIN(AL$5:AL$24)/AL8*AL$2,IF(AL$1="R",AL8/MAX(AL$5:AL$24)*AL$2,"00")) ->  | AM36: 00 | AN36: 00 | AO36: 00 | AQ36: =IF(AQ$1="M",MIN(AQ$5:AQ$24)/AQ8*AQ$2,IF(AQ$1="R",AQ8/MAX(AQ$5:AQ$24)*AQ$2,"00")) ->  | AR36: 00 | AS36: 00 | AT36: 00
A37: 5 | B37: =Zestawienie!B14 -> Slow Life&Business ul. Szafirowa 78 63-460 Nowe Skalmierzyce | C37: =IF(C$1="M",MIN(C$5:C$24)/C9*C$2,IF(C$1="R",C9/MAX(C$5:C$24)*C$2,"00")) ->  | D37: 3.8 | F37: 00 | H37: =IF(H$1="M",MIN(H$5:H$24)/H9*H$2,IF(H$1="R",H9/MAX(H$5:H$24)*H$2,"00")) ->  | I37: 00 | J37: 00 | K37: 00 | M37: =IF(M$1="M",MIN(M$5:M$24)/M9*M$2,IF(M$1="R",M9/MAX(M$5:M$24)*M$2,"00")) ->  | N37: 00 | O37: 00 | P37: 00 | R37: =IF(R$1="M",MIN(R$5:R$24)/R9*R$2,IF(R$1="R",R9/MAX(R$5:R$24)*R$2,"00")) ->  | S37: 00 | T37: 00 | U37: 00 | W37: =IF(W$1="M",MIN(W$5:W$24)/W9*W$2,IF(W$1="R",W9/MAX(W$5:W$24)*W$2,"00")) ->  | X37: 00 | Y37: 00 | Z37: 00 | AB37: =IF(AB$1="M",MIN(AB$5:AB$24)/AB9*AB$2,IF(AB$1="R",AB9/MAX(AB$5:AB$24)*AB$2,"00")) ->  | AC37: 00 | AD37: 00 | AE37: 00 | AG37: =IF(AG$1="M",MIN(AG$5:AG$24)/AG9*AG$2,IF(AG$1="R",AG9/MAX(AG$5:AG$24)*AG$2,"00")) ->  | AH37: 00 | AI37: 00 | AJ37: 00 | AL37: =IF(AL$1="M",MIN(AL$5:AL$24)/AL9*AL$2,IF(AL$1="R",AL9/MAX(AL$5:AL$24)*AL$2,"00")) ->  | AM37: 00 | AN37: 00 | AO37: 00 | AQ37: =IF(AQ$1="M",MIN(AQ$5:AQ$24)/AQ9*AQ$2,IF(AQ$1="R",AQ9/MAX(AQ$5:AQ$24)*AQ$2,"00")) ->  | AR37: 00 | AS37: 00 | AT37: 00
A38: 6 | B38: =Zestawienie!B15 -> RAJOS COSULTING Rafał Stelmasik ul. C.K.Norwida 1 37-550 Radymno | C38: =IF(C$1="M",MIN(C$5:C$24)/C10*C$2,IF(C$1="R",C10/MAX(C$5:C$24)*C$2,"00")) -> 46.2 | D38: 2.0 | E38: 3.3 | F38: 00 | G38: 51.5 | H38: =IF(H$1="M",MIN(H$5:H$24)/H10*H$2,IF(H$1="R",H10/MAX(H$5:H$24)*H$2,"00")) ->  | I38: 00 | J38: 00 | K38: 00 | M38: =IF(M$1="M",MIN(M$5:M$24)/M10*M$2,IF(M$1="R",M10/MAX(M$5:M$24)*M$2,"00")) ->  | N38: 00 | O38: 00 | P38: 00 | R38: =IF(R$1="M",MIN(R$5:R$24)/R10*R$2,IF(R$1="R",R10/MAX(R$5:R$24)*R$2,"00")) ->  | S38: 00 | T38: 00 | U38: 00 | W38: =IF(W$1="M",MIN(W$5:W$24)/W10*W$2,IF(W$1="R",W10/MAX(W$5:W$24)*W$2,"00")) ->  | X38: 00 | Y38: 00 | Z38: 00 | AB38: =IF(AB$1="M",MIN(AB$5:AB$24)/AB10*AB$2,IF(AB$1="R",AB10/MAX(AB$5:AB$24)*AB$2,"00")) ->  | AC38: 00 | AD38: 00 | AE38: 00 | AG38: =IF(AG$1="M",MIN(AG$5:AG$24)/AG10*AG$2,IF(AG$1="R",AG10/MAX(AG$5:AG$24)*AG$2,"00")) ->  | AH38: 00 | AI38: 00 | AJ38: 00 | AL38: =IF(AL$1="M",MIN(AL$5:AL$24)/AL10*AL$2,IF(AL$1="R",AL10/MAX(AL$5:AL$24)*AL$2,"00")) ->  | AM38: 00 | AN38: 00 | AO38: 00 | AQ38: =IF(AQ$1="M",MIN(AQ$5:AQ$24)/AQ10*AQ$2,IF(AQ$1="R",AQ10/MAX(AQ$5:AQ$24)*AQ$2,"00")) ->  | AR38: 00 | AS38: 00 | AT38: 00
A39: 7 | B39: =Zestawienie!B16 -> Centrum Szkoleń Wielozawodowych DELTA ul. Sandomierska 26a pokój nr 9 27-400 Ostrowiec w. | C39: =IF(C$1="M",MIN(C$5:C$24)/C11*C$2,IF(C$1="R",C11/MAX(C$5:C$24)*C$2,"00")) -> 50.0 | D39: 2.0 | E39: 5.0 | F39: 00 | G39: 57.0 | H39: =IF(H$1="M",MIN(H$5:H$24)/H11*H$2,IF(H$1="R",H11/MAX(H$5:H$24)*H$2,"00")) ->  | I39: 00 | J39: 00 | K39: 00 | M39: =IF(M$1="M",MIN(M$5:M$24)/M11*M$2,IF(M$1="R",M11/MAX(M$5:M$24)*M$2,"00")) ->  | N39: 00 | O39: 00 | P39: 00 | R39: =IF(R$1="M",MIN(R$5:R$24)/R11*R$2,IF(R$1="R",R11/MAX(R$5:R$24)*R$2,"00")) ->  | S39: 00 | T39: 00 | U39: 00 | W39: =IF(W$1="M",MIN(W$5:W$24)/W11*W$2,IF(W$1="R",W11/MAX(W$5:W$24)*W$2,"00")) ->  | X39: 00 | Y39: 00 | Z39: 00 | AB39: =IF(AB$1="M",MIN(AB$5:AB$24)/AB11*AB$2,IF(AB$1="R",AB11/MAX(AB$5:AB$24)*AB$2,"00")) ->  | AC39: 00 | AD39: 00 | AE39: 00 | AG39: =IF(AG$1="M",MIN(AG$5:AG$24)/AG11*AG$2,IF(AG$1="R",AG11/MAX(AG$5:AG$24)*AG$2,"00")) ->  | AH39: 00 | AI39: 00 | AJ39: 00 | AL39: =IF(AL$1="M",MIN(AL$5:AL$24)/AL11*AL$2,IF(AL$1="R",AL11/MAX(AL$5:AL$24)*AL$2,"00")) ->  | AM39: 00 | AN39: 00 | AO39: 00 | AQ39: =IF(AQ$1="M",MIN(AQ$5:AQ$24)/AQ11*AQ$2,IF(AQ$1="R",AQ11/MAX(AQ$5:AQ$24)*AQ$2,"00")) ->  | AR39: 00 | AS39: 00 | AT39: 00
A40: 8 | B40: =Zestawienie!B17 -> Coach and Go Joanna Chorwacka ul. Sosnowa 6d 86-300 Grudziądz | C40: =IF(C$1="M",MIN(C$5:C$24)/C12*C$2,IF(C$1="R",C12/MAX(C$5:C$24)*C$2,"00")) -> 31.4 | D40: 3.3 | E40: 5.0 | F40: 00 | G40: 39.7 | H40: =IF(H$1="M",MIN(H$5:H$24)/H12*H$2,IF(H$1="R",H12/MAX(H$5:H$24)*H$2,"00")) ->  | I40: 00 | J40: 00 | K40: 00 | M40: =IF(M$1="M",MIN(M$5:M$24)/M12*M$2,IF(M$1="R",M12/MAX(M$5:M$24)*M$2,"00")) ->  | N40: 00 | O40: 00 | P40: 00 | R40: =IF(R$1="M",MIN(R$5:R$24)/R12*R$2,IF(R$1="R",R12/MAX(R$5:R$24)*R$2,"00")) ->  | S40: 00 | T40: 00 | U40: 00 | W40: =IF(W$1="M",MIN(W$5:W$24)/W12*W$2,IF(W$1="R",W12/MAX(W$5:W$24)*W$2,"00")) ->  | X40: 00 | Y40: 00 | Z40: 00 | AB40: =IF(AB$1="M",MIN(AB$5:AB$24)/AB12*AB$2,IF(AB$1="R",AB12/MAX(AB$5:AB$24)*AB$2,"00")) ->  | AC40: 00 | AD40: 00 | AE40: 00 | AG40: =IF(AG$1="M",MIN(AG$5:AG$24)/AG12*AG$2,IF(AG$1="R",AG12/MAX(AG$5:AG$24)*AG$2,"00")) ->  | AH40: 00 | AI40: 00 | AJ40: 00 | AL40: =IF(AL$1="M",MIN(AL$5:AL$24)/AL12*AL$2,IF(AL$1="R",AL12/MAX(AL$5:AL$24)*AL$2,"00")) ->  | AM40: 00 | AN40: 00 | AO40: 00 | AQ40: =IF(AQ$1="M",MIN(AQ$5:AQ$24)/AQ12*AQ$2,IF(AQ$1="R",AQ12/MAX(AQ$5:AQ$24)*AQ$2,"00")) ->  | AR40: 00 | AS40: 00 | AT40: 00
A41: 9 | B41: =Zestawienie!B18 -> Moja Firma Elzbieta Kowalska ul. Uniwersytecka 33/35 lok. 36 90-233 Łódź | C41: =IF(C$1="M",MIN(C$5:C$24)/C13*C$2,IF(C$1="R",C13/MAX(C$5:C$24)*C$2,"00")) -> 15.7 | D41: 20.1 | E41: 10.0 | F41: 00 | G41: 45.8 | H41: =IF(H$1="M",MIN(H$5:H$24)/H13*H$2,IF(H$1="R",H13/MAX(H$5:H$24)*H$2,"00")) ->  | I41: 00 | J41: 00 | K41: 00 | M41: =IF(M$1="M",MIN(M$5:M$24)/M13*M$2,IF(M$1="R",M13/MAX(M$5:M$24)*M$2,"00")) ->  | N41: 00 | O41: 00 | P41: 00 | R41: =IF(R$1="M",MIN(R$5:R$24)/R13*R$2,IF(R$1="R",R13/MAX(R$5:R$24)*R$2,"00")) ->  | S41: 00 | T41: 00 | U41: 00 | W41: =IF(W$1="M",MIN(W$5:W$24)/W13*W$2,IF(W$1="R",W13/MAX(W$5:W$24)*W$2,"00")) ->  | X41: 00 | Y41: 00 | Z41: 00 | AB41: =IF(AB$1="M",MIN(AB$5:AB$24)/AB13*AB$2,IF(AB$1="R",AB13/MAX(AB$5:AB$24)*AB$2,"00")) ->  | AC41: 00 | AD41: 00 | AE41: 00 | AG41: =IF(AG$1="M",MIN(AG$5:AG$24)/AG13*AG$2,IF(AG$1="R",AG13/MAX(AG$5:AG$24)*AG$2,"00")) ->  | AH41: 00 | AI41: 00 | AJ41: 00 | AL41: =IF(AL$1="M",MIN(AL$5:AL$24)/AL13*AL$2,IF(AL$1="R",AL13/MAX(AL$5:AL$24)*AL$2,"00")) ->  | AM41: 00 | AN41: 00 | AO41: 00 | AQ41: =IF(AQ$1="M",MIN(AQ$5:AQ$24)/AQ13*AQ$2,IF(AQ$1="R",AQ13/MAX(AQ$5:AQ$24)*AQ$2,"00")) ->  | AR41: 00 | AS41: 00 | AT41: 00
A42: 10 | B42: =Zestawienie!B19 -> LCE LOGOS Centrum Edukacyjne ul. Ks.Kard.Wyszyńskiego 6 lok 44 18-400 Łomża | C42: =IF(C$1="M",MIN(C$5:C$24)/C14*C$2,IF(C$1="R",C14/MAX(C$5:C$24)*C$2,"00")) -> 41.3 | D42: 6.1 | E42: 10.0 | F42: 00 | G42: 57.4 | H42: =IF(H$1="M",MIN(H$5:H$24)/H14*H$2,IF(H$1="R",H14/MAX(H$5:H$24)*H$2,"00")) ->  | I42: 00 | J42: 00 | K42: 00 | M42: =IF(M$1="M",MIN(M$5:M$24)/M14*M$2,IF(M$1="R",M14/MAX(M$5:M$24)*M$2,"00")) ->  | N42: 00 | O42: 00 | P42: 00 | R42: =IF(R$1="M",MIN(R$5:R$24)/R14*R$2,IF(R$1="R",R14/MAX(R$5:R$24)*R$2,"00")) ->  | S42: 00 | T42: 00 | U42: 00 | W42: =IF(W$1="M",MIN(W$5:W$24)/W14*W$2,IF(W$1="R",W14/MAX(W$5:W$24)*W$2,"00")) ->  | X42: 00 | Y42: 00 | Z42: 00 | AB42: =IF(AB$1="M",MIN(AB$5:AB$24)/AB14*AB$2,IF(AB$1="R",AB14/MAX(AB$5:AB$24)*AB$2,"00")) ->  | AC42: 00 | AD42: 00 | AE42: 00 | AG42: =IF(AG$1="M",MIN(AG$5:AG$24)/AG14*AG$2,IF(AG$1="R",AG14/MAX(AG$5:AG$24)*AG$2,"00")) ->  | AH42: 00 | AI42: 00 | AJ42: 00 | AL42: =IF(AL$1="M",MIN(AL$5:AL$24)/AL14*AL$2,IF(AL$1="R",AL14/MAX(AL$5:AL$24)*AL$2,"00")) ->  | AM42: 00 | AN42: 00 | AO42: 00 | AQ42: =IF(AQ$1="M",MIN(AQ$5:AQ$24)/AQ14*AQ$2,IF(AQ$1="R",AQ14/MAX(AQ$5:AQ$24)*AQ$2,"00")) ->  | AR42: 00 | AS42: 00 | AT42: 00
A43: 11 | B43: =Zestawienie!B20 -> SEKA S.A. ul. Bernardyńska 13 85-029 Bydgoszcz | C43: =IF(C$1="M",MIN(C$5:C$24)/C15*C$2,IF(C$1="R",C15/MAX(C$5:C$24)*C$2,"00")) -> 28.7 | D43: 20.2 | E43: 10.0 | F43: 00 | G43: 58.9 | H43: =IF(H$1="M",MIN(H$5:H$24)/H15*H$2,IF(H$1="R",H15/MAX(H$5:H$24)*H$2,"00")) ->  | I43: 00 | J43: 00 | K43: 00 | M43: =IF(M$1="M",MIN(M$5:M$24)/M15*M$2,IF(M$1="R",M15/MAX(M$5:M$24)*M$2,"00")) ->  | N43: 00 | O43: 00 | P43: 00 | R43: =IF(R$1="M",MIN(R$5:R$24)/R15*R$2,IF(R$1="R",R15/MAX(R$5:R$24)*R$2,"00")) ->  | S43: 00 | T43: 00 | U43: 00 | W43: =IF(W$1="M",MIN(W$5:W$24)/W15*W$2,IF(W$1="R",W15/MAX(W$5:W$24)*W$2,"00")) ->  | X43: 00 | Y43: 00 | Z43: 00 | AB43: =IF(AB$1="M",MIN(AB$5:AB$24)/AB15*AB$2,IF(AB$1="R",AB15/MAX(AB$5:AB$24)*AB$2,"00")) ->  | AC43: 00 | AD43: 00 | AE43: 00 | AG43: =IF(AG$1="M",MIN(AG$5:AG$24)/AG15*AG$2,IF(AG$1="R",AG15/MAX(AG$5:AG$24)*AG$2,"00")) ->  | AH43: 00 | AI43: 00 | AJ43: 00 | AL43: =IF(AL$1="M",MIN(AL$5:AL$24)/AL15*AL$2,IF(AL$1="R",AL15/MAX(AL$5:AL$24)*AL$2,"00")) ->  | AM43: 00 | AN43: 00 | AO43: 00 | AQ43: =IF(AQ$1="M",MIN(AQ$5:AQ$24)/AQ15*AQ$2,IF(AQ$1="R",AQ15/MAX(AQ$5:AQ$24)*AQ$2,"00")) ->  | AR43: 00 | AS43: 00 | AT43: 00
A44: 12 | B44: =Zestawienie!B21 -> Polska Akademia Oświaty Sp. z o.o. ul. Krańcowa 17/1 02-493 Warszawa | C44: =IF(C$1="M",MIN(C$5:C$24)/C16*C$2,IF(C$1="R",C16/MAX(C$5:C$24)*C$2,"00")) -> 15.7 | D44: 40.0 | E44: 10.0 | F44: 00 | G44: 65.7 | H44: =IF(H$1="M",MIN(H$5:H$24)/H16*H$2,IF(H$1="R",H16/MAX(H$5:H$24)*H$2,"00")) ->  | I44: 00 | J44: 00 | K44: 00 | M44: =IF(M$1="M",MIN(M$5:M$24)/M16*M$2,IF(M$1="R",M16/MAX(M$5:M$24)*M$2,"00")) ->  | N44: 00 | O44: 00 | P44: 00 | R44: =IF(R$1="M",MIN(R$5:R$24)/R16*R$2,IF(R$1="R",R16/MAX(R$5:R$24)*R$2,"00")) ->  | S44: 00 | T44: 00 | U44: 00 | W44: =IF(W$1="M",MIN(W$5:W$24)/W16*W$2,IF(W$1="R",W16/MAX(W$5:W$24)*W$2,"00")) ->  | X44: 00 | Y44: 00 | Z44: 00 | AB44: =IF(AB$1="M",MIN(AB$5:AB$24)/AB16*AB$2,IF(AB$1="R",AB16/MAX(AB$5:AB$24)*AB$2,"00")) ->  | AC44: 00 | AD44: 00 | AE44: 00 | AG44: =IF(AG$1="M",MIN(AG$5:AG$24)/AG16*AG$2,IF(AG$1="R",AG16/MAX(AG$5:AG$24)*AG$2,"00")) ->  | AH44: 00 | AI44: 00 | AJ44: 00 | AL44: =IF(AL$1="M",MIN(AL$5:AL$24)/AL16*AL$2,IF(AL$1="R",AL16/MAX(AL$5:AL$24)*AL$2,"00")) ->  | AM44: 00 | AN44: 00 | AO44: 00 | AQ44: =IF(AQ$1="M",MIN(AQ$5:AQ$24)/AQ16*AQ$2,IF(AQ$1="R",AQ16/MAX(AQ$5:AQ$24)*AQ$2,"00")) ->  | AR44: 00 | AS44: 00 | AT44: 00
A45: 13 | B45: =Zestawienie!B22 -> 0 0 0 | C45: =IF(C$1="M",MIN(C$5:C$24)/C17*C$2,IF(C$1="R",C17/MAX(C$5:C$24)*C$2,"00")) ->  | F45: 00 | H45: =IF(H$1="M",MIN(H$5:H$24)/H17*H$2,IF(H$1="R",H17/MAX(H$5:H$24)*H$2,"00")) ->  | I45: 00 | J45: 00 | K45: 00 | M45: =IF(M$1="M",MIN(M$5:M$24)/M17*M$2,IF(M$1="R",M17/MAX(M$5:M$24)*M$2,"00")) ->  | N45: 00 | O45: 00 | P45: 00 | R45: =IF(R$1="M",MIN(R$5:R$24)/R17*R$2,IF(R$1="R",R17/MAX(R$5:R$24)*R$2,"00")) ->  | S45: 00 | T45: 00 | U45: 00 | W45: =IF(W$1="M",MIN(W$5:W$24)/W17*W$2,IF(W$1="R",W17/MAX(W$5:W$24)*W$2,"00")) ->  | X45: 00 | Y45: 00 | Z45: 00 | AB45: =IF(AB$1="M",MIN(AB$5:AB$24)/AB17*AB$2,IF(AB$1="R",AB17/MAX(AB$5:AB$24)*AB$2,"00")) ->  | AC45: 00 | AD45: 00 | AE45: 00 | AG45: =IF(AG$1="M",MIN(AG$5:AG$24)/AG17*AG$2,IF(AG$1="R",AG17/MAX(AG$5:AG$24)*AG$2,"00")) ->  | AH45: 00 | AI45: 00 | AJ45: 00 | AL45: =IF(AL$1="M",MIN(AL$5:AL$24)/AL17*AL$2,IF(AL$1="R",AL17/MAX(AL$5:AL$24)*AL$2,"00")) ->  | AM45: 00 | AN45: 00 | AO45: 00 | AQ45: =IF(AQ$1="M",MIN(AQ$5:AQ$24)/AQ17*AQ$2,IF(AQ$1="R",AQ17/MAX(AQ$5:AQ$24)*AQ$2,"00")) ->  | AR45: 00 | AS45: 00 | AT45: 00
A46: 14 | B46: =Zestawienie!B23 -> 0 0 0 | C46: =IF(C$1="M",MIN(C$5:C$24)/C18*C$2,IF(C$1="R",C18/MAX(C$5:C$24)*C$2,"00")) ->  | F46: 00 | H46: =IF(H$1="M",MIN(H$5:H$24)/H18*H$2,IF(H$1="R",H18/MAX(H$5:H$24)*H$2,"00")) ->  | I46: 00 | J46: 00 | K46: 00 | M46: =IF(M$1="M",MIN(M$5:M$24)/M18*M$2,IF(M$1="R",M18/MAX(M$5:M$24)*M$2,"00")) ->  | N46: 00 | O46: 00 | P46: 00 | R46: =IF(R$1="M",MIN(R$5:R$24)/R18*R$2,IF(R$1="R",R18/MAX(R$5:R$24)*R$2,"00")) ->  | S46: 00 | T46: 00 | U46: 00 | W46: =IF(W$1="M",MIN(W$5:W$24)/W18*W$2,IF(W$1="R",W18/MAX(W$5:W$24)*W$2,"00")) ->  | X46: 00 | Y46: 00 | Z46: 00 | AB46: =IF(AB$1="M",MIN(AB$5:AB$24)/AB18*AB$2,IF(AB$1="R",AB18/MAX(AB$5:AB$24)*AB$2,"00")) ->  | AC46: 00 | AD46: 00 | AE46: 00 | AG46: =IF(AG$1="M",MIN(AG$5:AG$24)/AG18*AG$2,IF(AG$1="R",AG18/MAX(AG$5:AG$24)*AG$2,"00")) ->  | AH46: 00 | AI46: 00 | AJ46: 00 | AL46: =IF(AL$1="M",MIN(AL$5:AL$24)/AL18*AL$2,IF(AL$1="R",AL18/MAX(AL$5:AL$24)*AL$2,"00")) ->  | AM46: 00 | AN46: 00 | AO46: 00 | AQ46: =IF(AQ$1="M",MIN(AQ$5:AQ$24)/AQ18*AQ$2,IF(AQ$1="R",AQ18/MAX(AQ$5:AQ$24)*AQ$2,"00")) ->  | AR46: 00 | AS46: 00 | AT46: 00
A47: 15 | B47: =Zestawienie!B24 -> 0 0 0 | C47: =IF(C$1="M",MIN(C$5:C$24)/C19*C$2,IF(C$1="R",C19/MAX(C$5:C$24)*C$2,"00")) ->  | F47: 00 | H47: =IF(H$1="M",MIN(H$5:H$24)/H19*H$2,IF(H$1="R",H19/MAX(H$5:H$24)*H$2,"00")) ->  | I47: 00 | J47: 00 | K47: 00 | M47: =IF(M$1="M",MIN(M$5:M$24)/M19*M$2,IF(M$1="R",M19/MAX(M$5:M$24)*M$2,"00")) ->  | N47: 00 | O47: 00 | P47: 00 | R47: =IF(R$1="M",MIN(R$5:R$24)/R19*R$2,IF(R$1="R",R19/MAX(R$5:R$24)*R$2,"00")) ->  | S47: 00 | T47: 00 | U47: 00 | W47: =IF(W$1="M",MIN(W$5:W$24)/W19*W$2,IF(W$1="R",W19/MAX(W$5:W$24)*W$2,"00")) ->  | X47: 00 | Y47: 00 | Z47: 00 | AB47: =IF(AB$1="M",MIN(AB$5:AB$24)/AB19*AB$2,IF(AB$1="R",AB19/MAX(AB$5:AB$24)*AB$2,"00")) ->  | AC47: 00 | AD47: 00 | AE47: 00 | AG47: =IF(AG$1="M",MIN(AG$5:AG$24)/AG19*AG$2,IF(AG$1="R",AG19/MAX(AG$5:AG$24)*AG$2,"00")) ->  | AH47: 00 | AI47: 00 | AJ47: 00 | AL47: =IF(AL$1="M",MIN(AL$5:AL$24)/AL19*AL$2,IF(AL$1="R",AL19/MAX(AL$5:AL$24)*AL$2,"00")) ->  | AM47: 00 | AN47: 00 | AO47: 00 | AQ47: =IF(AQ$1="M",MIN(AQ$5:AQ$24)/AQ19*AQ$2,IF(AQ$1="R",AQ19/MAX(AQ$5:AQ$24)*AQ$2,"00")) ->  | AR47: 00 | AS47: 00 | AT47: 00
A48: 16 | B48: =Zestawienie!B25 -> 0 0 0 | C48: =IF(C$1="M",MIN(C$5:C$24)/C20*C$2,IF(C$1="R",C20/MAX(C$5:C$24)*C$2,"00")) ->  | F48: 00 | H48: =IF(H$1="M",MIN(H$5:H$24)/H20*H$2,IF(H$1="R",H20/MAX(H$5:H$24)*H$2,"00")) ->  | I48: 00 | J48: 00 | K48: 00 | M48: =IF(M$1="M",MIN(M$5:M$24)/M20*M$2,IF(M$1="R",M20/MAX(M$5:M$24)*M$2,"00")) ->  | N48: 00 | O48: 00 | P48: 00 | R48: =IF(R$1="M",MIN(R$5:R$24)/R20*R$2,IF(R$1="R",R20/MAX(R$5:R$24)*R$2,"00")) ->  | S48: 00 | T48: 00 | U48: 00 | W48: =IF(W$1="M",MIN(W$5:W$24)/W20*W$2,IF(W$1="R",W20/MAX(W$5:W$24)*W$2,"00")) ->  | X48: 00 | Y48: 00 | Z48: 00 | AB48: =IF(AB$1="M",MIN(AB$5:AB$24)/AB20*AB$2,IF(AB$1="R",AB20/MAX(AB$5:AB$24)*AB$2,"00")) ->  | AC48: 00 | AD48: 00 | AE48: 00 | AG48: =IF(AG$1="M",MIN(AG$5:AG$24)/AG20*AG$2,IF(AG$1="R",AG20/MAX(AG$5:AG$24)*AG$2,"00")) ->  | AH48: 00 | AI48: 00 | AJ48: 00 | AL48: =IF(AL$1="M",MIN(AL$5:AL$24)/AL20*AL$2,IF(AL$1="R",AL20/MAX(AL$5:AL$24)*AL$2,"00")) ->  | AM48: 00 | AN48: 00 | AO48: 00 | AQ48: =IF(AQ$1="M",MIN(AQ$5:AQ$24)/AQ20*AQ$2,IF(AQ$1="R",AQ20/MAX(AQ$5:AQ$24)*AQ$2,"00")) ->  | AR48: 00 | AS48: 00 | AT48: 00
A49: 17 | B49: =Zestawienie!B26 -> 0 0 0 | C49: =IF(C$1="M",MIN(C$5:C$24)/C21*C$2,IF(C$1="R",C21/MAX(C$5:C$24)*C$2,"00")) ->  | F49: 00 | H49: =IF(H$1="M",MIN(H$5:H$24)/H21*H$2,IF(H$1="R",H21/MAX(H$5:H$24)*H$2,"00")) ->  | I49: 00 | J49: 00 | K49: 00 | M49: =IF(M$1="M",MIN(M$5:M$24)/M21*M$2,IF(M$1="R",M21/MAX(M$5:M$24)*M$2,"00")) ->  | N49: 00 | O49: 00 | P49: 00 | R49: =IF(R$1="M",MIN(R$5:R$24)/R21*R$2,IF(R$1="R",R21/MAX(R$5:R$24)*R$2,"00")) ->  | S49: 00 | T49: 00 | U49: 00 | W49: =IF(W$1="M",MIN(W$5:W$24)/W21*W$2,IF(W$1="R",W21/MAX(W$5:W$24)*W$2,"00")) ->  | X49: 00 | Y49: 00 | Z49: 00 | AB49: =IF(AB$1="M",MIN(AB$5:AB$24)/AB21*AB$2,IF(AB$1="R",AB21/MAX(AB$5:AB$24)*AB$2,"00")) ->  | AC49: 00 | AD49: 00 | AE49: 00 | AG49: =IF(AG$1="M",MIN(AG$5:AG$24)/AG21*AG$2,IF(AG$1="R",AG21/MAX(AG$5:AG$24)*AG$2,"00")) ->  | AH49: 00 | AI49: 00 | AJ49: 00 | AL49: =IF(AL$1="M",MIN(AL$5:AL$24)/AL21*AL$2,IF(AL$1="R",AL21/MAX(AL$5:AL$24)*AL$2,"00")) ->  | AM49: 00 | AN49: 00 | AO49: 00 | AQ49: =IF(AQ$1="M",MIN(AQ$5:AQ$24)/AQ21*AQ$2,IF(AQ$1="R",AQ21/MAX(AQ$5:AQ$24)*AQ$2,"00")) ->  | AR49: 00 | AS49: 00 | AT49: 00
A50: 18 | B50: =Zestawienie!B27 -> 0 0 0 | C50: =IF(C$1="M",MIN(C$5:C$24)/C22*C$2,IF(C$1="R",C22/MAX(C$5:C$24)*C$2,"00")) ->  | F50: 00 | H50: =IF(H$1="M",MIN(H$5:H$24)/H22*H$2,IF(H$1="R",H22/MAX(H$5:H$24)*H$2,"00")) ->  | I50: 00 | J50: 00 | K50: 00 | M50: =IF(M$1="M",MIN(M$5:M$24)/M22*M$2,IF(M$1="R",M22/MAX(M$5:M$24)*M$2,"00")) ->  | N50: 00 | O50: 00 | P50: 00 | R50: =IF(R$1="M",MIN(R$5:R$24)/R22*R$2,IF(R$1="R",R22/MAX(R$5:R$24)*R$2,"00")) ->  | S50: 00 | T50: 00 | U50: 00 | W50: =IF(W$1="M",MIN(W$5:W$24)/W22*W$2,IF(W$1="R",W22/MAX(W$5:W$24)*W$2,"00")) ->  | X50: 00 | Y50: 00 | Z50: 00 | AB50: =IF(AB$1="M",MIN(AB$5:AB$24)/AB22*AB$2,IF(AB$1="R",AB22/MAX(AB$5:AB$24)*AB$2,"00")) ->  | AC50: 00 | AD50: 00 | AE50: 00 | AG50: =IF(AG$1="M",MIN(AG$5:AG$24)/AG22*AG$2,IF(AG$1="R",AG22/MAX(AG$5:AG$24)*AG$2,"00")) ->  | AH50: 00 | AI50: 00 | AJ50: 00 | AL50: =IF(AL$1="M",MIN(AL$5:AL$24)/AL22*AL$2,IF(AL$1="R",AL22/MAX(AL$5:AL$24)*AL$2,"00")) ->  | AM50: 00 | AN50: 00 | AO50: 00 | AQ50: =IF(AQ$1="M",MIN(AQ$5:AQ$24)/AQ22*AQ$2,IF(AQ$1="R",AQ22/MAX(AQ$5:AQ$24)*AQ$2,"00")) ->  | AR50: 00 | AS50: 00 | AT50: 00
A51: 19 | B51: =Zestawienie!B28 -> 0 0 0 | C51: =IF(C$1="M",MIN(C$5:C$24)/C23*C$2,IF(C$1="R",C23/MAX(C$5:C$24)*C$2,"00")) ->  | F51: 00 | H51: =IF(H$1="M",MIN(H$5:H$24)/H23*H$2,IF(H$1="R",H23/MAX(H$5:H$24)*H$2,"00")) ->  | I51: 00 | J51: 00 | K51: 00 | M51: =IF(M$1="M",MIN(M$5:M$24)/M23*M$2,IF(M$1="R",M23/MAX(M$5:M$24)*M$2,"00")) ->  | N51: 00 | O51: 00 | P51: 00 | R51: =IF(R$1="M",MIN(R$5:R$24)/R23*R$2,IF(R$1="R",R23/MAX(R$5:R$24)*R$2,"00")) ->  | S51: 00 | T51: 00 | U51: 00 | W51: =IF(W$1="M",MIN(W$5:W$24)/W23*W$2,IF(W$1="R",W23/MAX(W$5:W$24)*W$2,"00")) ->  | X51: 00 | Y51: 00 | Z51: 00 | AB51: =IF(AB$1="M",MIN(AB$5:AB$24)/AB23*AB$2,IF(AB$1="R",AB23/MAX(AB$5:AB$24)*AB$2,"00")) ->  | AC51: 00 | AD51: 00 | AE51: 00 | AG51: =IF(AG$1="M",MIN(AG$5:AG$24)/AG23*AG$2,IF(AG$1="R",AG23/MAX(AG$5:AG$24)*AG$2,"00")) ->  | AH51: 00 | AI51: 00 | AJ51: 00 | AL51: =IF(AL$1="M",MIN(AL$5:AL$24)/AL23*AL$2,IF(AL$1="R",AL23/MAX(AL$5:AL$24)*AL$2,"00")) ->  | AM51: 00 | AN51: 00 | AO51: 00 | AQ51: =IF(AQ$1="M",MIN(AQ$5:AQ$24)/AQ23*AQ$2,IF(AQ$1="R",AQ23/MAX(AQ$5:AQ$24)*AQ$2,"00")) ->  | AR51: 00 | AS51: 00 | AT51: 00
A52: 20 | B52: =Zestawienie!B29 -> 0 0 0 | C52: =IF(C$1="M",MIN(C$5:C$24)/C24*C$2,IF(C$1="R",C24/MAX(C$5:C$24)*C$2,"00")) ->  | F52: 00 | H52: =IF(H$1="M",MIN(H$5:H$24)/H24*H$2,IF(H$1="R",H24/MAX(H$5:H$24)*H$2,"00")) ->  | I52: 00 | J52: 00 | K52: 00 | M52: =IF(M$1="M",MIN(M$5:M$24)/M24*M$2,IF(M$1="R",M24/MAX(M$5:M$24)*M$2,"00")) ->  | N52: 00 | O52: 00 | P52: 00 | R52: =IF(R$1="M",MIN(R$5:R$24)/R24*R$2,IF(R$1="R",R24/MAX(R$5:R$24)*R$2,"Błąd kryterium")) ->  | S52: 00 | T52: 00 | U52: 00 | W52: =IF(W$1="M",MIN(W$5:W$24)/W24*W$2,IF(W$1="R",W24/MAX(W$5:W$24)*W$2,"00")) ->  | X52: 00 | Y52: 00 | Z52: 00 | AB52: =IF(AB$1="M",MIN(AB$5:AB$24)/AB24*AB$2,IF(AB$1="R",AB24/MAX(AB$5:AB$24)*AB$2,"00")) ->  | AC52: 00 | AD52: 00 | AE52: 00 | AG52: =IF(AG$1="M",MIN(AG$5:AG$24)/AG24*AG$2,IF(AG$1="R",AG24/MAX(AG$5:AG$24)*AG$2,"00")) ->  | AH52: 00 | AI52: 00 | AJ52: 00 | AL52: =IF(AL$1="M",MIN(AL$5:AL$24)/AL24*AL$2,IF(AL$1="R",AL24/MAX(AL$5:AL$24)*AL$2,"00")) ->  | AM52: 00 | AN52: 00 | AO52: 00 | AQ52: =IF(AQ$1="M",MIN(AQ$5:AQ$24)/AQ24*AQ$2,IF(AQ$1="R",AQ24/MAX(AQ$5:AQ$24)*AQ$2,"00")) ->  | AR52: 00 | AS52: 00 | AT52: 00

Sheet Wykonawcy
A1: Lp | B1: Nazwa | C1: Ulica | D1: Miasto
A2: 1 | B2: Agencja Analiz i Doradztwa Personalnego Remigiusz Koc | C2: ul. Gdańska 105/4 | D2: 85-022 Bydgoszcz
A3: 2 | B3: Brainstorm Group Sp. z o.o. | C3: ul. Perła 10 | D3: 41-300 Dabrowa Górnicza
A4: 3 | B4: Centrum Szkoleń Wielozawodowych DELTA | C4: ul. Sandomierska 26a pokój nr 9 | D4: 27-400 Ostrowiec w.
A5: 4 | B5: Coach and Go Joanna Chorwacka | C5: ul. Sosnowa 6d | D5: 86-300 Grudziądz
A6: 5 | B6: IMMOQEE Sp. z o.o. | C6: ul. Karola Chodkiewicza 3 lok. U 10 | D6: 02-593 Warszawa
A7: 6 | B7: LCE LOGOS Centrum Edukacyjne | C7: ul. Ks.Kard.Wyszyńskiego 6 lok 44 | D7: 18-400 Łomża
A8: 7 | B8: Moja Firma Elzbieta Kowalska | C8: ul. Uniwersytecka 33/35 lok. 36 | D8: 90-233 Łódź
A9: 8 | B9: Nowoczesny Osrodek Edukacji Anna Ratuszniak | C9: ul. Zaułek Szkolny 24 | D9: 55-002 Kamieniec Wrocławski
A10: 9 | B10: Polska Akademia Oświaty Sp. z o.o. | C10: ul. Krańcowa 17/1 | D10: 02-493 Warszawa
A11: 10 | B11: RAJOS COSULTING Rafał Stelmasik | C11: ul. C.K.Norwida 1 | D11: 37-550 Radymno
A12: 11 | B12: SEKA S.A. | C12: ul. Bernardyńska 13 | D12: 85-029 Bydgoszcz
A13: 12 | B13: Slow Life&Business | C13: ul. Szafirowa 78 | D13: 63-460 Nowe Skalmierzyce
A14: 13
A15: 14
A16: 15
A17: 16
A18: 17
A19: 18
A20: 19
A21: 20
A22: 21
A23: 22
A24: 23
A25: 24
A26: 25
A27: 26
A28: 27
A29: 28
A30: 29
A31: 30
